Workbook

Sheet Intro
H1: Farm Lease Calculator | P1: Version 1.0
D9: Farm Lease Calculator is a spreadsheet used to evaluate, analyze, and determine crop production budgets and lease arrangements for the benefit of landowners and tenants.
A13: Inputs and Shares
B14: In the 'Inputs' and 'Shares' tab, all green cells are input cells. Enter the data specific to your operation or cropland here. All black numbers are calculations made automatically from the data entered in the green cells. Cells with a red triangle in the upper right-hand corner display a brief description of the input when the mouse is placed over the triangle.
A18: Cash Lease Analysis and Cash Lease Sensitivity
B19: In the 'Cash Lease Analysis' and 'Cash Lease Sensitivity' tabs, all cells are calculations made automatically from the data in the 'Inputs' tab. The 'Cash Lease Analysis' tab displays the summary and analysis of a cash lease arrangement. Landowner data is under blue headings, and tenant data is below landowner data under tan headings. The 'Cash Lease Sensitivity' displays the tenant's returns under various crop yields and prices.
A23: Share Lease Analysis and Share Lease Sensitivity
B24: In the 'Share Lease Analysis' and 'Share Lease Sensitivity' tabs, all cells are calculations made automatically from the data in the 'Inputs' and 'Shares' tabs. The 'Share Lease Analysis tab displays the summary and analysis of a share lease arrangement. Landowner data is under blue headings and tenant data is below landowner data under tan headings. The 'Share Lease Sensitivity' displays the landowner's and tenant's returns under various crop yields and prices, as well as the equivalent cash rent.
A29: Data Sources
B30: Sources of information relevant to this program are found under the 'Data Sources' tab. Links to the University of Nebraska-Lincoln Department of Agricultural Economics for a complete list of information on crop budgets, agricultural real estate, farm management, etc. can also be found here.
A33: Users Manual
B34: The Farm Lease Calculator User's Manual which accompanies this program, has a full description of this program and instructions for its use.
B37: Updated 3/12/2015

Sheet Inputs
A1: CROP REVENUES, EXPENSES, AND ANALYSIS INPUTS
B3: Landowner | H3: Tenant
A4: Name: | B4: Average Joe Landowner | H4: Average Joe Tenant
A5: Address: | B5: 862 Oak Street | H5: 3580 County Road T
A6: City, State, ZIP: | B6: East-Central, NE 12345 | H6: East-Central, NE 12345
A7: Phone: | B7: 402-123-4321 | H7: 402-123-4567
A9: Field(s): | B9: Pivot Irrigated Quarter Section with Dryland Corners
A11: Crops: | C11: Irr Corn | D11: Irr Soybeans | E11: Dry Corn | F11: Dry Soybeans | J11: Total
A12: Total Acres | C12: 65 | D12: 65 | E12: 15 | F12: 15 | J12: =SUM(C12:G12) -> 160
A13: Production Method | C13: 1 | D13: 1 | E13: 1 | F13: 1 | J13: =SUMPRODUCT(C12:F12,C13:F13) -> 160
A15: Table 1. Revenues:
C16: =C11 -> Irr Corn | D16: =D11 -> Irr Soybeans | E16: =E11 -> Dry Corn | F16: =F11 -> Dry Soybeans | J16: Total
A17: Yield per Acre | C17: 225 | D17: 65 | E17: 125 | F17: 43 | J17: -----
A18: Price per Unit | C18: 3.65 | D18: 9 | E18: 3.65 | F18: 9 | J18: -----
A19: Crop Revenue | C19: =C17*C18 -> 821.25 | D19: =D17*D18 -> 585 | E19: =E17*E18 -> 456.25 | F19: =F17*F18 -> 387 | J19: =SUMPRODUCT($C$12:$F$12,C19:F19) -> 104055
A20: Net Gov't Payments per Acre | C20: 0 | D20: 0 | E20: 0 | F20: 0 | J20: =SUMPRODUCT($C$12:$F$12,C20:F20) -> 0
A21: Other Income per Acre | J21: =SUMPRODUCT($C$12:$F$12,C21:F21) -> 0
A22: Total Revenue: | C22: =C19+SUM(C20:C21) -> 821.25 | D22: =D19+SUM(D20:D21) -> 585 | E22: =E19+SUM(E20:E21) -> 456.25 | F22: =F19+SUM(F20:F21) -> 387 | J22: =SUMPRODUCT($C$12:$F$12,C22:F22) -> 104055
A24: Table 2. Variable Expenses
A26: Seed (per Acre): | C26: =C11 -> Irr Corn | D26: =D11 -> Irr Soybeans | E26: =E11 -> Dry Corn | F26: =F11 -> Dry Soybeans | J26: Total
A27: Seeding Rate | C27: 35 | D27: 1.1 | E27: 20 | F27: 1 | J27: -----
A28: Price per Unit | C28: =E28 -> 2.438 | D28: 44 | E28: =2.5*0.8+2.19*0.2 -> 2.438 | F28: 44 | J28: -----
A29: Total Seed Expense: | C29: =C27*C28 -> 85.33 | D29: =D27*D28 -> 48.4 | E29: =E27*E28 -> 48.76 | F29: =F27*F28 -> 44 | J29: =SUMPRODUCT(C12:F12,C29:F29) -> 10083.85
A31: Fertilizer (per Acre): | C31: =$C$11 -> Irr Corn | D31: =$D$11 -> Irr Soybeans | E31: =$E$11 -> Dry Corn | F31: =$F$11 -> Dry Soybeans | G31: @ | H31: $/Unit | I31: Unit | J31: Total
A32: 32-0-0 | C32: 225 | E32: 80 | H32: 0.55 | I32: lbs N | J32: =SUMPRODUCT($C$12:$F$12,C32:F32)*H32 -> 8703.75
A33: 10-34-0 | C33: 6 | E33: 6 | H33: 6 | I33: gallons | J33: 2880
A34: 21-0-0-24S (Additive) | D34: 3.4 | F34: 3.4 | H34: 0.33 | J34: 89.76
A35: 32-0-0 (Additive) | C35: 1.5 | E35: 1.5 | H35: 0.39 | I35: quart | J35: 46.8
J36: 0
J37: 0
A38: Total Fertilizer Expense: | C38: =SUMPRODUCT(C32:C37,$H$32:$H$37) -> 160.335 | D38: =SUMPRODUCT(D32:D37,$H$32:$H$37) -> 1.122 | E38: =SUMPRODUCT(E32:E37,$H$32:$H$37) -> 80.585 | F38: =SUMPRODUCT(F32:F37,$H$32:$H$37) -> 1.122 | J38: =SUMPRODUCT($C$12:$F$12,C38:F38) -> 11720.31
A40: Herbicide (per Acre): | C40: =C11 -> Irr Corn | D40: =D11 -> Irr Soybeans | E40: =E11 -> Dry Corn | F40: =F11 -> Dry Soybeans | G40: @ | H40: $/Unit | I40: Unit | J40: Total
A41: Bicep II Magnum | E41: 2.1 | H41: 12.5 | I41: quart | J41: =SUMPRODUCT($C$12:$F$12,C41:F41)*H41 -> 393.75
A42: Laudis | C42: 1.5 | E42: 1.5 | H42: 6.09 | I42: ounce | J42: =SUMPRODUCT($C$12:$F$12,C42:F42)*H42 -> 730.8
A43: Atrazine 90 DF | C43: 1.5 | E43: 0.25 | H43: 3.25 | I43: pound | J43: 329.0625
A44: Crop Oil Concentrate | C44: 0.25 | E44: 0.5 | H44: 1.31 | I44: pint | J44: 31.1125
A45: Lumax | C45: 2.7 | H45: 18.75 | I45: quart | J45: 3290.625
A46: Glyphosate w/surf | D46: 64 | F46: 64 | H46: 0.13 | I46: ounce | J46: 665.6
A47: 2,4-D Esther 4# | D47: 1 | F47: 1 | H47: 2.69 | I47: pint | J47: 215.2
A48: Valor XLT | D48: 3 | F48: 3 | H48: 5.19 | I48: ounce | J48: 1245.6
A49: Select Max | D49: 6 | F49: 6 | H49: 0.86 | I49: ounce | J49: 412.8
A50: Total Herbicide Expense: | C50: =SUMPRODUCT(C41:C49,$H$41:$H$49) -> 64.9625 | D50: =SUMPRODUCT(D41:D49,$H$41:$H$49) -> 31.74 | E50: =SUMPRODUCT(E41:E49,$H$41:$H$49) -> 36.8525 | F50: =SUMPRODUCT(F41:F49,$H$41:$H$49) -> 31.74 | J50: =SUMPRODUCT($C$12:$F$12,C50:F50) -> 7314.55
A52: Insecticide & Fungicide (per Acre): | C52: =$C$11 -> Irr Corn | D52: =$D$11 -> Irr Soybeans | E52: =$E$11 -> Dry Corn | F52: =$F$11 -> Dry Soybeans | G52: @ | H52: $/Unit | I52: Unit | J52: Total
A53: Brigade 2EC | C53: =5.12*0.1 -> 0.512 | E53: =5.12*0.1 -> 0.512 | H53: 1.13 | I53: ounce | J53: =SUMPRODUCT($C$12:$F$12,C53:F53)*H53 -> 46.2848
A54: Mustang Max EC | C54: =2*0.2 -> 0.4 | E54: =2*0.2 -> 0.4 | H54: 1.48 | I54: ounce | J54: =SUMPRODUCT($C$12:$F$12,C54:F54)*H54 -> 47.36
A55: Warrior II/Zeon | D55: =1.6*0.2 -> 0.32 | F55: =1.6*0.2 -> 0.32 | H55: 2.97 | I55: ounce | J55: =SUMPRODUCT($C$12:$F$12,C55:F55)*H55 -> 76.032
A56: Quilt Xcel | D56: =10.5*0.5 -> 5.25 | H56: 2.19 | I56: ounce | J56: =SUMPRODUCT($C$12:$F$12,C56:F56)*H56 -> 747.3375
J57: =SUMPRODUCT($C$12:$F$12,C57:F57)*H57 -> 0
A58: Total Insecticide & Fungicide Expense: | C58: =SUMPRODUCT(C53:C57,$H$53:$H$57) -> 1.17056 | D58: =SUMPRODUCT(D53:D57,$H$53:$H$57) -> 12.4479 | E58: =SUMPRODUCT(E53:E57,$H$53:$H$57) -> 1.17056 | F58: =SUMPRODUCT(F53:F57,$H$53:$H$57) -> 0.9504 | J58: =SUMPRODUCT($C$12:$F$12,C58:F58) -> 917.0143
A60: Crop Insurance (per Acre): | C60: =$C$11 -> Irr Corn | D60: =$D$11 -> Irr Soybeans | E60: =$E$11 -> Dry Corn | F60: =$F$11 -> Dry Soybeans | J60: Total
A61: Multiple Peril Premiums | J61: =SUMPRODUCT($C$12:$F$12,C61:F61) -> 0
A62: Revenue Assurance Premiums | C62: 10 | D62: 8.5 | E62: 23 | F62: 16 | J62: =SUMPRODUCT($C$12:$F$12,C62:F62) -> 1787.5
J63: =SUMPRODUCT($C$12:$F$12,C63:F63) -> 0
J64: =SUMPRODUCT($C$12:$F$12,C64:F64) -> 0
A65: Total Crop Insurance Expense: | C65: =SUM(C60:C64) -> 10 | D65: =SUM(D60:D64) -> 8.5 | E65: =SUM(E60:E64) -> 23 | F65: =SUM(F60:F64) -> 16 | J65: =SUMPRODUCT($C$12:$F$12,C65:F65) -> 1787.5
A67: Crop Consulting (per Acre): | C67: =$C$11 -> Irr Corn | D67: =$D$11 -> Irr Soybeans | E67: =$E$11 -> Dry Corn | F67: =$F$11 -> Dry Soybeans | J67: Total
A68: Consulting Fees | C68: 10 | D68: 10 | E68: 7 | F68: 7 | J68: =SUMPRODUCT($C$12:$F$12,C68:F68) -> 1510
A69: Total Crop Consulting Expense: | C69: =C68 -> 10 | D69: =D68 -> 10 | E69: =E68 -> 7 | F69: =F68 -> 7 | J69: =SUMPRODUCT($C$12:$F$12,C69:F69) -> 1510
A71: Machinery/Field Operations (per Acre): | C71: =$C$11 -> Irr Corn | D71: =$D$11 -> Irr Soybeans | E71: =$E$11 -> Dry Corn | F71: =$F$11 -> Dry Soybeans | G71: @ | H71: $/Unit | I71: Unit | J71: Total
A72: Include only fuel, lube, repairs, and labor!
A73: Spray Fertilizer | E73: 1 | H73: 1.9 | I73: acre | J73: =SUMPRODUCT($C$12:$F$12,C73:F73)*H73 -> 28.5
A74: Plant No-Till | C74: 1 | E74: 1 | H74: =2.4+1.26+0.82+4.37 -> 8.85 | I74: acre | J74: =SUMPRODUCT($C$12:$F$12,C74:F74)*H74 -> 708
A75: Spray | C75: 1.5 | D75: 1 | E75: 1.5 | F75: 2 | H75: =1+0.39+0.33+0.62 -> 2.34 | I75: acre | J75: 503.1
A76: Combine | C76: 1 | E76: 1 | F76: 1 | H76: =3.14+5.61+6.62+1.45 -> 16.82 | I76: acre | J76: 1597.9
A77: Grain Cart | C77: 225 | E77: =E17 -> 125 | H77: 0.06 | I77: bushel | J77: 990
A78: Irrigate | C78: 1 | D78: 1 | H78: =8.33+62.42+2.94+14.53 -> 88.22 | I78: acre | J78: 11468.6
A79: Plant Narrow row | D79: 1 | F79: 1 | H79: 13.22 | I79: acre | J79: 1057.6
J80: 0
J81: 0
J82: 0
J83: 0
J84: 0
J85: 0
A86: Total Machinery/Field Operation Expense: | C86: =SUMPRODUCT(C73:C85,$H$73:$H$85) -> 130.9 | D86: =SUMPRODUCT(D73:D85,$H$73:$H$85) -> 103.78 | E86: =SUMPRODUCT(E73:E85,$H$73:$H$85) -> 38.58 | F86: =SUMPRODUCT(F73:F85,$H$73:$H$85) -> 34.72 | J86: =SUMPRODUCT($C$12:$F$12,C86:F86) -> 16353.7
A88: Custom Operations (per Acre): | C88: =$C$11 -> Irr Corn | D88: =$D$11 -> Irr Soybeans | E88: =$E$11 -> Dry Corn | F88: =$F$11 -> Dry Soybeans | G88: @ | H88: $/Unit | I88: Unit | J88: Total
A89: Spray | C89: 0.55 | D89: 0.7 | E89: 0.3 | F89: 0.2 | H89: 7 | I89: acre | J89: =SUMPRODUCT($C$12:$F$12,C89:F89)*H89 -> 621.25
A90: Truck | C90: 225 | D90: =D17 -> 65 | E90: =E17 -> 125 | F90: =F17 -> 43 | H90: 0.11 | I90: bushel | J90: =SUMPRODUCT($C$12:$F$12,C90:F90)*H90 -> 2350.7
A91: Dry | C91: 225 | E91: 125 | H91: 0.09 | I91: bushel | J91: =SUMPRODUCT($C$12:$F$12,C91:F91)*H91 -> 1485
J92: =SUMPRODUCT($C$12:$F$12,C92:F92)*H92 -> 0
A93: Total Custom Operations Expense: | C93: =SUMPRODUCT(C89:C92,$H$89:$H$92) -> 48.85 | D93: =SUMPRODUCT(D89:D92,$H$89:$H$92) -> 12.05 | E93: =SUMPRODUCT(E89:E92,$H$89:$H$92) -> 27.1 | F93: =SUMPRODUCT(F89:F92,$H$89:$H$92) -> 6.13 | J93: =SUMPRODUCT($C$12:$F$12,C93:F93) -> 4456.95
A95: Irrigation (per Acre): | C95: =C11 -> Irr Corn | D95: =D11 -> Irr Soybeans | E95: =E11 -> Dry Corn | F95: =F11 -> Dry Soybeans | G95: @ | H95: $/Unit | I95: Unit | J95: Total
A96: Include only fuel and lube!
A97: Irrigation | C97: 9 | D97: 6 | H97: 7.5 | I97: acre inch | J97: =SUMPRODUCT($C$12:$F$12,C97:F97)*H97 -> 7312.5
A98: Total Irrigation Expense: | C98: =C97*$H$97 -> 67.5 | D98: =D97*$H$97 -> 45 | E98: =E97*$H$97 -> 0 | F98: =F97*$H$97 -> 0 | J98: =SUMPRODUCT($C$12:$F$12,C98:F98) -> 7312.5
A100: Labor/Management (per Acre): | C100: =$C$11 -> Irr Corn | D100: =$D$11 -> Irr Soybeans | E100: =$E$11 -> Dry Corn | F100: =$F$11 -> Dry Soybeans | G100: @ | H100: $/Unit | I100: Unit | J100: Total
A101: Management | C101: 1 | D101: 1 | E101: 1 | F101: 1 | H101: 20 | I101: acre | J101: =SUMPRODUCT($C$12:$F$12,C101:F101)*H101 -> 3200
A102: Irrigation Labor | C102: 9 | D102: 6 | H102: =8.33/9 -> 0.9255555556 | I102: acre inch | J102: =SUMPRODUCT($C$12:$F$12,C102:F102)*H102 -> 902.4166667
J103: =SUMPRODUCT($C$12:$F$12,C103:F103)*H103 -> 0
J104: =SUMPRODUCT($C$12:$F$12,C104:F104)*H104 -> 0
A105: Total Variable Labor Expense: | C105: =SUMPRODUCT(C101:C104,$H$101:$H$104) -> 28.33 | D105: =SUMPRODUCT(D101:D104,$H$101:$H$104) -> 25.55333333 | E105: =SUMPRODUCT(E101:E104,$H$101:$H$104) -> 20 | F105: =SUMPRODUCT(F101:F104,$H$101:$H$104) -> 20 | J105: =SUMPRODUCT($C$12:$F$12,C105:F105) -> 4102.416667
A107: Drying, Storage, Transportation (as per Yield): | C107: =$C$11 -> Irr Corn | D107: =$D$11 -> Irr Soybeans | E107: =$E$11 -> Dry Corn | F107: =$F$11 -> Dry Soybeans | G107: @ | H107: $/Unit | I107: Unit | J107: Total
A108: Drying | C108: 1 | E108: 1 | H108: 0.045 | I108: point | J108: =($C$12*$C$17*C108*H108)+($D$12*$D$17*D108*H108)+($E$12*$E$17*E108*H108)+($F$12*$F$17*F108*H108) -> 742.5
A109: Hauling/Trucking | C109: 1 | D109: 1 | E109: 1 | F109: 1 | H109: 0.11 | I109: bushel | J109: =($C$12*$C$17*C109*H109)+($D$12*$D$17*D109*H109)+($E$12*$E$17*E109*H109)+($F$12*$F$17*F109*H109) -> 2350.7
J110: =($C$12*$C$17*C110*H110)+($D$12*$D$17*D110*H110)+($E$12*$E$17*E110*H110)+($F$12*$F$17*F110*H110) -> 0
J111: =($C$12*$C$17*C111*H111)+($D$12*$D$17*D111*H111)+($E$12*$E$17*E111*H111)+($F$12*$F$17*F111*H111) -> 0
A112: Total Drying, Storage, Trans. Expense: | C112: =SUMPRODUCT(C108:C111,$H$108:$H$111)*C17 -> 34.875 | D112: =SUMPRODUCT(D108:D111,$H$108:$H$111)*D17 -> 7.15 | E112: =SUMPRODUCT(E108:E111,$H$108:$H$111)*E17 -> 19.375 | F112: =SUMPRODUCT(F108:F111,$H$108:$H$111)*F17 -> 4.73 | J112: =SUMPRODUCT($C$12:$F$12,C112:F112) -> 3093.2
A114: Cash Lease Rent (per Acre): | C114: =$C$11 -> Irr Corn | D114: =$D$11 -> Irr Soybeans | E114: =$E$11 -> Dry Corn | F114: =$F$11 -> Dry Soybeans | J114: Total
A115: Rent | C115: 300 | D115: 300 | E115: 200 | F115: 200 | J115: =SUMPRODUCT($C$12:$F$12,C115:F115) -> 45000
A116: Total Rent Expense under Cash Lease: | C116: =C115*C13 -> 300 | D116: =D115*D13 -> 300 | E116: =E115*E13 -> 200 | F116: =F115*F13 -> 200 | J116: =SUMPRODUCT($C$12:$F$12,C116:F116) -> 45000
A118: Share Lease Rent (per Acre): | C118: =$C$11 -> Irr Corn | D118: =$D$11 -> Irr Soybeans | E118: =$E$11 -> Dry Corn | F118: =$F$11 -> Dry Soybeans | J118: Total
A119: Rent | J119: =SUMPRODUCT($C$12:$F$12,C119:F119) -> 0
A120: Total Rent Expense under Share Lease: | C120: =C119*C13 -> 0 | D120: =D119*D13 -> 0 | E120: =E119*E13 -> 0 | F120: =F119*F13 -> 0 | J120: =SUMPRODUCT($C$12:$F$12,C120:F120) -> 0
A122: Table 3. Fixed Expenses
A124: Property Taxes (per Acre): | C124: =$C$11 -> Irr Corn | D124: =$D$11 -> Irr Soybeans | E124: =$E$11 -> Dry Corn | F124: =$F$11 -> Dry Soybeans | J124: Total
A125: Property Taxes | C125: 60 | D125: 60 | E125: 40 | F125: 40 | J125: =SUMPRODUCT($C$12:$F$12,C125:F125) -> 9000
A126: Total Property Tax Expense: | C126: =C125*C13 -> 60 | D126: =D125*D13 -> 60 | E126: =E125*E13 -> 40 | F126: =F125*F13 -> 40 | J126: =SUMPRODUCT($C$12:$F$12,C126:F126) -> 9000
A128: Lime (per Acre): | C128: =$C$11 -> Irr Corn | D128: =$D$11 -> Irr Soybeans | E128: =$E$11 -> Dry Corn | F128: =$F$11 -> Dry Soybeans | G128: @ | H128: $/Unit | I128: Unit | J128: Total
A129: Lime | J129: =SUMPRODUCT($C$12:$F$12,C129:F129)*H129 -> 0
A130: Total Lime Expense: | C130: =C129*$H$129 -> 0 | D130: =D129*$H$129 -> 0 | E130: =E129*$H$129 -> 0 | F130: =F129*$H$129 -> 0 | J130: =SUMPRODUCT($C$12:$F$12,C130:F130) -> 0
A132: Machinery/Field Operations (per Acre): | C132: =$C$11 -> Irr Corn | D132: =$D$11 -> Irr Soybeans | E132: =$E$11 -> Dry Corn | F132: =$F$11 -> Dry Soybeans | G132: @ | H132: $/Unit | I132: Unit | J132: Total
A133: Include only depreciation, taxes, housing, insurance, and interest!
A134: =A73 -> Spray Fertilizer | C134: =IF(C73,C73,"") ->  | E134: 1 | H134: =1.09+2.15 -> 3.24 | I134: =I73 -> acre | J134: =SUMPRODUCT($C$12:$F$12,C134:F134)*H134 -> 48.6
A135: =A74 -> Plant No-Till | C135: 1 | E135: 1 | H135: =2.73+6.7 -> 9.43 | I135: =I74 -> acre | J135: =SUMPRODUCT($C$12:$F$12,C135:F135)*H135 -> 754.4
A136: =A75 -> Spray | C136: 1.5 | D136: 1 | E136: 1.5 | F136: 2 | H136: =1.09+0.86 -> 1.95 | I136: =I75 -> acre | J136: 419.25
A137: =A76 -> Combine | C137: 1 | E137: 1 | F137: 1 | H137: =5.42+4.41 -> 9.83 | I137: =I76 -> acre | J137: 933.85
A138: =A77 -> Grain Cart | C138: 225 | E138: 125 | H138: =(2.22+0.73)/125 -> 0.0236 | I138: bushel | J138: 389.4
A139: =A78 -> Irrigate | C139: =IF(C78,C78,"") -> 1 | D139: 1 | H139: =4.26+8.69 -> 12.95 | I139: =I78 -> acre | J139: 1683.5
A140: Plant Narrow row | D140: 1 | F140: 1 | H140: =2.73+3.82 -> 6.55 | I140: acre | J140: 524
A141: 0 | I141: 0 | J141: 0
A142: 0 | I142: 0 | J142: 0
A143: 0 | I143: 0 | J143: 0
A144: 0 | I144: 0 | J144: 0
A145: 0 | I145: 0 | J145: 0
A146: 0 | I146: 0 | J146: 0
A147: Total Machinery Fixed Expense: | C147: =SUMPRODUCT(C134:C146,$H$134:$H$146) -> 40.445 | D147: =SUMPRODUCT(D134:D146,$H$134:$H$146) -> 21.45 | E147: =SUMPRODUCT(E134:E146,$H$134:$H$146) -> 28.375 | F147: =SUMPRODUCT(F134:F146,$H$134:$H$146) -> 20.28 | J147: =SUMPRODUCT($C$12:$F$12,C147:F147) -> 4753
A149: Irrigation Equipment:
A150: Include only taxes, insurance, repairs, and maintenance under overhead! | C150: Investment: | D150: Expected Life (yrs.) | E150: Salvage Value % | F150: Overhead per Year | H150: Interest per Year | I150: Depreciation per Year
J151: Total
A152: Well, Column, & Gearhead | C152: 50000 | D152: 40 | E152: 0.15 | F152: 250 | H152: =IF(C152,((C152-(C152*E152))/2)*C179,0) -> 956.25 | I152: =IF(D152,(C152-(C152*E152))/D152,0) -> 1062.5 | J152: =F152+H152+I152 -> 2268.75
A153: Power Unit | C153: 13000 | D153: 12 | E153: 0.05 | F153: 100 | H153: =IF(C153,((C153-(C153*E153))/2)*C179,0) -> 277.875 | I153: =IF(D153,(C153-(C153*E153))/D153,0) -> 1029.166667 | J153: =F153+H153+I153 -> 1407.041667
A154: Irrigation System | C154: 80000 | D154: 30 | E154: 0.05 | F154: 400 | H154: =IF(C154,((C154-(C154*E154))/2)*C179,0) -> 1710 | I154: =IF(D154,(C154-(C154*E154))/D154,0) -> 2533.333333 | J154: =F154+H154+I154 -> 4643.333333
A155: Total Irrigation Expense: | C155: =SUM(C152:C154) -> 143000 | F155: =SUM(F152:F154) -> 750 | H155: =SUM(H152:H154) -> 2944.125 | I155: =SUM(I152:I154) -> 4625 | J155: =F155+H155+I155 -> 8319.125
A157: Table 4. Analysis & Other Inputs
A159: Irrigation Equipment Ownership: | C159: Enter:
A160: Enter the TENANT Ownership % of the equipment
A161: Well, Pump, & Gearhead | C161: 0
A162: Power Unit & Meter | C162: 0
A163: Irrigation System | C163: 0
A165: Land Data: | C165: Enter:
A166: Land Data should be based on dryland, unimproved, property!
A167: Land Value (per Acre) | C167: 4740
A168: Net Rate of Return | C168: 0.03
A170: Cash Rent Data: | C170: Enter:
A171: Portion of cash rent paid prior | C171: 0.5
A172: to growing season
A174: Operating Loan Interest: | C174: Enter:
A175: % APR | C175: 0.05
A176: Loan Term (months) | C176: 6
A178: Irrigation Equipment Interest: | C178: Enter:
A179: % APR | C179: 0.045
A251: This information used in calculations:
A253: Total Irrigation Fixed Expenses: | C253: =C11 -> Irr Corn | D253: =D11 -> Irr Soybeans | E253: =E11 -> Dry Corn | F253: =F11 -> Dry Soybeans | H253: Total
A254: Irrigation Acres: | C254: =IF(C97,C12,0) -> 65 | D254: =IF(D97,D12,0) -> 65 | E254: =IF(E97,E12,0) -> 0 | F254: =IF(F97,F12,0) -> 0 | H254: =SUM(C254:F254) -> 130
A255: Well, Pump, & Gearhead | C255: =IF(C254,(($C$254/$H$254)*J152)/$C$254,0) -> 17.45192308 | D255: =IF(D254,(($D$254/$H$254)*J152)/$D$254,0) -> 17.45192308 | E255: =IF(E254,(($E$254/$H$254)*J152)/$E$254,0) -> 0 | F255: =IF(F254,(($F$254/$H$254)*J152)/$F$254,0) -> 0 | H255: =SUMPRODUCT($C$254:$F$254,C255:F255) -> 2268.75
A256: Power Unit & Meter | C256: =IF(C255,(($C$254/$H$254)*J153)/$C$254,0) -> 10.82339744 | D256: =IF(D255,(($D$254/$H$254)*J153)/$D$254,0) -> 10.82339744 | E256: =IF(E255,(($E$254/$H$254)*J153)/$E$254,0) -> 0 | F256: =IF(F255,(($F$254/$H$254)*J153)/$F$254,0) -> 0 | H256: =SUMPRODUCT($C$254:$F$254,C256:F256) -> 1407.041667
A257: Irrigation System | C257: =IF(C256,(($C$254/$H$254)*J154)/$C$254,0) -> 35.71794872 | D257: =IF(D256,(($D$254/$H$254)*J154)/$D$254,0) -> 35.71794872 | E257: =IF(E256,(($E$254/$H$254)*J154)/$E$254,0) -> 0 | F257: =IF(F256,(($F$254/$H$254)*J154)/$F$254,0) -> 0 | H257: =SUMPRODUCT($C$254:$F$254,C257:F257) -> 4643.333333
A258: Total: | C258: =SUM(C255:C257) -> 63.99326923 | D258: =SUM(D255:D257) -> 63.99326923 | E258: =SUM(E255:E257) -> 0 | F258: =SUM(F255:F257) -> 0 | H258: =SUMPRODUCT($C$254:$F$254,C258:F258) -> 8319.125
A260: Tenant Irrigation Fixed Expense:
A261: Well, Pump, & Gearhead | C261: =C255*$C$161 -> 0 | D261: =D255*$C$161 -> 0 | E261: =E255*$C$161 -> 0 | F261: =F255*$C$161 -> 0 | H261: =SUMPRODUCT($C$254:$F$254,C261:F261) -> 0
A262: Power Unit & Meter | C262: =C256*$C$162 -> 0 | D262: =D256*$C$162 -> 0 | E262: =E256*$C$162 -> 0 | F262: =F256*$C$162 -> 0 | H262: =SUMPRODUCT($C$254:$F$254,C262:F262) -> 0
A263: Irrigation System | C263: =C257*$C$163 -> 0 | D263: =D257*$C$163 -> 0 | E263: =E257*$C$163 -> 0 | F263: =F257*$C$163 -> 0 | H263: =SUMPRODUCT($C$254:$F$254,C263:F263) -> 0
A264: Tenant Total: | C264: =SUM(C261:C263) -> 0 | D264: =SUM(D261:D263) -> 0 | E264: =SUM(E261:E263) -> 0 | F264: =SUM(F261:F263) -> 0 | H264: =SUMPRODUCT($C$254:$F$254,C264:F264) -> 0
A266: Landowner Irrigation Fixed Expense:
A267: Well, Pump, & Gearhead | C267: =C255*(1-$C$161) -> 17.45192308 | D267: =D255*(1-$C$161) -> 17.45192308 | E267: =E255*(1-$C$161) -> 0 | F267: =F255*(1-$C$161) -> 0 | H267: =SUMPRODUCT($C$254:$F$254,C267:F267) -> 2268.75
A268: Power Unit & Meter | C268: =C256*(1-$C$162) -> 10.82339744 | D268: =D256*(1-$C$162) -> 10.82339744 | E268: =E256*(1-$C$162) -> 0 | F268: =F256*(1-$C$162) -> 0 | H268: =SUMPRODUCT($C$254:$F$254,C268:F268) -> 1407.041667
A269: Irrigation System | C269: =C257*(1-$C$163) -> 35.71794872 | D269: =D257*(1-$C$163) -> 35.71794872 | E269: =E257*(1-$C$163) -> 0 | F269: =F257*(1-$C$163) -> 0 | H269: =SUMPRODUCT($C$254:$F$254,C269:F269) -> 4643.333333
A270: Landowner Total: | C270: =SUM(C267:C269) -> 63.99326923 | D270: =SUM(D267:D269) -> 63.99326923 | E270: =SUM(E267:E269) -> 0 | F270: =SUM(F267:F269) -> 0 | H270: =SUMPRODUCT($C$254:$F$254,C270:F270) -> 8319.125

Sheet Shares
A1: CROP REVENUE AND EXPENSE SHARES
A3: Landowner: | B3: =Inputs!B4 -> Average Joe Landowner
A4: Tenant: | B4: =Inputs!H4 -> Average Joe Tenant
A5: Field(s): | B5: =Inputs!B9 -> Pivot Irrigated Quarter Section with Dryland Corners
A7: Enter the TENANT'S SHARE of the Revenues and Expenses under a Share Lease
A8: Table 5. Revenue Shares: | C8: =Inputs!$C$11 -> Irr Corn | D8: =Inputs!$D$11 -> Irr Soybeans | E8: =Inputs!$E$11 -> Dry Corn | F8: =Inputs!$F$11 -> Dry Soybeans
A9: Crop Yield: | C9: 0.5 | D9: 0.5 | E9: 0.5 | F9: 0.5
A10: Net Gov't Payments: | C10: 0.5 | D10: 0.5 | E10: 0.5 | F10: 0.5
A11: =Inputs!$A$21 -> Other Income per Acre | C11: 0.5 | D11: 0.5 | E11: 0.5 | F11: 0.5
A13: Table 6. Variable Expenses Shares: | C13: =Inputs!$C$11 -> Irr Corn | D13: =Inputs!$D$11 -> Irr Soybeans | E13: =Inputs!$E$11 -> Dry Corn | F13: =Inputs!$F$11 -> Dry Soybeans
A14: Seed: | C14: 1 | D14: 1 | E14: 1 | F14: 1
A15: Fertilizer: | C15: 0.5 | D15: 0.5 | E15: 0.5 | F15: 0.5
A16: Herbicide: | C16: 1 | D16: 1 | E16: 1 | F16: 1
A17: Insecticide & Fungicide: | C17: 0.5 | D17: 0.5 | E17: 0.5 | F17: 0.5
A18: Crop Insurance: | C18: 0.5 | D18: 0.5 | E18: 0.5 | F18: 0.5
A19: Crop Consulting: | C19: 0.5 | D19: 0.5 | E19: 0.5 | F19: 0.5
A20: Machinery/Field Operations: | C20: 1 | D20: 1 | E20: 1 | F20: 1
A21: Custom Operations: | C21: 1 | D21: 1 | E21: 1 | F21: 1
A22: Irrigation: | C22: 0.5 | D22: 0.5 | E22: 0.5 | F22: 0.5
A23: Labor/Management: | C23: 1 | D23: 1 | E23: 1 | F23: 1
A24: Drying, Storage, Transportation: | C24: 0.5 | D24: 0.5 | E24: 0.5 | F24: 0.5
A26: Table 7. Fixed Expenses Shares: | C26: =Inputs!$C$11 -> Irr Corn | D26: =Inputs!$D$11 -> Irr Soybeans | E26: =Inputs!$E$11 -> Dry Corn | F26: =Inputs!$F$11 -> Dry Soybeans
A27: Lime | C27: 0 | D27: 0 | E27: 0 | F27: 0
A28: Machinery/Field Operations | C28: 1 | D28: 1 | E28: 1 | F28: 1
A111: This information is used in calculations:
A113: LANDOWNERS SHARES:
A115: Table 5L. Revenue Shares: | C115: =Inputs!$C$11 -> Irr Corn | D115: =Inputs!$D$11 -> Irr Soybeans | E115: =Inputs!$E$11 -> Dry Corn | F115: =Inputs!$F$11 -> Dry Soybeans
A116: Crop Yield | C116: =1-C9 -> 0.5 | D116: =1-D9 -> 0.5 | E116: =1-E9 -> 0.5 | F116: =1-F9 -> 0.5
A117: =Inputs!$A$20 -> Net Gov't Payments per Acre | C117: =1-C10 -> 0.5 | D117: 0.5 | E117: 0.5 | F117: 0.5
A118: =Inputs!$A$21 -> Other Income per Acre | C118: 0.5 | D118: 0.5 | E118: 0.5 | F118: 0.5
A120: Table 6L. Variable Expenses Shares: | C120: =Inputs!$C$11 -> Irr Corn | D120: =Inputs!$D$11 -> Irr Soybeans | E120: =Inputs!$E$11 -> Dry Corn | F120: =Inputs!$F$11 -> Dry Soybeans
A121: Seed | C121: =1-C14 -> 0 | D121: 0 | E121: 0 | F121: 0
A122: Fertilizer | C122: 0.5 | D122: 0.5 | E122: 0.5 | F122: 0.5
A123: Herbicide | C123: =1-C16 -> 0 | D123: 0 | E123: 0 | F123: 0
A124: Insecticide & Fungicide | C124: 0.5 | D124: 0.5 | E124: 0.5 | F124: 0.5
A125: Crop Insurance | C125: =1-C18 -> 0.5 | D125: =1-D18 -> 0.5 | E125: =1-E18 -> 0.5 | F125: =1-F18 -> 0.5
A126: Crop Consulting | C126: 0.5 | D126: 0.5 | E126: 0.5 | F126: 0.5
A127: Machinery/Field Operations | C127: =1-C20 -> 0 | D127: 0 | E127: 0 | F127: 0
A128: Custom Operations | C128: 0 | D128: 0 | E128: 0 | F128: 0
A129: Irrigation | C129: 0.5 | D129: 0.5 | E129: 0.5 | F129: 0.5
A130: Labor | C130: 0 | D130: 0 | E130: 0 | F130: 0
A131: Drying, Storage, & Transportation | C131: 0.5 | D131: 0.5 | E131: 0.5 | F131: 0.5
A133: Table 7L. Fixed Expenses Shares: | C133: =Inputs!$C$11 -> Irr Corn | D133: =Inputs!$D$11 -> Irr Soybeans | E133: =Inputs!$E$11 -> Dry Corn | F133: =Inputs!$F$11 -> Dry Soybeans
A134: Lime | C134: =1-C27 -> 1 | D134: =1-D27 -> 1 | E134: 1 | F134: 1
A135: Machinery/Field Operations | C135: =1-C28 -> 0 | D135: 0 | E135: 0 | F135: 0

Sheet Cash Summary
A1: LANDOWNER CASH LEASE BUDGET SUMMARY
A3: =Inputs!B4 -> Average Joe Landowner
A4: =Inputs!B9 -> Pivot Irrigated Quarter Section with Dryland Corners
A6: Crops: | B6: =IF(Inputs!$C$12,Inputs!$C$11,"") -> Irr Corn | C6: =IF(Inputs!$D$12,Inputs!$D$11,"") -> Irr Soybeans | D6: =IF(Inputs!$E$12,Inputs!$E$11,"") -> Dry Corn | E6: =IF(Inputs!$F$12,Inputs!$F$11,"") -> Dry Soybeans | G6: Total | H6: Per Acre
A7: Total Acres: | B7: =IF(Inputs!C12,Inputs!$C$12,"") -> 65 | C7: =IF(Inputs!D12,Inputs!$D$12,"") -> 65 | D7: =IF(Inputs!E12,Inputs!$E$12,"") -> 15 | E7: =IF(Inputs!F12,Inputs!$F$12,"") -> 15 | G7: =IF(Inputs!J12,SUM(B7:E7),"") -> 160 | H7: -----
A9: Landowner Cash Lease Revenue: | B9: =IF(Inputs!$C$12,Inputs!$C$11,"") -> Irr Corn | C9: =IF(Inputs!$D$12,Inputs!$D$11,"") -> Irr Soybeans | D9: =IF(Inputs!$E$12,Inputs!$E$11,"") -> Dry Corn | E9: =IF(Inputs!$F$12,Inputs!$F$11,"") -> Dry Soybeans | G9: Total | H9: Per Acre
A10: Cash Rent: | B10: =IF(Inputs!C12,Inputs!C116,"") -> 300 | C10: =IF(Inputs!D12,Inputs!D116,"") -> 300 | D10: =IF(Inputs!E12,Inputs!E116,"") -> 200 | E10: =IF(Inputs!F12,Inputs!F116,"") -> 200 | G10: =IF(Inputs!J12,SUMPRODUCT($B$7:$E$7,B10:E10),"") -> 45000 | H10: =IF(Inputs!$J$12,G10/Inputs!$J$13,"") -> 281.25
A11: Total Revenue: | B11: =B10 -> 300 | C11: =C10 -> 300 | D11: =D10 -> 200 | E11: =E10 -> 200 | G11: =IF(Inputs!J12,G10,"") -> 45000 | H11: =IF(Inputs!$J$12,G11/Inputs!$J$13,"") -> 281.25
A13: Landowner Cash Lease Fixed Expenses: | B13: =IF(Inputs!$C$12,Inputs!$C$11,"") -> Irr Corn | C13: =IF(Inputs!$D$12,Inputs!$D$11,"") -> Irr Soybeans | D13: =IF(Inputs!$E$12,Inputs!$E$11,"") -> Dry Corn | E13: =IF(Inputs!$F$12,Inputs!$F$11,"") -> Dry Soybeans | G13: Total | H13: Per Acre
A14: Property Taxes: | B14: =IF(Inputs!$C$12,Inputs!C126,"") -> 60 | C14: =IF(Inputs!$D$12,Inputs!D126,"") -> 60 | D14: =IF(Inputs!$E$12,Inputs!E126,"") -> 40 | E14: =IF(Inputs!$F$12,Inputs!F126,"") -> 40 | G14: =IF(Inputs!J12,SUMPRODUCT($B$7:$E$7,B14:E14),"") -> 9000 | H14: =IF(Inputs!$J$12,G14/Inputs!$J$13,"") -> 56.25
A15: Lime: | B15: =IF(Inputs!$C$12,Inputs!C130,"") -> 0 | C15: =IF(Inputs!$D$12,Inputs!D130,"") -> 0 | D15: =IF(Inputs!$E$12,Inputs!E130,"") -> 0 | E15: =IF(Inputs!$F$12,Inputs!F130,"") -> 0 | G15: =IF(Inputs!J12,SUMPRODUCT($B$7:$E$7,B15:E15),"") -> 0 | H15: =IF(Inputs!$J$12,G15/Inputs!$J$13,"") -> 0
A16: Irrigation: | B16: =IF(Inputs!$C$12,Inputs!C270,"") -> 63.99326923 | C16: =IF(Inputs!$D$12,Inputs!D270,"") -> 63.99326923 | D16: =IF(Inputs!$E$12,Inputs!E270,"") -> 0 | E16: =IF(Inputs!$F$12,Inputs!F270,"") -> 0 | G16: =IF(Inputs!J12,SUMPRODUCT($B$7:$E$7,B16:E16),"") -> 8319.125 | H16: =IF(Inputs!$J$12,G16/Inputs!$J$13,"") -> 51.99453125
A17: Total Fixed Expenses: | B17: =IF(Inputs!C12,SUM(B14:B16),"") -> 123.9932692 | C17: =IF(Inputs!D12,SUM(C14:C16),"") -> 123.9932692 | D17: =IF(Inputs!E12,SUM(D14:D16),"") -> 40 | E17: =IF(Inputs!F12,SUM(E14:E16),"") -> 40 | G17: =IF(Inputs!J12,SUMPRODUCT($B$7:$E$7,B17:E17),"") -> 17319.125 | H17: =IF(Inputs!$J$12,G17/Inputs!$J$13,"") -> 108.2445312
A19: Landowner Cash Lease Totals: | B19: =IF(Inputs!$C$12,Inputs!$C$11,"") -> Irr Corn | C19: =IF(Inputs!$D$12,Inputs!$D$11,"") -> Irr Soybeans | D19: =IF(Inputs!$E$12,Inputs!$E$11,"") -> Dry Corn | E19: =IF(Inputs!$F$12,Inputs!$F$11,"") -> Dry Soybeans | G19: Total | H19: Per Acre
A20: Total Expenses: | B20: =IF(Inputs!C12,B17,"") -> 123.9932692 | C20: =IF(Inputs!D12,C17,"") -> 123.9932692 | D20: =IF(Inputs!E12,D17,"") -> 40 | E20: =IF(Inputs!F12,E17,"") -> 40 | G20: =IF(Inputs!J12,SUMPRODUCT($B$7:$E$7,B20:E20),"") -> 17319.125 | H20: =IF(Inputs!$J$12,G20/Inputs!$J$13,"") -> 108.2445312
A21: Revenue Less Total Expenses: | B21: =IF(Inputs!C12,B11-B20,"") -> 176.0067308 | C21: =IF(Inputs!D12,C11-C20,"") -> 176.0067308 | D21: =IF(Inputs!E12,D11-D20,"") -> 160 | E21: =IF(Inputs!F12,E11-E20,"") -> 160 | G21: =IF(Inputs!J12,G11-G20,"") -> 27680.875 | H21: =IF(Inputs!$J$12,G21/Inputs!$J$13,"") -> 173.0054688
A23: Landowner Cash Lease Breakeven: | B23: =IF(Inputs!$C$12,Inputs!$C$11,"") -> Irr Corn | C23: =IF(Inputs!$D$12,Inputs!$D$11,"") -> Irr Soybeans | D23: =IF(Inputs!$E$12,Inputs!$E$11,"") -> Dry Corn | E23: =IF(Inputs!$F$12,Inputs!$F$11,"") -> Dry Soybeans
A24: Breakeven Cash Rent to Cover Total Costs: | B24: =IF(Inputs!C12,B17,"") -> 123.9932692 | C24: =IF(Inputs!D12,C17,"") -> 123.9932692 | D24: =IF(Inputs!E12,D17,"") -> 40 | E24: =IF(Inputs!F12,E17,"") -> 40 | G24: ----- | H24: -----
A30: TENANT CASH LEASE BUDGET SUMMARY
A32: =Inputs!H4 -> Average Joe Tenant
A33: =Inputs!B9 -> Pivot Irrigated Quarter Section with Dryland Corners
A35: Crops: | B35: =IF(Inputs!$C$12,Inputs!$C$11,"") -> Irr Corn | C35: =IF(Inputs!$D$12,Inputs!$D$11,"") -> Irr Soybeans | D35: =IF(Inputs!$E$12,Inputs!$E$11,"") -> Dry Corn | E35: =IF(Inputs!$F$12,Inputs!$F$11,"") -> Dry Soybeans | G35: Total
A36: Total Acres: | B36: =IF(Inputs!C12,Inputs!$C$12,"") -> 65 | C36: =IF(Inputs!D12,Inputs!$D$12,"") -> 65 | D36: =IF(Inputs!E12,Inputs!$E$12,"") -> 15 | E36: =IF(Inputs!F12,Inputs!$F$12,"") -> 15 | G36: =IF(Inputs!J12,SUM(B36:E36),"") -> 160 | H36: -----
A38: Tenant Cash Lease Revenue: | B38: =IF(Inputs!$C$12,Inputs!$C$11,"") -> Irr Corn | C38: =IF(Inputs!$D$12,Inputs!$D$11,"") -> Irr Soybeans | D38: =IF(Inputs!$E$12,Inputs!$E$11,"") -> Dry Corn | E38: =IF(Inputs!$F$12,Inputs!$F$11,"") -> Dry Soybeans | G38: Total | H38: Per Acre
A39: Yield per Acre: | B39: =IF(Inputs!C12,Inputs!C17,"") -> 225 | C39: =IF(Inputs!D12,Inputs!D17,"") -> 65 | D39: =IF(Inputs!E12,Inputs!E17,"") -> 125 | E39: =IF(Inputs!F12,Inputs!F17,"") -> 43 | G39: ----- | H39: -----
A40: Price per Unit: | B40: =IF(Inputs!C12,Inputs!C18,"") -> 3.65 | C40: =IF(Inputs!D12,Inputs!D18,"") -> 9 | D40: =IF(Inputs!E12,Inputs!E18,"") -> 3.65 | E40: =IF(Inputs!F12,Inputs!F18,"") -> 9 | G40: ----- | H40: -----
A41: Crop Revenue | B41: =IF(Inputs!C12,B39*B40,"") -> 821.25 | C41: =IF(Inputs!D12,C39*C40,"") -> 585 | D41: =IF(Inputs!E12,D39*D40,"") -> 456.25 | E41: =IF(Inputs!F12,E39*E40,"") -> 387 | G41: =IF(Inputs!J12,SUMPRODUCT($B$36:$E$36,B41:E41),"") -> 104055 | H41: =IF(Inputs!$J$12,G41/Inputs!$J$13,"") -> 650.34375
A42: Net Gov't Payments: | B42: =IF(Inputs!C12,Inputs!C20,"") -> 0 | C42: =IF(Inputs!D12,Inputs!D20,"") -> 0 | D42: =IF(Inputs!E12,Inputs!E20,"") -> 0 | E42: =IF(Inputs!F12,Inputs!F20,"") -> 0 | G42: =IF(Inputs!J12,SUMPRODUCT($B$36:$E$36,B42:E42),"") -> 0 | H42: =IF(Inputs!$J$12,G42/Inputs!$J$13,"") -> 0
A43: =Inputs!A21 -> Other Income per Acre | B43: =IF(Inputs!C12,Inputs!C21,"") -> 0 | C43: =IF(Inputs!D12,Inputs!D21,"") -> 0 | D43: =IF(Inputs!E12,Inputs!E21,"") -> 0 | E43: =IF(Inputs!F12,Inputs!F21,"") -> 0 | G43: =IF(Inputs!J12,SUMPRODUCT($B$36:$E$36,B43:E43),"") -> 0 | H43: =IF(Inputs!$J$12,G43/Inputs!$J$13,"") -> 0
A44: Total Revenue: | B44: =IF(Inputs!C12,SUM(B41:B43),"") -> 821.25 | C44: =IF(Inputs!D12,SUM(C41:C43),"") -> 585 | D44: =IF(Inputs!E12,SUM(D41:D43),"") -> 456.25 | E44: =IF(Inputs!F12,SUM(E41:E43),"") -> 387 | G44: =IF(Inputs!J12,SUMPRODUCT($B$36:$E$36,B44:E44),"") -> 104055 | H44: =IF(Inputs!$J$12,G44/Inputs!$J$13,"") -> 650.34375
A46: Tenant Cash Lease Variable Expenses: | B46: =IF(Inputs!$C$12,Inputs!$C$11,"") -> Irr Corn | C46: =IF(Inputs!$D$12,Inputs!$D$11,"") -> Irr Soybeans | D46: =IF(Inputs!$E$12,Inputs!$E$11,"") -> Dry Corn | E46: =IF(Inputs!$F$12,Inputs!$F$11,"") -> Dry Soybeans | G46: Total | H46: Per Acre
A47: Seed: | B47: =IF(Inputs!C12,Inputs!C29,"") -> 85.33 | C47: =IF(Inputs!D12,Inputs!D29,"") -> 48.4 | D47: =IF(Inputs!E12,Inputs!E29,"") -> 48.76 | E47: =IF(Inputs!F12,Inputs!F29,"") -> 44 | G47: =IF(Inputs!$J$12,SUMPRODUCT($B$36:$E$36,B47:E47),"") -> 10083.85 | H47: =IF(Inputs!$J$12,G47/Inputs!$J$13,"") -> 63.0240625
A48: Fertilizer: | B48: =IF(Inputs!C12,Inputs!C38,"") -> 160.335 | C48: =IF(Inputs!D12,Inputs!D38,"") -> 1.122 | D48: =IF(Inputs!E12,Inputs!E38,"") -> 80.585 | E48: =IF(Inputs!F12,Inputs!F38,"") -> 1.122 | G48: =IF(Inputs!$J$12,SUMPRODUCT($B$36:$E$36,B48:E48),"") -> 11720.31 | H48: =IF(Inputs!$J$12,G48/Inputs!$J$13,"") -> 73.2519375
A49: Herbicide: | B49: =IF(Inputs!C12,Inputs!C50,"") -> 64.9625 | C49: =IF(Inputs!D12,Inputs!D50,"") -> 31.74 | D49: =IF(Inputs!E12,Inputs!E50,"") -> 36.8525 | E49: =IF(Inputs!F12,Inputs!F50,"") -> 31.74 | G49: =IF(Inputs!$J$12,SUMPRODUCT($B$36:$E$36,B49:E49),"") -> 7314.55 | H49: =IF(Inputs!$J$12,G49/Inputs!$J$13,"") -> 45.7159375
A50: Insecticide & Fungicide: | B50: =IF(Inputs!C12,Inputs!C58,"") -> 1.17056 | C50: =IF(Inputs!D12,Inputs!D58,"") -> 12.4479 | D50: =IF(Inputs!E12,Inputs!E58,"") -> 1.17056 | E50: =IF(Inputs!F12,Inputs!F58,"") -> 0.9504 | G50: =IF(Inputs!$J$12,SUMPRODUCT($B$36:$E$36,B50:E50),"") -> 917.0143 | H50: =IF(Inputs!$J$12,G50/Inputs!$J$13,"") -> 5.731339375
A51: Crop Insurance: | B51: =IF(Inputs!C12,Inputs!C65,"") -> 10 | C51: =IF(Inputs!D12,Inputs!D65,"") -> 8.5 | D51: =IF(Inputs!E12,Inputs!E65,"") -> 23 | E51: =IF(Inputs!F12,Inputs!F65,"") -> 16 | G51: =IF(Inputs!$J$12,SUMPRODUCT($B$36:$E$36,B51:E51),"") -> 1787.5 | H51: =IF(Inputs!$J$12,G51/Inputs!$J$13,"") -> 11.171875
A52: Crop Consulting: | B52: =IF(Inputs!C12,Inputs!C69,"") -> 10 | C52: =IF(Inputs!D12,Inputs!D69,"") -> 10 | D52: =IF(Inputs!E12,Inputs!E69,"") -> 7 | E52: =IF(Inputs!F12,Inputs!F69,"") -> 7 | G52: =IF(Inputs!$J$12,SUMPRODUCT($B$36:$E$36,B52:E52),"") -> 1510 | H52: =IF(Inputs!$J$12,G52/Inputs!$J$13,"") -> 9.4375
A53: Machinery/Field Operations: | B53: =IF(Inputs!C12,Inputs!C86,"") -> 130.9 | C53: =IF(Inputs!D12,Inputs!D86,"") -> 103.78 | D53: =IF(Inputs!E12,Inputs!E86,"") -> 38.58 | E53: =IF(Inputs!F12,Inputs!F86,"") -> 34.72 | G53: =IF(Inputs!$J$12,SUMPRODUCT($B$36:$E$36,B53:E53),"") -> 16353.7 | H53: =IF(Inputs!$J$12,G53/Inputs!$J$13,"") -> 102.210625
A54: Custom Operations: | B54: =IF(Inputs!C12,Inputs!C93,"") -> 48.85 | C54: =IF(Inputs!D12,Inputs!D93,"") -> 12.05 | D54: =IF(Inputs!E12,Inputs!E93,"") -> 27.1 | E54: =IF(Inputs!F12,Inputs!F93,"") -> 6.13 | G54: =IF(Inputs!$J$12,SUMPRODUCT($B$36:$E$36,B54:E54),"") -> 4456.95 | H54: =IF(Inputs!$J$12,G54/Inputs!$J$13,"") -> 27.8559375
A55: Irrigation: | B55: =IF(Inputs!C12,Inputs!C98,"") -> 67.5 | C55: =IF(Inputs!D12,Inputs!D98,"") -> 45 | D55: =IF(Inputs!E12,Inputs!E98,"") -> 0 | E55: =IF(Inputs!F12,Inputs!F98,"") -> 0 | G55: =IF(Inputs!$J$12,SUMPRODUCT($B$36:$E$36,B55:E55),"") -> 7312.5 | H55: =IF(Inputs!$J$12,G55/Inputs!$J$13,"") -> 45.703125
A56: Labor/Management: | B56: =IF(Inputs!C12,Inputs!C105,"") -> 28.33 | C56: =IF(Inputs!D12,Inputs!D105,"") -> 25.55333333 | D56: =IF(Inputs!E12,Inputs!E105,"") -> 20 | E56: =IF(Inputs!F12,Inputs!F105,"") -> 20 | G56: =IF(Inputs!$J$12,SUMPRODUCT($B$36:$E$36,B56:E56),"") -> 4102.416667 | H56: =IF(Inputs!$J$12,G56/Inputs!$J$13,"") -> 25.64010417
A57: Drying, Storage, Transportation: | B57: =IF(Inputs!C12,Inputs!C112,"") -> 34.875 | C57: =IF(Inputs!D12,Inputs!D112,"") -> 7.15 | D57: =IF(Inputs!E12,Inputs!E112,"") -> 19.375 | E57: =IF(Inputs!F12,Inputs!F112,"") -> 4.73 | G57: =IF(Inputs!$J$12,SUMPRODUCT($B$36:$E$36,B57:E57),"") -> 3093.2 | H57: =IF(Inputs!$J$12,G57/Inputs!$J$13,"") -> 19.3325
A58: Rent: | B58: =IF(Inputs!C12,Inputs!C116,"") -> 300 | C58: =IF(Inputs!D12,Inputs!D116,"") -> 300 | D58: =IF(Inputs!E12,Inputs!E116,"") -> 200 | E58: =IF(Inputs!F12,Inputs!F116,"") -> 200 | G58: =IF(Inputs!$J$12,SUMPRODUCT($B$36:$E$36,B58:E58),"") -> 45000 | H58: =IF(Inputs!$J$12,G58/Inputs!$J$13,"") -> 281.25
A59: Interest on Variable Expenses: | B59: =IF(Inputs!C12,B127,"") -> 19.8063265 | C59: =IF(Inputs!D12,C127,"") -> 11.39358083 | D59: =IF(Inputs!E12,D127,"") -> 10.0605765 | E59: =IF(Inputs!F12,E127,"") -> 6.65981 | G59: =IF(Inputs!$J$12,SUMPRODUCT($B$36:$E$36,B59:E59),"") -> 2278.799774 | H59: =IF(Inputs!$J$12,G59/Inputs!$J$13,"") -> 14.24249859
A60: Total Variable Expenses: | B60: =IF(Inputs!C12,SUM(B47:B59),"") -> 962.0593865 | C60: =IF(Inputs!D12,SUM(C47:C59),"") -> 617.1368142 | D60: =IF(Inputs!E12,SUM(D47:D59),"") -> 512.4836365 | E60: =IF(Inputs!F12,SUM(E47:E59),"") -> 373.05221 | G60: =IF(Inputs!$J$12,SUMPRODUCT($B$36:$E$36,B60:E60),"") -> 115930.7907 | H60: =IF(Inputs!$J$12,G60/Inputs!$J$13,"") -> 724.5674421
A62: Tenant Cash Lease Fixed Expenses: | B62: =IF(Inputs!$C$12,Inputs!$C$11,"") -> Irr Corn | C62: =IF(Inputs!$D$12,Inputs!$D$11,"") -> Irr Soybeans | D62: =IF(Inputs!$E$12,Inputs!$E$11,"") -> Dry Corn | E62: =IF(Inputs!$F$12,Inputs!$F$11,"") -> Dry Soybeans | G62: Total | H62: Per Acre
A63: Machinery/Field Operations: | B63: =IF(Inputs!C12,Inputs!C147,"") -> 40.445 | C63: =IF(Inputs!D12,Inputs!D147,"") -> 21.45 | D63: =IF(Inputs!E12,Inputs!E147,"") -> 28.375 | E63: =IF(Inputs!F12,Inputs!F147,"") -> 20.28 | G63: =IF(Inputs!$J$12,SUMPRODUCT($B$36:$E$36,B63:E63),"") -> 4753 | H63: =IF(Inputs!$J$12,G63/Inputs!$J$13,"") -> 29.70625
A64: Irrigation: | B64: =IF(Inputs!C12,Inputs!C264,"") -> 0 | C64: =IF(Inputs!D12,Inputs!D264,"") -> 0 | D64: =IF(Inputs!E12,Inputs!E264,"") -> 0 | E64: =IF(Inputs!F12,Inputs!F264,"") -> 0 | G64: =IF(Inputs!$J$12,SUMPRODUCT($B$36:$E$36,B64:E64),"") -> 0 | H64: =IF(Inputs!$J$12,G64/Inputs!$J$13,"") -> 0
A65: Total Fixed Expenses: | B65: =IF(Inputs!C12,SUM(B63:B64),"") -> 40.445 | C65: =IF(Inputs!D12,SUM(C63:C64),"") -> 21.45 | D65: =IF(Inputs!E12,SUM(D63:D64),"") -> 28.375 | E65: =IF(Inputs!F12,SUM(E63:E64),"") -> 20.28 | G65: =IF(Inputs!$J$12,SUMPRODUCT($B$36:$E$36,B65:E65),"") -> 4753 | H65: =IF(Inputs!$J$12,G65/Inputs!$J$13,"") -> 29.70625
A67: Tenant Cash Lease Totals: | B67: =IF(Inputs!$C$12,Inputs!$C$11,"") -> Irr Corn | C67: =IF(Inputs!$D$12,Inputs!$D$11,"") -> Irr Soybeans | D67: =IF(Inputs!$E$12,Inputs!$E$11,"") -> Dry Corn | E67: =IF(Inputs!$F$12,Inputs!$F$11,"") -> Dry Soybeans | G67: Total | H67: Per Acre
A68: Total Expenses: | B68: =IF(Inputs!C12,B60+B65,"") -> 1002.504387 | C68: =IF(Inputs!D12,C60+C65,"") -> 638.5868142 | D68: =IF(Inputs!E12,D60+D65,"") -> 540.8586365 | E68: =IF(Inputs!F12,E60+E65,"") -> 393.33221 | G68: =IF(Inputs!J12,G60+G65,"") -> 120683.7907 | H68: =IF(Inputs!$J$12,G68/Inputs!$J$13,"") -> 754.2736921
A69: Revenue Less Variable Expenses: | B69: =IF(Inputs!C12,B44-B60,"") -> -140.8093865 | C69: =IF(Inputs!D12,C44-C60,"") -> -32.13681417 | D69: =IF(Inputs!E12,D44-D60,"") -> -56.2336365 | E69: =IF(Inputs!F12,E44-E60,"") -> 13.94779 | G69: =IF(Inputs!J12,G44-G60,"") -> -11875.79074 | H69: =IF(Inputs!$J$12,G69/Inputs!$J$13,"") -> -74.22369213
A70: Revenue Less Total Expenses: | B70: =IF(Inputs!C12,B44-B60-B65,"") -> -181.2543865 | C70: =IF(Inputs!D12,C44-C60-C65,"") -> -53.58681417 | D70: =IF(Inputs!E12,D44-D60-D65,"") -> -84.6086365 | E70: =IF(Inputs!F12,E44-E60-E65,"") -> -6.33221 | G70: =IF(Inputs!J12,G44-G60-G65,"") -> -16628.79074 | H70: =IF(Inputs!$J$12,G70/Inputs!$J$13,"") -> -103.9299421
A72: Tenant Cash Lease Breakevens: | B72: =IF(Inputs!$C$12,Inputs!$C$11,"") -> Irr Corn | C72: =IF(Inputs!$D$12,Inputs!$D$11,"") -> Irr Soybeans | D72: =IF(Inputs!$E$12,Inputs!$E$11,"") -> Dry Corn | E72: =IF(Inputs!$F$12,Inputs!$F$11,"") -> Dry Soybeans | G72: Total | H72: Per Acre
A73: Breakeven Rent to Cover Variable Costs: | B73: =IF(Inputs!C12,B136,"") -> 160.9038558 | C73: =IF(Inputs!D12,C136,"") -> 268.218021 | D73: =IF(Inputs!E12,D136,"") -> 144.438034 | E73: =IF(Inputs!F12,E136,"") -> 213.7421926 | G73: =IF(Inputs!J12,G136,"") -> 33265.62539 | H73: =IF(Inputs!$J$12,G73/Inputs!$J$13,"") -> 207.9101587
A74: Breakeven Rent to Cover Total Costs: | B74: =IF(Inputs!C12,B140,"") -> 120.9644183 | C74: =IF(Inputs!D12,C140,"") -> 247.036146 | D74: =IF(Inputs!E12,D140,"") -> 116.4177215 | E74: =IF(Inputs!F12,E140,"") -> 193.7156926 | G74: =IF(Inputs!J12,G140,"") -> 28572.03789 | H74: =IF(Inputs!$J$12,G74/Inputs!$J$13,"") -> 178.5752368
A76: Breakeven Yield to Cover Variable Costs: | B76: =IF(Inputs!C12,(B60-SUM(B42:B43))/B40,"") -> 263.5779141 | C76: =IF(Inputs!D12,(C60-SUM(C42:C43))/C40,"") -> 68.57075713 | D76: =IF(Inputs!E12,(D60-SUM(D42:D43))/D40,"") -> 140.4064758 | E76: =IF(Inputs!F12,(E60-SUM(E42:E43))/E40,"") -> 41.45024556 | G76: ----- | H76: -----
A77: Breakeven Yield to Cover Total Costs: | B77: =IF(Inputs!C12,(B68-SUM(B42:B43))/B40,"") -> 274.658736 | C77: =IF(Inputs!D12,(C68-SUM(C42:C43))/C40,"") -> 70.95409046 | D77: =IF(Inputs!E12,(D68-SUM(D42:D43))/D40,"") -> 148.1804484 | E77: =IF(Inputs!F12,(E68-SUM(E42:E43))/E40,"") -> 43.70357889 | G77: ----- | H77: -----
A79: Breakeven Price to Cover Variable Costs: | B79: =IF(Inputs!C12,(B60-SUM(B42:B43))/B39,"") -> 4.275819496 | C79: =IF(Inputs!D12,(C60-SUM(C42:C43))/C39,"") -> 9.494412526 | D79: =IF(Inputs!E12,(D60-SUM(D42:D43))/D39,"") -> 4.099869092 | E79: =IF(Inputs!F12,(E60-SUM(E42:E43))/E39,"") -> 8.675632791 | G79: ----- | H79: -----
A80: Breakeven Price to Cover Total Costs: | B80: =IF(Inputs!C12,(B68-SUM(B42:B43))/B39,"") -> 4.455575051 | C80: =IF(Inputs!D12,(C68-SUM(C42:C43))/C39,"") -> 9.824412526 | D80: =IF(Inputs!E12,(D68-SUM(D42:D43))/D39,"") -> 4.326869092 | E80: =IF(Inputs!F12,(E68-SUM(E42:E43))/E39,"") -> 9.147260698 | G80: ----- | H80: -----
A121: This information is used in calculations:
A123: Tenant:
A125: Interest Expense: | B125: =Inputs!$C$11 -> Irr Corn | C125: =Inputs!$D$11 -> Irr Soybeans | D125: =Inputs!$E$11 -> Dry Corn | E125: =Inputs!$F$11 -> Dry Soybeans | G125: Total
A126: Principle | B126: =Inputs!C29+Inputs!C38+Inputs!C50+Inputs!C58+Inputs!C65+Inputs!C69+Inputs!C86+Inputs!C93+Inputs!C98+Inputs!C105+Inputs!C112+(Inputs!C116*Inputs!$C$171) -> 792.25306 | C126: =Inputs!D29+Inputs!D38+Inputs!D50+Inputs!D58+Inputs!D65+Inputs!D69+Inputs!D86+Inputs!D93+Inputs!D98+Inputs!D105+Inputs!D112+(Inputs!D116*Inputs!$C$171) -> 455.7432333 | D126: =Inputs!E29+Inputs!E38+Inputs!E50+Inputs!E58+Inputs!E65+Inputs!E69+Inputs!E86+Inputs!E93+Inputs!E98+Inputs!E105+Inputs!E112+(Inputs!E116*Inputs!$C$171) -> 402.42306 | E126: =Inputs!F29+Inputs!F38+Inputs!F50+Inputs!F58+Inputs!F65+Inputs!F69+Inputs!F86+Inputs!F93+Inputs!F98+Inputs!F105+Inputs!F112+(Inputs!F116*Inputs!$C$171) -> 266.3924 | G126: =SUMPRODUCT($B$36:$E$36,B126:E126) -> 91151.99097
A127: Interest on Variable Expenses: | B127: =B126*Inputs!$C$175*(Inputs!$C$176/12) -> 19.8063265 | C127: =C126*Inputs!$C$175*(Inputs!$C$176/12) -> 11.39358083 | D127: =D126*Inputs!$C$175*(Inputs!$C$176/12) -> 10.0605765 | E127: =E126*Inputs!$C$175*(Inputs!$C$176/12) -> 6.65981 | G127: =SUMPRODUCT($B$36:$E$36,B127:E127) -> 2278.799774
A130: Breakeven Rent:
A131: Variable Expenses less Rent | B131: =Inputs!C29+Inputs!C50+Inputs!C58+Inputs!C38+Inputs!C69+Inputs!C65+Inputs!C112+Inputs!C86+Inputs!C98+Inputs!C93+Inputs!C105 -> 642.25306 | C131: =Inputs!D29+Inputs!D50+Inputs!D58+Inputs!D38+Inputs!D69+Inputs!D65+Inputs!D112+Inputs!D86+Inputs!D98+Inputs!D93+Inputs!D105 -> 305.7432333 | D131: =Inputs!E29+Inputs!E50+Inputs!E58+Inputs!E38+Inputs!E69+Inputs!E65+Inputs!E112+Inputs!E86+Inputs!E98+Inputs!E93+Inputs!E105 -> 302.42306 | E131: =Inputs!F29+Inputs!F50+Inputs!F58+Inputs!F38+Inputs!F69+Inputs!F65+Inputs!F112+Inputs!F86+Inputs!F98+Inputs!F93+Inputs!F105 -> 166.3924 | G131: =SUMPRODUCT($B$36:$E$36,B131:E131) -> 68651.99097
A132: Interest on Variable Expenses | B132: =B131*Inputs!$C$175*(Inputs!$C$176/12) -> 16.0563265 | C132: =C131*Inputs!$C$175*(Inputs!$C$176/12) -> 7.643580833 | D132: =D131*Inputs!$C$175*(Inputs!$C$176/12) -> 7.5605765 | E132: =E131*Inputs!$C$175*(Inputs!$C$176/12) -> 4.15981 | G132: =SUMPRODUCT($B$36:$E$36,B132:E132) -> 1716.299774
A133: Variable:
A134: Breakeven Rent Variable - No Rent Interest | B134: =IF(Inputs!C12,B44-B131-B132,"") -> 162.9406135 | C134: =IF(Inputs!D12,C44-C131-C132,"") -> 271.6131858 | D134: =IF(Inputs!E12,D44-D131-D132,"") -> 146.2663635 | E134: =IF(Inputs!F12,E44-E131-E132,"") -> 216.44779 | G134: 33686.70926
A135: Interest on Break Variable | B135: =IF(Inputs!C12,(B134*Inputs!$C$171)*Inputs!$C$175*(Inputs!$C$176/12),"") -> 2.036757669 | C135: =IF(Inputs!D12,(C134*Inputs!$C$171)*Inputs!$C$175*(Inputs!$C$176/12),"") -> 3.395164823 | D135: =IF(Inputs!E12,(D134*Inputs!$C$171)*Inputs!$C$175*(Inputs!$C$176/12),"") -> 1.828329544 | E135: =IF(Inputs!F12,(E134*Inputs!$C$171)*Inputs!$C$175*(Inputs!$C$176/12),"") -> 2.705597375 | G135: 421.0838657
A136: Breakeven Rent Variable - Interest: | B136: =IF(Inputs!C12,B134-B135,"") -> 160.9038558 | C136: =IF(Inputs!D12,C134-C135,"") -> 268.218021 | D136: =IF(Inputs!E12,D134-D135,"") -> 144.438034 | E136: =IF(Inputs!F12,E134-E135,"") -> 213.7421926 | G136: 33265.62539
A137: Total:
A138: Breakeven Rent Total - No Rent Interest | B138: =IF(Inputs!C12,B44-B65-B131-B132,"0") -> 122.4956135 | C138: =IF(Inputs!D12,C44-C65-C131-C132,"0") -> 250.1631858 | D138: =IF(Inputs!E12,D44-D65-D131-D132,"0") -> 117.8913635 | E138: =IF(Inputs!F12,E44-E65-E131-E132,"0") -> 196.16779 | G138: 28933.70926
A139: Interest on Break Total | B139: =(B138*Inputs!$C$171)*Inputs!$C$175*(Inputs!$C$176/12) -> 1.531195169 | C139: =(C138*Inputs!$C$171)*Inputs!$C$175*(Inputs!$C$176/12) -> 3.127039823 | D139: =(D138*Inputs!$C$171)*Inputs!$C$175*(Inputs!$C$176/12) -> 1.473642044 | E139: =(E138*Inputs!$C$171)*Inputs!$C$175*(Inputs!$C$176/12) -> 2.452097375 | G139: 361.6713657
A140: Breakeven Rent Total - Interest: | B140: =B138-B139 -> 120.9644183 | C140: =C138-C139 -> 247.036146 | D140: =D138-D139 -> 116.4177215 | E140: =E138-E139 -> 193.7156926 | G140: 28572.03789

Sheet Cash Sensitivity
A1: TENANT CASH LEASE SENSITIVITY MATRIX
A3: =Inputs!H4 -> Average Joe Tenant
A4: =Inputs!B9 -> Pivot Irrigated Quarter Section with Dryland Corners
A6: Tenant Revenue Less Variable Costs (per Acre)
A7: on a Cash Lease under Various Yields and Prices
D9: Yields | E9: Below | G9: Average | H9: Above
E10: 0.25 | F10: 0.1 | H10: 0.1 | I10: 0.25
D11: =IF(Inputs!$C$12,Inputs!$C$11,"") -> Irr Corn | E11: =IF(Inputs!$C$12,Inputs!$C$17*0.75,"") -> 168.75 | F11: =IF(Inputs!$C$12,Inputs!$C$17*0.9,"") -> 202.5 | G11: =IF(Inputs!$C$12,Inputs!$C$17,"") -> 225 | H11: =IF(Inputs!$C$12,Inputs!$C$17*1.1,"") -> 247.5 | I11: =IF(Inputs!$C$12,Inputs!$C$17*1.25,"") -> 281.25
D12: =IF(Inputs!$D$12,Inputs!$D$11,"") -> Irr Soybeans | E12: =IF(Inputs!$D$12,Inputs!$D$17*0.75,"") -> 48.75 | F12: =IF(Inputs!$D$12,Inputs!$D$17*0.9,"") -> 58.5 | G12: =IF(Inputs!$D$12,Inputs!$D$17,"") -> 65 | H12: =IF(Inputs!$D$12,Inputs!$D$17*1.1,"") -> 71.5 | I12: =IF(Inputs!$D$12,Inputs!$D$17*1.25,"") -> 81.25
D13: =IF(Inputs!$E$12,Inputs!$E$11,"") -> Dry Corn | E13: =IF(Inputs!$E$12,Inputs!$E$17*0.75,"") -> 93.75 | F13: =IF(Inputs!$E$12,Inputs!$E$17*0.9,"") -> 112.5 | G13: =IF(Inputs!$E$12,Inputs!$E$17,"") -> 125 | H13: =IF(Inputs!$E$12,Inputs!$E$17*1.1,"") -> 137.5 | I13: =IF(Inputs!$E$12,Inputs!$E$17*1.25,"") -> 156.25
B14: Prices | D14: =IF(Inputs!$F$12,Inputs!$F$11,"") -> Dry Soybeans | E14: =IF(Inputs!$F$12,Inputs!$F$17*0.75,"") -> 32.25 | F14: =IF(Inputs!$F$12,Inputs!$F$17*0.9,"") -> 38.7 | G14: =IF(Inputs!$F$12,Inputs!$F$17,"") -> 43 | H14: =IF(Inputs!$F$12,Inputs!$F$17*1.1,"") -> 47.3 | I14: =IF(Inputs!$F$12,Inputs!$F$17*1.25,"") -> 53.75
C15: =IF(Inputs!$C$12,Inputs!$C$11,"") -> Irr Corn | D15: =IF(Inputs!$C$12,Inputs!$C$18*0.75,"") -> 2.7375 | E15: =IF(Inputs!$J$12,(SUMPRODUCT(D15:D18,$E$11:$E$14,$F$146:$F$149)+'Cash Summary'!$G$42+'Cash Summary'!$G$43-'Cash Summary'!$G$60+($E$10*'Cash Summary'!$G$57)+($E$10*'Cash Summary'!$G$57*(Inputs!$C$175*(Inputs!$C$176/12))))/Inputs!J13,"") -> -353.7951296 | F15: =IF(Inputs!$J$12,(SUMPRODUCT(D15:D18,$F$11:$F$14,$F$146:$F$149)+'Cash Summary'!$G$42+'Cash Summary'!$G$43-'Cash Summary'!$G$60+($F$10*'Cash Summary'!$G$57)+($F$10*'Cash Summary'!$G$57*(Inputs!$C$175*(Inputs!$C$176/12))))/Inputs!J13,"") -> -283.6038296 | G15: =IF(Inputs!$J$12,(SUMPRODUCT(D15:D18,$G$11:$G$14,$F$146:$F$149)+'Cash Summary'!$G$42+'Cash Summary'!$G$43-'Cash Summary'!$G$60)/Inputs!J13,"") -> -236.8096296 | H15: =IF(Inputs!$J$12,(SUMPRODUCT(D15:D18,$H$11:$H$14,$F$146:$F$149)+'Cash Summary'!$G$42+'Cash Summary'!$G$43-'Cash Summary'!$G$60-($H$10*'Cash Summary'!$G$57)-($H$10*'Cash Summary'!$G$57*(Inputs!$C$175*(Inputs!$C$176/12))))/Inputs!J13,"") -> -190.0154296 | I15: =IF(Inputs!$J$12,(SUMPRODUCT(D15:D18,$I$11:$I$14,$F$146:$F$149)+'Cash Summary'!$G$42+'Cash Summary'!$G$43-'Cash Summary'!$G$60-($I$10*'Cash Summary'!$G$57)-($I$10*'Cash Summary'!$G$57*(Inputs!$C$175*(Inputs!$C$176/12))))/Inputs!J13,"") -> -119.8241296
B16: 0.25 | C16: =IF(Inputs!$D$12,Inputs!$D$11,"") -> Irr Soybeans | D16: =IF(Inputs!$D$12,Inputs!$D$18*0.75,"") -> 6.75
B17: Below | C17: =IF(Inputs!$E$12,Inputs!$E$11,"") -> Dry Corn | D17: =IF(Inputs!$E$12,Inputs!$E$18*0.75,"") -> 2.7375
C18: =IF(Inputs!$F$12,Inputs!$F$11,"") -> Dry Soybeans | D18: =IF(Inputs!$F$12,Inputs!$F$18*0.75,"") -> 6.75
C19: =IF(Inputs!$C$12,Inputs!$C$11,"") -> Irr Corn | D19: =IF(Inputs!$C$12,Inputs!$C$18*0.9,"") -> 3.285 | E19: =IF(Inputs!$J$12,(SUMPRODUCT(D19:D22,$E$11:$E$14,$F$146:$F$149)+'Cash Summary'!$G$42+'Cash Summary'!$G$43-'Cash Summary'!$G$60+($E$10*'Cash Summary'!$G$57)+($E$10*'Cash Summary'!$G$57*(Inputs!$C$175*(Inputs!$C$176/12))))/Inputs!J13,"") -> -280.6314578 | F19: =IF(Inputs!$J$12,(SUMPRODUCT(D19:D22,$F$11:$F$14,$F$146:$F$149)+'Cash Summary'!$G$42+'Cash Summary'!$G$43-'Cash Summary'!$G$60+($F$10*'Cash Summary'!$G$57)+($F$10*'Cash Summary'!$G$57*(Inputs!$C$175*(Inputs!$C$176/12))))/Inputs!J13,"") -> -195.8074234 | G19: =IF(Inputs!$J$12,(SUMPRODUCT(D19:D22,$G$11:$G$14,$F$146:$F$149)+'Cash Summary'!$G$42+'Cash Summary'!$G$43-'Cash Summary'!$G$60)/Inputs!J13,"") -> -139.2580671 | H19: =IF(Inputs!$J$12,(SUMPRODUCT(D19:D22,$H$11:$H$14,$F$146:$F$149)+'Cash Summary'!$G$42+'Cash Summary'!$G$43-'Cash Summary'!$G$60-($H$10*'Cash Summary'!$G$57)-($H$10*'Cash Summary'!$G$57*(Inputs!$C$175*(Inputs!$C$176/12))))/Inputs!J13,"") -> -82.70871088 | I19: =IF(Inputs!$J$12,(SUMPRODUCT(D19:D22,$I$11:$I$14,$F$146:$F$149)+'Cash Summary'!$G$42+'Cash Summary'!$G$43-'Cash Summary'!$G$60-($I$10*'Cash Summary'!$G$57)-($I$10*'Cash Summary'!$G$57*(Inputs!$C$175*(Inputs!$C$176/12))))/Inputs!J13,"") -> 2.115323495
B20: 0.1 | C20: =IF(Inputs!$D$12,Inputs!$D$11,"") -> Irr Soybeans | D20: =IF(Inputs!$D$12,Inputs!$D$18*0.9,"") -> 8.1
B21: Below | C21: =IF(Inputs!$E$12,Inputs!$E$11,"") -> Dry Corn | D21: =IF(Inputs!$E$12,Inputs!$E$18*0.9,"") -> 3.285
C22: =IF(Inputs!$F$12,Inputs!$F$11,"") -> Dry Soybeans | D22: =IF(Inputs!$F$12,Inputs!$F$18*0.9,"") -> 8.1
C23: =IF(Inputs!$C$12,Inputs!$C$11,"") -> Irr Corn | D23: =IF(Inputs!$C$12,Inputs!$C$18,"") -> 3.65 | E23: =IF(Inputs!$J$12,(SUMPRODUCT(D23:D26,$E$11:$E$14,$F$146:$F$149)+'Cash Summary'!$G$42+'Cash Summary'!$G$43-'Cash Summary'!$G$60+($E$10*'Cash Summary'!$G$57)+($E$10*'Cash Summary'!$G$57*(Inputs!$C$175*(Inputs!$C$176/12))))/Inputs!J13,"") -> -231.8556765 | F23: =IF(Inputs!$J$12,(SUMPRODUCT(D23:D26,$F$11:$F$14,$F$146:$F$149)+'Cash Summary'!$G$42+'Cash Summary'!$G$43-'Cash Summary'!$G$60+($F$10*'Cash Summary'!$G$57)+($F$10*'Cash Summary'!$G$57*(Inputs!$C$175*(Inputs!$C$176/12))))/Inputs!J13,"") -> -137.2764859 | G23: =IF(Inputs!$J$12,(SUMPRODUCT(D23:D26,$G$11:$G$14,$F$146:$F$149)+'Cash Summary'!$G$42+'Cash Summary'!$G$43-'Cash Summary'!$G$60)/Inputs!J13,"") -> -74.22369213 | H23: =IF(Inputs!$J$12,(SUMPRODUCT(D23:D26,$H$11:$H$14,$F$146:$F$149)+'Cash Summary'!$G$42+'Cash Summary'!$G$43-'Cash Summary'!$G$60-($H$10*'Cash Summary'!$G$57)-($H$10*'Cash Summary'!$G$57*(Inputs!$C$175*(Inputs!$C$176/12))))/Inputs!J13,"") -> -11.17089838 | I23: =IF(Inputs!$J$12,(SUMPRODUCT(D23:D26,$I$11:$I$14,$F$146:$F$149)+'Cash Summary'!$G$42+'Cash Summary'!$G$43-'Cash Summary'!$G$60-($I$10*'Cash Summary'!$G$57)-($I$10*'Cash Summary'!$G$57*(Inputs!$C$175*(Inputs!$C$176/12))))/Inputs!J13,"") -> 83.40829224
B24: Average | C24: =IF(Inputs!$D$12,Inputs!$D$11,"") -> Irr Soybeans | D24: =IF(Inputs!$D$12,Inputs!$D$18,"") -> 9
C25: =IF(Inputs!$E$12,Inputs!$E$11,"") -> Dry Corn | D25: =IF(Inputs!$E$12,Inputs!$E$18,"") -> 3.65
C26: =IF(Inputs!$F$12,Inputs!$F$11,"") -> Dry Soybeans | D26: =IF(Inputs!$F$12,Inputs!$F$18,"") -> 9
C27: =IF(Inputs!$C$12,Inputs!$C$11,"") -> Irr Corn | D27: =IF(Inputs!$C$12,Inputs!$C$18*1.1,"") -> 4.015 | E27: =IF(Inputs!$J$12,(SUMPRODUCT(D27:D30,$E$11:$E$14,$F$146:$F$149)+'Cash Summary'!$G$42+'Cash Summary'!$G$43-'Cash Summary'!$G$60+($E$10*'Cash Summary'!$G$57)+($E$10*'Cash Summary'!$G$57*(Inputs!$C$175*(Inputs!$C$176/12))))/Inputs!J13,"") -> -183.0798953 | F27: =IF(Inputs!$J$12,(SUMPRODUCT(D27:D30,$F$11:$F$14,$F$146:$F$149)+'Cash Summary'!$G$42+'Cash Summary'!$G$43-'Cash Summary'!$G$60+($F$10*'Cash Summary'!$G$57)+($F$10*'Cash Summary'!$G$57*(Inputs!$C$175*(Inputs!$C$176/12))))/Inputs!J13,"") -> -78.74554838 | G27: =IF(Inputs!$J$12,(SUMPRODUCT(D27:D30,$G$11:$G$14,$F$146:$F$149)+'Cash Summary'!$G$42+'Cash Summary'!$G$43-'Cash Summary'!$G$60)/Inputs!J13,"") -> -9.18931713 | H27: =IF(Inputs!$J$12,(SUMPRODUCT(D27:D30,$H$11:$H$14,$F$146:$F$149)+'Cash Summary'!$G$42+'Cash Summary'!$G$43-'Cash Summary'!$G$60-($H$10*'Cash Summary'!$G$57)-($H$10*'Cash Summary'!$G$57*(Inputs!$C$175*(Inputs!$C$176/12))))/Inputs!J13,"") -> 60.36691412 | I27: =IF(Inputs!$J$12,(SUMPRODUCT(D27:D30,$I$11:$I$14,$F$146:$F$149)+'Cash Summary'!$G$42+'Cash Summary'!$G$43-'Cash Summary'!$G$60-($I$10*'Cash Summary'!$G$57)-($I$10*'Cash Summary'!$G$57*(Inputs!$C$175*(Inputs!$C$176/12))))/Inputs!J13,"") -> 164.701261
B28: 0.1 | C28: =IF(Inputs!$D$12,Inputs!$D$11,"") -> Irr Soybeans | D28: =IF(Inputs!$D$12,Inputs!$D$18*1.1,"") -> 9.9
B29: Above | C29: =IF(Inputs!$E$12,Inputs!$E$11,"") -> Dry Corn | D29: =IF(Inputs!$E$12,Inputs!$E$18*1.1,"") -> 4.015
C30: =IF(Inputs!$F$12,Inputs!$F$11,"") -> Dry Soybeans | D30: =IF(Inputs!$F$12,Inputs!$F$18*1.1,"") -> 9.9
C31: =IF(Inputs!$C$12,Inputs!$C$11,"") -> Irr Corn | D31: =IF(Inputs!$C$12,Inputs!$C$18*1.25,"") -> 4.5625 | E31: =IF(Inputs!$J$12,(SUMPRODUCT(D31:D34,$E$11:$E$14,$F$146:$F$149)+'Cash Summary'!$G$42+'Cash Summary'!$G$43-'Cash Summary'!$G$60+($E$10*'Cash Summary'!$G$57)+($E$10*'Cash Summary'!$G$57*(Inputs!$C$175*(Inputs!$C$176/12))))/Inputs!J13,"") -> -109.9162234 | F31: =IF(Inputs!$J$12,(SUMPRODUCT(D31:D34,$F$11:$F$14,$F$146:$F$149)+'Cash Summary'!$G$42+'Cash Summary'!$G$43-'Cash Summary'!$G$60+($F$10*'Cash Summary'!$G$57)+($F$10*'Cash Summary'!$G$57*(Inputs!$C$175*(Inputs!$C$176/12))))/Inputs!J13,"") -> 9.05085787 | G31: =IF(Inputs!$J$12,(SUMPRODUCT(D31:D34,$G$11:$G$14,$F$146:$F$149)+'Cash Summary'!$G$42+'Cash Summary'!$G$43-'Cash Summary'!$G$60)/Inputs!J13,"") -> 88.36224537 | H31: =IF(Inputs!$J$12,(SUMPRODUCT(D31:D34,$H$11:$H$14,$F$146:$F$149)+'Cash Summary'!$G$42+'Cash Summary'!$G$43-'Cash Summary'!$G$60-($H$10*'Cash Summary'!$G$57)-($H$10*'Cash Summary'!$G$57*(Inputs!$C$175*(Inputs!$C$176/12))))/Inputs!J13,"") -> 167.6736329 | I31: =IF(Inputs!$J$12,(SUMPRODUCT(D31:D34,$I$11:$I$14,$F$146:$F$149)+'Cash Summary'!$G$42+'Cash Summary'!$G$43-'Cash Summary'!$G$60-($I$10*'Cash Summary'!$G$57)-($I$10*'Cash Summary'!$G$57*(Inputs!$C$175*(Inputs!$C$176/12))))/Inputs!J13,"") -> 286.6407141
B32: 0.25 | C32: =IF(Inputs!$D$12,Inputs!$D$11,"") -> Irr Soybeans | D32: =IF(Inputs!$D$12,Inputs!$D$18*1.25,"") -> 11.25
B33: Above | C33: =IF(Inputs!$E$12,Inputs!$E$11,"") -> Dry Corn | D33: =IF(Inputs!$E$12,Inputs!$E$18*1.25,"") -> 4.5625
C34: =IF(Inputs!$F$12,Inputs!$F$11,"") -> Dry Soybeans | D34: =IF(Inputs!$F$12,Inputs!$F$18*1.25,"") -> 11.25
A36: Tenant Revenue Less Total Costs (per Acre)
A37: on a Cash Lease under Various Yields and Prices
D39: Yields | E39: Below | G39: Average | H39: Above
E40: 0.25 | F40: 0.1 | H40: 0.1 | I40: 0.25
D41: =IF(Inputs!$C$12,Inputs!$C$11,"") -> Irr Corn | E41: =IF(Inputs!$C$12,Inputs!$C$17*0.75,"") -> 168.75 | F41: =IF(Inputs!$C$12,Inputs!$C$17*0.9,"") -> 202.5 | G41: =IF(Inputs!$C$12,Inputs!$C$17,"") -> 225 | H41: =IF(Inputs!$C$12,Inputs!$C$17*1.1,"") -> 247.5 | I41: =IF(Inputs!$C$12,Inputs!$C$17*1.25,"") -> 281.25
D42: =IF(Inputs!$D$12,Inputs!$D$11,"") -> Irr Soybeans | E42: =IF(Inputs!$D$12,Inputs!$D$17*0.75,"") -> 48.75 | F42: =IF(Inputs!$D$12,Inputs!$D$17*0.9,"") -> 58.5 | G42: =IF(Inputs!$D$12,Inputs!$D$17,"") -> 65 | H42: =IF(Inputs!$D$12,Inputs!$D$17*1.1,"") -> 71.5 | I42: =IF(Inputs!$D$12,Inputs!$D$17*1.25,"") -> 81.25
D43: =IF(Inputs!$E$12,Inputs!$E$11,"") -> Dry Corn | E43: =IF(Inputs!$E$12,Inputs!$E$17*0.75,"") -> 93.75 | F43: =IF(Inputs!$E$12,Inputs!$E$17*0.9,"") -> 112.5 | G43: =IF(Inputs!$E$12,Inputs!$E$17,"") -> 125 | H43: =IF(Inputs!$E$12,Inputs!$E$17*1.1,"") -> 137.5 | I43: =IF(Inputs!$E$12,Inputs!$E$17*1.25,"") -> 156.25
B44: Prices | D44: =IF(Inputs!$F$12,Inputs!$F$11,"") -> Dry Soybeans | E44: =IF(Inputs!$F$12,Inputs!$F$17*0.75,"") -> 32.25 | F44: =IF(Inputs!$F$12,Inputs!$F$17*0.9,"") -> 38.7 | G44: =IF(Inputs!$F$12,Inputs!$F$17,"") -> 43 | H44: =IF(Inputs!$F$12,Inputs!$F$17*1.1,"") -> 47.3 | I44: =IF(Inputs!$F$12,Inputs!$F$17*1.25,"") -> 53.75
C45: =IF(Inputs!$C$12,Inputs!$C$11,"") -> Irr Corn | D45: =IF(Inputs!$C$12,Inputs!$C$18*0.75,"") -> 2.7375 | E45: =IF(Inputs!$J$12,(SUMPRODUCT(D45:D48,$E$41:$E$44,$F$146:$F$149)+'Cash Summary'!$G$42+'Cash Summary'!$G$43-'Cash Summary'!$G$68+($E$40*'Cash Summary'!$G$57)+($E$40*'Cash Summary'!$G$57*(Inputs!$C$175*(Inputs!$C$176/12))))/Inputs!J13,"") -> -383.5013796 | F45: =IF(Inputs!$J$12,(SUMPRODUCT(D45:D48,$F$41:$F$44,$F$146:$F$149)+'Cash Summary'!$G$42+'Cash Summary'!$G$43-'Cash Summary'!$G$68+($F$40*'Cash Summary'!$G$57)+($F$40*'Cash Summary'!$G$57*(Inputs!$C$175*(Inputs!$C$176/12))))/Inputs!J13,"") -> -313.3100796 | G45: =IF(Inputs!$J$12,(SUMPRODUCT(D45:D48,$G$41:$G$44,$F$146:$F$149)+'Cash Summary'!$G$42+'Cash Summary'!$G$43-'Cash Summary'!$G$68)/Inputs!J13,"") -> -266.5158796 | H45: =IF(Inputs!$J$12,(SUMPRODUCT(D45:D48,$H$41:$H$44,$F$146:$F$149)+'Cash Summary'!$G$42+'Cash Summary'!$G$43-'Cash Summary'!$G$68-($H$40*'Cash Summary'!$G$57)-($H$40*'Cash Summary'!$G$57*(Inputs!$C$175*(Inputs!$C$176/12))))/Inputs!J13,"") -> -219.7216796 | I45: =IF(Inputs!$J$12,(SUMPRODUCT(D45:D48,$I$41:$I$44,$F$146:$F$149)+'Cash Summary'!$G$42+'Cash Summary'!$G$43-'Cash Summary'!$G$68-($I$40*'Cash Summary'!$G$57)-($I$40*'Cash Summary'!$G$57*(Inputs!$C$175*(Inputs!$C$176/12))))/Inputs!J13,"") -> -149.5303796
B46: 0.25 | C46: =IF(Inputs!$D$12,Inputs!$D$11,"") -> Irr Soybeans | D46: =IF(Inputs!$D$12,Inputs!$D$18*0.75,"") -> 6.75
B47: Below | C47: =IF(Inputs!$E$12,Inputs!$E$11,"") -> Dry Corn | D47: =IF(Inputs!$E$12,Inputs!$E$18*0.75,"") -> 2.7375
C48: =IF(Inputs!$F$12,Inputs!$F$11,"") -> Dry Soybeans | D48: =IF(Inputs!$F$12,Inputs!$F$18*0.75,"") -> 6.75
C49: =IF(Inputs!$C$12,Inputs!$C$11,"") -> Irr Corn | D49: =IF(Inputs!$C$12,Inputs!$C$18*0.9,"") -> 3.285 | E49: =IF(Inputs!$J$12,(SUMPRODUCT(D49:D52,$E$41:$E$44,$F$146:$F$149)+'Cash Summary'!$G$42+'Cash Summary'!$G$43-'Cash Summary'!$G$68+($E$40*'Cash Summary'!$G$57)+($E$40*'Cash Summary'!$G$57*(Inputs!$C$175*(Inputs!$C$176/12))))/Inputs!J13,"") -> -310.3377078 | F49: =IF(Inputs!$J$12,(SUMPRODUCT(D49:D52,$F$41:$F$44,$F$146:$F$149)+'Cash Summary'!$G$42+'Cash Summary'!$G$43-'Cash Summary'!$G$68+($F$40*'Cash Summary'!$G$57)+($F$40*'Cash Summary'!$G$57*(Inputs!$C$175*(Inputs!$C$176/12))))/Inputs!J13,"") -> -225.5136734 | G49: =IF(Inputs!$J$12,(SUMPRODUCT(D49:D52,$G$41:$G$44,$F$146:$F$149)+'Cash Summary'!$G$42+'Cash Summary'!$G$43-'Cash Summary'!$G$68)/Inputs!J13,"") -> -168.9643171 | H49: =IF(Inputs!$J$12,(SUMPRODUCT(D49:D52,$H$41:$H$44,$F$146:$F$149)+'Cash Summary'!$G$42+'Cash Summary'!$G$43-'Cash Summary'!$G$68-($H$40*'Cash Summary'!$G$57)-($H$40*'Cash Summary'!$G$57*(Inputs!$C$175*(Inputs!$C$176/12))))/Inputs!J13,"") -> -112.4149609 | I49: =IF(Inputs!$J$12,(SUMPRODUCT(D49:D52,$I$41:$I$44,$F$146:$F$149)+'Cash Summary'!$G$42+'Cash Summary'!$G$43-'Cash Summary'!$G$68-($I$40*'Cash Summary'!$G$57)-($I$40*'Cash Summary'!$G$57*(Inputs!$C$175*(Inputs!$C$176/12))))/Inputs!J13,"") -> -27.59092651
B50: 0.1 | C50: =IF(Inputs!$D$12,Inputs!$D$11,"") -> Irr Soybeans | D50: =IF(Inputs!$D$12,Inputs!$D$18*0.9,"") -> 8.1
B51: Below | C51: =IF(Inputs!$E$12,Inputs!$E$11,"") -> Dry Corn | D51: =IF(Inputs!$E$12,Inputs!$E$18*0.9,"") -> 3.285
C52: =IF(Inputs!$F$12,Inputs!$F$11,"") -> Dry Soybeans | D52: =IF(Inputs!$F$12,Inputs!$F$18*0.9,"") -> 8.1
C53: =IF(Inputs!$C$12,Inputs!$C$11,"") -> Irr Corn | D53: =IF(Inputs!$C$12,Inputs!$C$18,"") -> 3.65 | E53: =IF(Inputs!$J$12,(SUMPRODUCT(D53:D56,$E$41:$E$44,$F$146:$F$149)+'Cash Summary'!$G$42+'Cash Summary'!$G$43-'Cash Summary'!$G$68+($E$40*'Cash Summary'!$G$57)+($E$40*'Cash Summary'!$G$57*(Inputs!$C$175*(Inputs!$C$176/12))))/Inputs!J13,"") -> -261.5619265 | F53: =IF(Inputs!$J$12,(SUMPRODUCT(D53:D56,$F$41:$F$44,$F$146:$F$149)+'Cash Summary'!$G$42+'Cash Summary'!$G$43-'Cash Summary'!$G$68+($F$40*'Cash Summary'!$G$57)+($F$40*'Cash Summary'!$G$57*(Inputs!$C$175*(Inputs!$C$176/12))))/Inputs!J13,"") -> -166.9827359 | G53: =IF(Inputs!$J$12,(SUMPRODUCT(D53:D56,$G$41:$G$44,$F$146:$F$149)+'Cash Summary'!$G$42+'Cash Summary'!$G$43-'Cash Summary'!$G$68)/Inputs!J13,"") -> -103.9299421 | H53: =IF(Inputs!$J$12,(SUMPRODUCT(D53:D56,$H$41:$H$44,$F$146:$F$149)+'Cash Summary'!$G$42+'Cash Summary'!$G$43-'Cash Summary'!$G$68-($H$40*'Cash Summary'!$G$57)-($H$40*'Cash Summary'!$G$57*(Inputs!$C$175*(Inputs!$C$176/12))))/Inputs!J13,"") -> -40.87714838 | I53: =IF(Inputs!$J$12,(SUMPRODUCT(D53:D56,$I$41:$I$44,$F$146:$F$149)+'Cash Summary'!$G$42+'Cash Summary'!$G$43-'Cash Summary'!$G$68-($I$40*'Cash Summary'!$G$57)-($I$40*'Cash Summary'!$G$57*(Inputs!$C$175*(Inputs!$C$176/12))))/Inputs!J13,"") -> 53.70204224
B54: Average | C54: =IF(Inputs!$D$12,Inputs!$D$11,"") -> Irr Soybeans | D54: =IF(Inputs!$D$12,Inputs!$D$18,"") -> 9
C55: =IF(Inputs!$E$12,Inputs!$E$11,"") -> Dry Corn | D55: =IF(Inputs!$E$12,Inputs!$E$18,"") -> 3.65
C56: =IF(Inputs!$F$12,Inputs!$F$11,"") -> Dry Soybeans | D56: =IF(Inputs!$F$12,Inputs!$F$18,"") -> 9
C57: =IF(Inputs!$C$12,Inputs!$C$11,"") -> Irr Corn | D57: =IF(Inputs!$C$12,Inputs!$C$18*1.1,"") -> 4.015 | E57: =IF(Inputs!$J$12,(SUMPRODUCT(D57:D60,$E$41:$E$44,$F$146:$F$149)+'Cash Summary'!$G$42+'Cash Summary'!$G$43-'Cash Summary'!$G$68+($E$40*'Cash Summary'!$G$57)+($E$40*'Cash Summary'!$G$57*(Inputs!$C$175*(Inputs!$C$176/12))))/Inputs!J13,"") -> -212.7861453 | F57: =IF(Inputs!$J$12,(SUMPRODUCT(D57:D60,$F$41:$F$44,$F$146:$F$149)+'Cash Summary'!$G$42+'Cash Summary'!$G$43-'Cash Summary'!$G$68+($F$40*'Cash Summary'!$G$57)+($F$40*'Cash Summary'!$G$57*(Inputs!$C$175*(Inputs!$C$176/12))))/Inputs!J13,"") -> -108.4517984 | G57: =IF(Inputs!$J$12,(SUMPRODUCT(D57:D60,$G$41:$G$44,$F$146:$F$149)+'Cash Summary'!$G$42+'Cash Summary'!$G$43-'Cash Summary'!$G$68)/Inputs!J13,"") -> -38.89556713 | H57: =IF(Inputs!$J$12,(SUMPRODUCT(D57:D60,$H$41:$H$44,$F$146:$F$149)+'Cash Summary'!$G$42+'Cash Summary'!$G$43-'Cash Summary'!$G$68-($H$40*'Cash Summary'!$G$57)-($H$40*'Cash Summary'!$G$57*(Inputs!$C$175*(Inputs!$C$176/12))))/Inputs!J13,"") -> 30.66066412 | I57: =IF(Inputs!$J$12,(SUMPRODUCT(D57:D60,$I$41:$I$44,$F$146:$F$149)+'Cash Summary'!$G$42+'Cash Summary'!$G$43-'Cash Summary'!$G$68-($I$40*'Cash Summary'!$G$57)-($I$40*'Cash Summary'!$G$57*(Inputs!$C$175*(Inputs!$C$176/12))))/Inputs!J13,"") -> 134.995011
B58: 0.1 | C58: =IF(Inputs!$D$12,Inputs!$D$11,"") -> Irr Soybeans | D58: =IF(Inputs!$D$12,Inputs!$D$18*1.1,"") -> 9.9
B59: Above | C59: =IF(Inputs!$E$12,Inputs!$E$11,"") -> Dry Corn | D59: =IF(Inputs!$E$12,Inputs!$E$18*1.1,"") -> 4.015
C60: =IF(Inputs!$F$12,Inputs!$F$11,"") -> Dry Soybeans | D60: =IF(Inputs!$F$12,Inputs!$F$18*1.1,"") -> 9.9
C61: =IF(Inputs!$C$12,Inputs!$C$11,"") -> Irr Corn | D61: =IF(Inputs!$C$12,Inputs!$C$18*1.25,"") -> 4.5625 | E61: =IF(Inputs!$J$12,(SUMPRODUCT(D61:D64,$E$41:$E$44,$F$146:$F$149)+'Cash Summary'!$G$42+'Cash Summary'!$G$43-'Cash Summary'!$G$68+($E$40*'Cash Summary'!$G$57)+($E$40*'Cash Summary'!$G$57*(Inputs!$C$175*(Inputs!$C$176/12))))/Inputs!J13,"") -> -139.6224734 | F61: =IF(Inputs!$J$12,(SUMPRODUCT(D61:D64,$F$41:$F$44,$F$146:$F$149)+'Cash Summary'!$G$42+'Cash Summary'!$G$43-'Cash Summary'!$G$68+($F$40*'Cash Summary'!$G$57)+($F$40*'Cash Summary'!$G$57*(Inputs!$C$175*(Inputs!$C$176/12))))/Inputs!J13,"") -> -20.65539213 | G61: =IF(Inputs!$J$12,(SUMPRODUCT(D61:D64,$G$41:$G$44,$F$146:$F$149)+'Cash Summary'!$G$42+'Cash Summary'!$G$43-'Cash Summary'!$G$68)/Inputs!J13,"") -> 58.65599537 | H61: =IF(Inputs!$J$12,(SUMPRODUCT(D61:D64,$H$41:$H$44,$F$146:$F$149)+'Cash Summary'!$G$42+'Cash Summary'!$G$43-'Cash Summary'!$G$68-($H$40*'Cash Summary'!$G$57)-($H$40*'Cash Summary'!$G$57*(Inputs!$C$175*(Inputs!$C$176/12))))/Inputs!J13,"") -> 137.9673829 | I61: =IF(Inputs!$J$12,(SUMPRODUCT(D61:D64,$I$41:$I$44,$F$146:$F$149)+'Cash Summary'!$G$42+'Cash Summary'!$G$43-'Cash Summary'!$G$68-($I$40*'Cash Summary'!$G$57)-($I$40*'Cash Summary'!$G$57*(Inputs!$C$175*(Inputs!$C$176/12))))/Inputs!J13,"") -> 256.9344641
B62: 0.25 | C62: =IF(Inputs!$D$12,Inputs!$D$11,"") -> Irr Soybeans | D62: =IF(Inputs!$D$12,Inputs!$D$18*1.25,"") -> 11.25
B63: Above | C63: =IF(Inputs!$E$12,Inputs!$E$11,"") -> Dry Corn | D63: =IF(Inputs!$E$12,Inputs!$E$18*1.25,"") -> 4.5625
C64: =IF(Inputs!$F$12,Inputs!$F$11,"") -> Dry Soybeans | D64: =IF(Inputs!$F$12,Inputs!$F$18*1.25,"") -> 11.25
E145: Crop | F145: Acres
E146: =Inputs!C11 -> Irr Corn | F146: =Inputs!C12 -> 65
E147: =Inputs!D11 -> Irr Soybeans | F147: =Inputs!D12 -> 65
E148: =Inputs!E11 -> Dry Corn | F148: =Inputs!E12 -> 15
E149: =Inputs!F11 -> Dry Soybeans | F149: =Inputs!F12 -> 15

Sheet Share Summary
A1: LANDOWNER SHARE LEASE BUDGET SUMMARY
A3: =Inputs!B4 -> Average Joe Landowner
A4: =Inputs!B9 -> Pivot Irrigated Quarter Section with Dryland Corners
A6: Crops: | B6: =IF(Inputs!$C$12,Inputs!$C$11,"") -> Irr Corn | C6: =IF(Inputs!$D$12,Inputs!$D$11,"") -> Irr Soybeans | D6: =IF(Inputs!$E$12,Inputs!$E$11,"") -> Dry Corn | E6: =IF(Inputs!$F$12,Inputs!$F$11,"") -> Dry Soybeans | G6: Total
A7: Total Acres: | B7: =IF(Inputs!C12,Inputs!$C$12,"") -> 65 | C7: =IF(Inputs!D12,Inputs!$D$12,"") -> 65 | D7: =IF(Inputs!E12,Inputs!$E$12,"") -> 15 | E7: =IF(Inputs!F12,Inputs!$F$12,"") -> 15 | G7: =IF(Inputs!J12,SUM(B7:E7),"") -> 160 | H7: -----
A9: Landowner Share Lease Revenue: | B9: =IF(Inputs!$C$12,Inputs!$C$11,"") -> Irr Corn | C9: =IF(Inputs!$D$12,Inputs!$D$11,"") -> Irr Soybeans | D9: =IF(Inputs!$E$12,Inputs!$E$11,"") -> Dry Corn | E9: =IF(Inputs!$F$12,Inputs!$F$11,"") -> Dry Soybeans | G9: Total | H9: Per Acre
A10: Yield per Acre: | B10: =IF(Inputs!C12,Inputs!C17*Shares!C116,"") -> 112.5 | C10: =IF(Inputs!D12,Inputs!D17*Shares!D116,"") -> 32.5 | D10: =IF(Inputs!E12,Inputs!E17*Shares!E116,"") -> 62.5 | E10: =IF(Inputs!F12,Inputs!F17*Shares!F116,"") -> 21.5 | G10: ----- | H10: -----
A11: Price per Unit: | B11: =IF(Inputs!C12,Inputs!C18,"") -> 3.65 | C11: =IF(Inputs!D12,Inputs!D18,"") -> 9 | D11: =IF(Inputs!E12,Inputs!E18,"") -> 3.65 | E11: =IF(Inputs!F12,Inputs!F18,"") -> 9 | G11: ----- | H11: -----
A12: Crop Revenue | B12: =IF(Inputs!C12,B10*B11,"") -> 410.625 | C12: =IF(Inputs!D12,C10*C11,"") -> 292.5 | D12: =IF(Inputs!E12,D10*D11,"") -> 228.125 | E12: =IF(Inputs!F12,E10*E11,"") -> 193.5 | G12: =IF(Inputs!$J$12,SUMPRODUCT($B$7:$E$7,B12:E12),"") -> 52027.5 | H12: =IF(Inputs!$J$12,G12/Inputs!$J$13,"") -> 325.171875
A13: Cash Rent | B13: =IF(Inputs!C12,Inputs!C120,"") -> 0 | C13: =IF(Inputs!D12,Inputs!D120,"") -> 0 | D13: =IF(Inputs!E12,Inputs!E120,"") -> 0 | E13: =IF(Inputs!F12,Inputs!F120,"") -> 0 | G13: =IF(Inputs!$J$12,SUMPRODUCT($B$7:$E$7,B13:E13),"") -> 0 | H13: =IF(Inputs!$J$12,G13/Inputs!$J$13,"") -> 0
A14: Net Gov't Payments: | B14: =IF(Inputs!C12,Inputs!C20*Shares!C117,"") -> 0 | C14: =IF(Inputs!D12,Inputs!D20*Shares!D117,"") -> 0 | D14: =IF(Inputs!E12,Inputs!E20*Shares!E117,"") -> 0 | E14: =IF(Inputs!F12,Inputs!F20*Shares!F117,"") -> 0 | G14: =IF(Inputs!$J$12,SUMPRODUCT($B$7:$E$7,B14:E14),"") -> 0 | H14: =IF(Inputs!$J$12,G14/Inputs!$J$13,"") -> 0
A15: =Inputs!A21 -> Other Income per Acre | B15: =IF(Inputs!C12,Inputs!C21*Shares!C118,"") -> 0 | C15: =IF(Inputs!D12,Inputs!D21*Shares!D118,"") -> 0 | D15: =IF(Inputs!E12,Inputs!E21*Shares!E118,"") -> 0 | E15: =IF(Inputs!F12,Inputs!F21*Shares!F118,"") -> 0 | G15: =IF(Inputs!$J$12,SUMPRODUCT($B$7:$E$7,B15:E15),"") -> 0 | H15: =IF(Inputs!$J$12,G15/Inputs!$J$13,"") -> 0
A16: Total Revenue: | B16: =IF(Inputs!C12,SUM(B12:B15),"") -> 410.625 | C16: =IF(Inputs!D12,SUM(C12:C15),"") -> 292.5 | D16: =IF(Inputs!E12,SUM(D12:D15),"") -> 228.125 | E16: =IF(Inputs!F12,SUM(E12:E15),"") -> 193.5 | G16: =IF(Inputs!$J$12,SUMPRODUCT($B$7:$E$7,B16:E16),"") -> 52027.5 | H16: =IF(Inputs!$J$12,G16/Inputs!$J$13,"") -> 325.171875
A18: Landowner Share Lease Variable Expenses: | B18: =IF(Inputs!$C$12,Inputs!$C$11,"") -> Irr Corn | C18: =IF(Inputs!$D$12,Inputs!$D$11,"") -> Irr Soybeans | D18: =IF(Inputs!$E$12,Inputs!$E$11,"") -> Dry Corn | E18: =IF(Inputs!$F$12,Inputs!$F$11,"") -> Dry Soybeans | G18: Total | H18: Per Acre
A19: Seed: | B19: =IF(Inputs!C12,Inputs!C29*Shares!C121,"") -> 0 | C19: =IF(Inputs!D12,Inputs!D29*Shares!D121,"") -> 0 | D19: =IF(Inputs!E12,Inputs!E29*Shares!E121,"") -> 0 | E19: =IF(Inputs!F12,Inputs!F29*Shares!F121,"") -> 0 | G19: =IF(Inputs!$J$12,SUMPRODUCT($B$7:$E$7,B19:E19),"") -> 0 | H19: =IF(Inputs!$J$12,G19/Inputs!$J$13,"") -> 0
A20: Fertilizer: | B20: =IF(Inputs!C12,Inputs!C38*Shares!C122,"") -> 80.1675 | C20: =IF(Inputs!D12,Inputs!D38*Shares!D122,"") -> 0.561 | D20: =IF(Inputs!E12,Inputs!E38*Shares!E122,"") -> 40.2925 | E20: =IF(Inputs!F12,Inputs!F38*Shares!F122,"") -> 0.561 | G20: =IF(Inputs!$J$12,SUMPRODUCT($B$7:$E$7,B20:E20),"") -> 5860.155 | H20: =IF(Inputs!$J$12,G20/Inputs!$J$13,"") -> 36.62596875
A21: Herbicide: | B21: =IF(Inputs!C12,Inputs!C50*Shares!C123,"") -> 0 | C21: =IF(Inputs!D12,Inputs!D50*Shares!D123,"") -> 0 | D21: =IF(Inputs!E12,Inputs!E50*Shares!E123,"") -> 0 | E21: =IF(Inputs!F12,Inputs!F50*Shares!F123,"") -> 0 | G21: =IF(Inputs!$J$12,SUMPRODUCT($B$7:$E$7,B21:E21),"") -> 0 | H21: =IF(Inputs!$J$12,G21/Inputs!$J$13,"") -> 0
A22: Insecticide & Fungicide: | B22: =IF(Inputs!C12,Inputs!C58*Shares!C124,"") -> 0.58528 | C22: =IF(Inputs!D12,Inputs!D58*Shares!D124,"") -> 6.22395 | D22: =IF(Inputs!E12,Inputs!E58*Shares!E124,"") -> 0.58528 | E22: =IF(Inputs!F12,Inputs!F58*Shares!F124,"") -> 0.4752 | G22: =IF(Inputs!$J$12,SUMPRODUCT($B$7:$E$7,B22:E22),"") -> 458.50715 | H22: =IF(Inputs!$J$12,G22/Inputs!$J$13,"") -> 2.865669688
A23: Crop Insurance: | B23: =IF(Inputs!C12,Inputs!C65*Shares!C125,"") -> 5 | C23: =IF(Inputs!D12,Inputs!D65*Shares!D125,"") -> 4.25 | D23: =IF(Inputs!E12,Inputs!E65*Shares!E125,"") -> 11.5 | E23: =IF(Inputs!F12,Inputs!F65*Shares!F125,"") -> 8 | G23: =IF(Inputs!$J$12,SUMPRODUCT($B$7:$E$7,B23:E23),"") -> 893.75 | H23: =IF(Inputs!$J$12,G23/Inputs!$J$13,"") -> 5.5859375
A24: Crop Consulting: | B24: =IF(Inputs!C12,Inputs!C69*Shares!C126,"") -> 5 | C24: =IF(Inputs!D12,Inputs!D69*Shares!D126,"") -> 5 | D24: =IF(Inputs!E12,Inputs!E69*Shares!E126,"") -> 3.5 | E24: =IF(Inputs!F12,Inputs!F69*Shares!F126,"") -> 3.5 | G24: =IF(Inputs!$J$12,SUMPRODUCT($B$7:$E$7,B24:E24),"") -> 755 | H24: =IF(Inputs!$J$12,G24/Inputs!$J$13,"") -> 4.71875
A25: Machinery/Field Operations: | B25: =IF(Inputs!C12,Inputs!C86*Shares!C127,"") -> 0 | C25: =IF(Inputs!D12,Inputs!D86*Shares!D127,"") -> 0 | D25: =IF(Inputs!E12,Inputs!E86*Shares!E127,"") -> 0 | E25: =IF(Inputs!F12,Inputs!F86*Shares!F127,"") -> 0 | G25: =IF(Inputs!$J$12,SUMPRODUCT($B$7:$E$7,B25:E25),"") -> 0 | H25: =IF(Inputs!$J$12,G25/Inputs!$J$13,"") -> 0
A26: Custom Operations: | B26: =IF(Inputs!C12,Inputs!C93*Shares!C128,"") -> 0 | C26: =IF(Inputs!D12,Inputs!D93*Shares!D128,"") -> 0 | D26: =IF(Inputs!E12,Inputs!E93*Shares!E128,"") -> 0 | E26: =IF(Inputs!F12,Inputs!F93*Shares!F128,"") -> 0 | G26: =IF(Inputs!$J$12,SUMPRODUCT($B$7:$E$7,B26:E26),"") -> 0 | H26: =IF(Inputs!$J$12,G26/Inputs!$J$13,"") -> 0
A27: Irrigation: | B27: =IF(Inputs!C12,Inputs!C98*Shares!C129,"") -> 33.75 | C27: =IF(Inputs!D12,Inputs!D98*Shares!D129,"") -> 22.5 | D27: =IF(Inputs!E12,Inputs!E98*Shares!E129,"") -> 0 | E27: =IF(Inputs!F12,Inputs!F98*Shares!F129,"") -> 0 | G27: =IF(Inputs!$J$12,SUMPRODUCT($B$7:$E$7,B27:E27),"") -> 3656.25 | H27: =IF(Inputs!$J$12,G27/Inputs!$J$13,"") -> 22.8515625
A28: Labor/Management: | B28: =IF(Inputs!C12,Inputs!C105*Shares!C130,"") -> 0 | C28: =IF(Inputs!D12,Inputs!D105*Shares!D130,"") -> 0 | D28: =IF(Inputs!E12,Inputs!E105*Shares!E130,"") -> 0 | E28: =IF(Inputs!F12,Inputs!F105*Shares!F130,"") -> 0 | G28: =IF(Inputs!$J$12,SUMPRODUCT($B$7:$E$7,B28:E28),"") -> 0 | H28: =IF(Inputs!$J$12,G28/Inputs!$J$13,"") -> 0
A29: Drying, Storage, Transportation: | B29: =IF(Inputs!C12,Inputs!C112*Shares!C131,"") -> 17.4375 | C29: =IF(Inputs!D12,Inputs!D112*Shares!D131,"") -> 3.575 | D29: =IF(Inputs!E12,Inputs!E112*Shares!E131,"") -> 9.6875 | E29: =IF(Inputs!F12,Inputs!F112*Shares!F131,"") -> 2.365 | G29: =IF(Inputs!$J$12,SUMPRODUCT($B$7:$E$7,B29:E29),"") -> 1546.6 | H29: =IF(Inputs!$J$12,G29/Inputs!$J$13,"") -> 9.66625
A30: Interest on Variable Expenses: | B30: =IF(Inputs!C12,B235,"") -> 3.548507 | C30: =IF(Inputs!D12,C235,"") -> 1.05274875 | D30: =IF(Inputs!E12,D235,"") -> 1.639132 | E30: =IF(Inputs!F12,E235,"") -> 0.37253 | G30: =IF(Inputs!$J$12,SUMPRODUCT($B$7:$E$7,B30:E30),"") -> 329.2565538 | H30: =IF(Inputs!$J$12,G30/Inputs!$J$13,"") -> 2.057853461
A31: Total Variable Expenses: | B31: =IF(Inputs!C12,SUM(B19:B30),"") -> 145.488787 | C31: =IF(Inputs!D12,SUM(C19:C30),"") -> 43.16269875 | D31: =IF(Inputs!E12,SUM(D19:D30),"") -> 67.204412 | E31: =IF(Inputs!F12,SUM(E19:E30),"") -> 15.27373 | G31: =IF(Inputs!$J$12,SUMPRODUCT($B$7:$E$7,B31:E31),"") -> 13499.5187 | H31: =IF(Inputs!$J$12,G31/Inputs!$J$13,"") -> 84.3719919
A33: Landowner Share Lease Fixed Expenses: | B33: =IF(Inputs!$C$12,Inputs!$C$11,"") -> Irr Corn | C33: =IF(Inputs!$D$12,Inputs!$D$11,"") -> Irr Soybeans | D33: =IF(Inputs!$E$12,Inputs!$E$11,"") -> Dry Corn | E33: =IF(Inputs!$F$12,Inputs!$F$11,"") -> Dry Soybeans | G33: Total | H33: Per Acre
A34: Property Taxes: | B34: =IF(Inputs!C12,Inputs!C126,"") -> 60 | C34: =IF(Inputs!D12,Inputs!D126,"") -> 60 | D34: =IF(Inputs!E12,Inputs!E126,"") -> 40 | E34: =IF(Inputs!F12,Inputs!F126,"") -> 40 | G34: =IF(Inputs!$J$12,SUMPRODUCT($B$7:$E$7,B34:E34),"") -> 9000 | H34: =IF(Inputs!$J$12,G34/Inputs!$J$13,"") -> 56.25
A35: Lime: | B35: =IF(Inputs!C12,Inputs!C130*Shares!C134,"") -> 0 | C35: =IF(Inputs!D12,Inputs!D130*Shares!D134,"") -> 0 | D35: =IF(Inputs!E12,Inputs!E130*Shares!E134,"") -> 0 | E35: =IF(Inputs!F12,Inputs!F130*Shares!F134,"") -> 0 | G35: =IF(Inputs!$J$12,SUMPRODUCT($B$7:$E$7,B35:E35),"") -> 0 | H35: =IF(Inputs!$J$12,G35/Inputs!$J$13,"") -> 0
A36: Machinery/Field Operations: | B36: =IF(Inputs!C12,Inputs!C147*Shares!C135,"") -> 0 | C36: =IF(Inputs!D12,Inputs!D147*Shares!D135,"") -> 0 | D36: =IF(Inputs!E12,Inputs!E147*Shares!E135,"") -> 0 | E36: =IF(Inputs!F12,Inputs!F147*Shares!F135,"") -> 0 | G36: =IF(Inputs!$J$12,SUMPRODUCT($B$7:$E$7,B36:E36),"") -> 0 | H36: =IF(Inputs!$J$12,G36/Inputs!$J$13,"") -> 0
A37: Irrigation: | B37: =IF(Inputs!C12,Inputs!C270,"") -> 63.99326923 | C37: =IF(Inputs!D12,Inputs!D270,"") -> 63.99326923 | D37: =IF(Inputs!E12,Inputs!E270,"") -> 0 | E37: =IF(Inputs!F12,Inputs!F270,"") -> 0 | G37: =IF(Inputs!$J$12,SUMPRODUCT($B$7:$E$7,B37:E37),"") -> 8319.125 | H37: =IF(Inputs!$J$12,G37/Inputs!$J$13,"") -> 51.99453125
A38: Total Fixed Expenses: | B38: =IF(Inputs!C12,SUM(B34:B37),"") -> 123.9932692 | C38: =IF(Inputs!D12,SUM(C34:C37),"") -> 123.9932692 | D38: =IF(Inputs!E12,SUM(D34:D37),"") -> 40 | E38: =IF(Inputs!F12,SUM(E34:E37),"") -> 40 | G38: =IF(Inputs!$J$12,SUMPRODUCT($B$7:$E$7,B38:E38),"") -> 17319.125 | H38: =IF(Inputs!$J$12,G38/Inputs!$J$13,"") -> 108.2445312
A40: Landowner Share Lease Totals: | B40: =IF(Inputs!$C$12,Inputs!$C$11,"") -> Irr Corn | C40: =IF(Inputs!$D$12,Inputs!$D$11,"") -> Irr Soybeans | D40: =IF(Inputs!$E$12,Inputs!$E$11,"") -> Dry Corn | E40: =IF(Inputs!$F$12,Inputs!$F$11,"") -> Dry Soybeans | G40: Total | H40: Per Acre
A41: Total Expenses: | B41: =IF(Inputs!C12,B31+B38,"") -> 269.4820562 | C41: =IF(Inputs!D12,C31+C38,"") -> 167.155968 | D41: =IF(Inputs!E12,D31+D38,"") -> 107.204412 | E41: =IF(Inputs!F12,E31+E38,"") -> 55.27373 | G41: =IF(Inputs!J12,G31+G38,"") -> 30818.6437 | H41: =IF(Inputs!$J$12,G41/Inputs!$J$13,"") -> 192.6165231
A42: Revenue Less Variable Expenses: | B42: =IF(Inputs!C12,B16-B31,"") -> 265.136213 | C42: =IF(Inputs!D12,C16-C31,"") -> 249.3373012 | D42: =IF(Inputs!E12,D16-D31,"") -> 160.920588 | E42: =IF(Inputs!F12,E16-E31,"") -> 178.22627 | G42: =IF(Inputs!J12,G16-G31,"") -> 38527.9813 | H42: =IF(Inputs!$J$12,G42/Inputs!$J$13,"") -> 240.7998831
A43: Revenue Less Total Expenses: | B43: =IF(Inputs!C12,B16-B31-B38,"") -> 141.1429438 | C43: =IF(Inputs!D12,C16-C31-C38,"") -> 125.344032 | D43: =IF(Inputs!E12,D16-D31-D38,"") -> 120.920588 | E43: =IF(Inputs!F12,E16-E31-E38,"") -> 138.22627 | G43: =IF(Inputs!J12,G16-G31-G38,"") -> 21208.8563 | H43: =IF(Inputs!$J$12,G43/Inputs!$J$13,"") -> 132.5553519
A45: Landowner Share Lease Relative Contributions: | B45: =IF(Inputs!$C$12,Inputs!$C$11,"") -> Irr Corn | C45: =IF(Inputs!$D$12,Inputs!$D$11,"") -> Irr Soybeans | D45: =IF(Inputs!$E$12,Inputs!$E$11,"") -> Dry Corn | E45: =IF(Inputs!$F$12,Inputs!$F$11,"") -> Dry Soybeans | G45: Total | H45: Per Acre
A46: Variable Expenses: | B46: =IF(Inputs!C12,B31,"") -> 145.488787 | C46: =IF(Inputs!D12,C31,"") -> 43.16269875 | D46: =IF(Inputs!E12,D31,"") -> 67.204412 | E46: =IF(Inputs!F12,E31,"") -> 15.27373 | G46: =IF(Inputs!J12,SUMPRODUCT($B$7:$E$7,B46:E46),"") -> 13499.5187 | H46: =IF(Inputs!$J$12,G46/Inputs!$J$13,"") -> 84.3719919
A47: Fixed Expenses: | B47: =IF(Inputs!C12,B38,"") -> 123.9932692 | C47: =IF(Inputs!D12,C38,"") -> 123.9932692 | D47: =IF(Inputs!E12,D38,"") -> 40 | E47: =IF(Inputs!F12,E38,"") -> 40 | G47: =IF(Inputs!J12,SUMPRODUCT($B$7:$E$7,B47:E47),"") -> 17319.125 | H47: =IF(Inputs!$J$12,G47/Inputs!$J$13,"") -> 108.2445312
A48: Net Land Contribution: | B48: =IF(Inputs!C12,(Inputs!$C$167*Inputs!$C$168*Inputs!C13),"") -> 142.2 | C48: =IF(Inputs!D12,(Inputs!$C$167*Inputs!$C$168*Inputs!D13),"") -> 142.2 | D48: =IF(Inputs!E12,(Inputs!$C$167*Inputs!$C$168*Inputs!E13),"") -> 142.2 | E48: =IF(Inputs!F12,(Inputs!$C$167*Inputs!$C$168*Inputs!F13),"") -> 142.2 | G48: =IF(Inputs!J12,SUMPRODUCT($B$7:$E$7,B48:E48),"") -> 22752 | H48: =IF(Inputs!$J$12,G48/Inputs!$J$13,"") -> 142.2
A49: Total Contribution: | B49: =IF(Inputs!C12,SUM(B46:B48),"") -> 411.6820562 | C49: =IF(Inputs!D12,SUM(C46:C48),"") -> 309.355968 | D49: =IF(Inputs!E12,SUM(D46:D48),"") -> 249.404412 | E49: =IF(Inputs!F12,SUM(E46:E48),"") -> 197.47373 | G49: =IF(Inputs!J12,SUM(G46:G48),"") -> 53570.6437 | H49: =IF(Inputs!$J$12,G49/Inputs!$J$13,"") -> 334.8165231
A50: Net Contribution Percentage: | B50: =IF(Inputs!C12,B49/(B49+'Share Summary'!B114),"") -> 0.4266366717 | C50: =IF(Inputs!D12,C49/(C49+'Share Summary'!C114),"") -> 0.5147096236 | D50: =IF(Inputs!E12,D49/(D49+'Share Summary'!D114),"") -> 0.4791091618 | E50: =IF(Inputs!F12,E49/(E49+'Share Summary'!E114),"") -> 0.5293744741 | G50: =IF(Inputs!J12,G49/(G49+'Share Summary'!G114),"") -> 0.4650535659 | H50: =IF(Inputs!J12,H49/(H49+'Share Summary'!H114),"") -> 0.4650535659
A52: Landowner Share Lease Comparison: | B52: =IF(Inputs!$C$12,Inputs!$C$11,"") -> Irr Corn | C52: =IF(Inputs!$D$12,Inputs!$D$11,"") -> Irr Soybeans | D52: =IF(Inputs!$E$12,Inputs!$E$11,"") -> Dry Corn | E52: =IF(Inputs!$F$12,Inputs!$F$11,"") -> Dry Soybeans | G52: Total | H52: Per Acre
A53: Equivalent Cash Rent: | B53: =IF(Inputs!C12,'Share Summary'!B244,"") -> 265.136213 | C53: =IF(Inputs!D12,'Share Summary'!C244,"") -> 249.3373012 | D53: =IF(Inputs!E12,'Share Summary'!D244,"") -> 160.920588 | E53: =IF(Inputs!F12,'Share Summary'!E244,"") -> 178.22627 | G53: =IF(Inputs!J12,'Share Summary'!G244,"") -> 38527.9813 | H53: =IF(Inputs!$J$12,G53/Inputs!$J$13,"") -> 240.7998831
A55: Landowner Share Lease Breakevens: | B55: =IF(Inputs!$C$12,Inputs!$C$11,"") -> Irr Corn | C55: =IF(Inputs!$D$12,Inputs!$D$11,"") -> Irr Soybeans | D55: =IF(Inputs!$E$12,Inputs!$E$11,"") -> Dry Corn | E55: =IF(Inputs!$F$12,Inputs!$F$11,"") -> Dry Soybeans
A56: Breakeven Yield to Cover Variable Costs: | B56: =IF(Inputs!C12,('Share Summary'!B31-SUM('Share Summary'!B13:B15))/'Share Summary'!B11,"") -> 39.85994164 | C56: =IF(Inputs!D12,('Share Summary'!C31-SUM('Share Summary'!C13:C15))/'Share Summary'!C11,"") -> 4.795855417 | D56: =IF(Inputs!E12,('Share Summary'!D31-SUM('Share Summary'!D13:D15))/'Share Summary'!D11,"") -> 18.41216767 | E56: =IF(Inputs!F12,('Share Summary'!E31-SUM('Share Summary'!E13:E15))/'Share Summary'!E11,"") -> 1.697081111 | G56: ----- | H56: -----
A57: Breakeven Yield to Cover Total Costs: | B57: =IF(Inputs!C12,('Share Summary'!B41-SUM('Share Summary'!B13:B15))/'Share Summary'!B11,"") -> 73.83070034 | C57: =IF(Inputs!D12,('Share Summary'!C41-SUM('Share Summary'!C13:C15))/'Share Summary'!C11,"") -> 18.57288533 | D57: =IF(Inputs!E12,('Share Summary'!D41-SUM('Share Summary'!D13:D15))/'Share Summary'!D11,"") -> 29.37107178 | E57: =IF(Inputs!F12,('Share Summary'!E41-SUM('Share Summary'!E13:E15))/'Share Summary'!E11,"") -> 6.141525556 | G57: ----- | H57: -----
A59: Breakeven Price to Cover Variable Costs: | B59: =IF(Inputs!C12,('Share Summary'!B31-SUM('Share Summary'!B13:B15))/'Share Summary'!B10,"") -> 1.293233662 | C59: =IF(Inputs!D12,('Share Summary'!C31-SUM('Share Summary'!C13:C15))/'Share Summary'!C10,"") -> 1.328083038 | D59: =IF(Inputs!E12,('Share Summary'!D31-SUM('Share Summary'!D13:D15))/'Share Summary'!D10,"") -> 1.075270592 | E59: =IF(Inputs!F12,('Share Summary'!E31-SUM('Share Summary'!E13:E15))/'Share Summary'!E10,"") -> 0.7104060465 | G59: ----- | H59: -----
A60: Breakeven Price to Cover Total Costs: | B60: =IF(Inputs!C12,('Share Summary'!B41-SUM('Share Summary'!B13:B15))/'Share Summary'!B10,"") -> 2.395396055 | C60: =IF(Inputs!D12,('Share Summary'!C41-SUM('Share Summary'!C13:C15))/'Share Summary'!C10,"") -> 5.143260553 | D60: =IF(Inputs!E12,('Share Summary'!D41-SUM('Share Summary'!D13:D15))/'Share Summary'!D10,"") -> 1.715270592 | E60: =IF(Inputs!F12,('Share Summary'!E41-SUM('Share Summary'!E13:E15))/'Share Summary'!E10,"") -> 2.570871163 | G60: ----- | H60: -----
A68: TENANT SHARE LEASE BUDGET SUMMARY
A70: =Inputs!H4 -> Average Joe Tenant
A71: =Inputs!B9 -> Pivot Irrigated Quarter Section with Dryland Corners
A73: Crops: | B73: =IF(Inputs!$C$12,Inputs!$C$11,"") -> Irr Corn | C73: =IF(Inputs!$D$12,Inputs!$D$11,"") -> Irr Soybeans | D73: =IF(Inputs!$E$12,Inputs!$E$11,"") -> Dry Corn | E73: =IF(Inputs!$F$12,Inputs!$F$11,"") -> Dry Soybeans | G73: Total
A74: Total Acres: | B74: =IF(Inputs!C12,Inputs!$C$12,"") -> 65 | C74: =IF(Inputs!D12,Inputs!$D$12,"") -> 65 | D74: =IF(Inputs!E12,Inputs!$E$12,"") -> 15 | E74: =IF(Inputs!F12,Inputs!$F$12,"") -> 15 | G74: =IF(Inputs!J12,SUM(B74:E74),"") -> 160 | H74: -----
A76: Tenant Share Lease Revenue: | B76: =IF(Inputs!$C$12,Inputs!$C$11,"") -> Irr Corn | C76: =IF(Inputs!$D$12,Inputs!$D$11,"") -> Irr Soybeans | D76: =IF(Inputs!$E$12,Inputs!$E$11,"") -> Dry Corn | E76: =IF(Inputs!$F$12,Inputs!$F$11,"") -> Dry Soybeans | G76: Total | H76: Per Acre
A77: Yield per Acre: | B77: =IF(Inputs!C12,Inputs!C17*Shares!C9,"") -> 112.5 | C77: =IF(Inputs!D12,Inputs!D17*Shares!D9,"") -> 32.5 | D77: =IF(Inputs!E12,Inputs!E17*Shares!E9,"") -> 62.5 | E77: =IF(Inputs!F12,Inputs!F17*Shares!F9,"") -> 21.5 | G77: ----- | H77: -----
A78: Price per Unit: | B78: =IF(Inputs!C12,Inputs!C18,"") -> 3.65 | C78: =IF(Inputs!D12,Inputs!D18,"") -> 9 | D78: =IF(Inputs!E12,Inputs!E18,"") -> 3.65 | E78: =IF(Inputs!F12,Inputs!F18,"") -> 9 | G78: ----- | H78: -----
A79: Crop Revenue | B79: =IF(Inputs!C12,B77*B78,"") -> 410.625 | C79: =IF(Inputs!D12,C77*C78,"") -> 292.5 | D79: =IF(Inputs!E12,D77*D78,"") -> 228.125 | E79: =IF(Inputs!F12,E77*E78,"") -> 193.5 | G79: =IF(Inputs!$J$12,SUMPRODUCT($B$74:$E$74,B79:E79),"") -> 52027.5 | H79: =IF(Inputs!$J$12,G79/Inputs!$J$13,"") -> 325.171875
A80: Net Gov't Payments: | B80: =IF(Inputs!C12,Inputs!C20*Shares!C10,"") -> 0 | C80: =IF(Inputs!D12,Inputs!D20*Shares!D10,"") -> 0 | D80: =IF(Inputs!E12,Inputs!E20*Shares!E10,"") -> 0 | E80: =IF(Inputs!F12,Inputs!F20*Shares!F10,"") -> 0 | G80: =IF(Inputs!$J$12,SUMPRODUCT($B$74:$E$74,B80:E80),"") -> 0 | H80: =IF(Inputs!$J$12,G80/Inputs!$J$13,"") -> 0
A81: =Inputs!A21 -> Other Income per Acre | B81: =IF(Inputs!C12,Inputs!C21*Shares!C11,"") -> 0 | C81: =IF(Inputs!D12,Inputs!D21*Shares!D11,"") -> 0 | D81: =IF(Inputs!E12,Inputs!E21*Shares!E11,"") -> 0 | E81: =IF(Inputs!F12,Inputs!F21*Shares!F11,"") -> 0 | G81: =IF(Inputs!$J$12,SUMPRODUCT($B$74:$E$74,B81:E81),"") -> 0 | H81: =IF(Inputs!$J$12,G81/Inputs!$J$13,"") -> 0
A82: Total Revenue: | B82: =IF(Inputs!C12,SUM(B79:B81),"") -> 410.625 | C82: =IF(Inputs!D12,SUM(C79:C81),"") -> 292.5 | D82: =IF(Inputs!E12,SUM(D79:D81),"") -> 228.125 | E82: =IF(Inputs!F12,SUM(E79:E81),"") -> 193.5 | G82: =IF(Inputs!$J$12,SUMPRODUCT($B$74:$E$74,B82:E82),"") -> 52027.5 | H82: =IF(Inputs!$J$12,G82/Inputs!$J$13,"") -> 325.171875
A84: Tenant Share Lease Variable Expenses: | B84: =IF(Inputs!$C$12,Inputs!$C$11,"") -> Irr Corn | C84: =IF(Inputs!$D$12,Inputs!$D$11,"") -> Irr Soybeans | D84: =IF(Inputs!$E$12,Inputs!$E$11,"") -> Dry Corn | E84: =IF(Inputs!$F$12,Inputs!$F$11,"") -> Dry Soybeans | G84: Total | H84: Per Acre
A85: Seed: | B85: =IF(Inputs!C12,Inputs!C29*Shares!C14,"") -> 85.33 | C85: =IF(Inputs!D12,Inputs!D29*Shares!D14,"") -> 48.4 | D85: =IF(Inputs!E12,Inputs!E29*Shares!E14,"") -> 48.76 | E85: =IF(Inputs!F12,Inputs!F29*Shares!F14,"") -> 44 | G85: =IF(Inputs!$J$12,SUMPRODUCT($B$74:$E$74,B85:E85),"") -> 10083.85 | H85: =IF(Inputs!$J$12,G85/Inputs!$J$13,"") -> 63.0240625
A86: Fertilizer: | B86: =IF(Inputs!C12,Inputs!C38*Shares!C15,"") -> 80.1675 | C86: =IF(Inputs!D12,Inputs!D38*Shares!D15,"") -> 0.561 | D86: =IF(Inputs!E12,Inputs!E38*Shares!E15,"") -> 40.2925 | E86: =IF(Inputs!F12,Inputs!F38*Shares!F15,"") -> 0.561 | G86: =IF(Inputs!$J$12,SUMPRODUCT($B$74:$E$74,B86:E86),"") -> 5860.155 | H86: =IF(Inputs!$J$12,G86/Inputs!$J$13,"") -> 36.62596875
A87: Herbicide: | B87: =IF(Inputs!C12,Inputs!C50*Shares!C16,"") -> 64.9625 | C87: =IF(Inputs!D12,Inputs!D50*Shares!D16,"") -> 31.74 | D87: =IF(Inputs!E12,Inputs!E50*Shares!E16,"") -> 36.8525 | E87: =IF(Inputs!F12,Inputs!F50*Shares!F16,"") -> 31.74 | G87: =IF(Inputs!$J$12,SUMPRODUCT($B$74:$E$74,B87:E87),"") -> 7314.55 | H87: =IF(Inputs!$J$12,G87/Inputs!$J$13,"") -> 45.7159375
A88: Insecticide & Fungicide: | B88: =IF(Inputs!C12,Inputs!C58*Shares!C17,"") -> 0.58528 | C88: =IF(Inputs!D12,Inputs!D58*Shares!D17,"") -> 6.22395 | D88: =IF(Inputs!E12,Inputs!E58*Shares!E17,"") -> 0.58528 | E88: =IF(Inputs!F12,Inputs!F58*Shares!F17,"") -> 0.4752 | G88: =IF(Inputs!$J$12,SUMPRODUCT($B$74:$E$74,B88:E88),"") -> 458.50715 | H88: =IF(Inputs!$J$12,G88/Inputs!$J$13,"") -> 2.865669688
A89: Crop Insurance: | B89: =IF(Inputs!C12,Inputs!C65*Shares!C18,"") -> 5 | C89: =IF(Inputs!D12,Inputs!D65*Shares!D18,"") -> 4.25 | D89: =IF(Inputs!E12,Inputs!E65*Shares!E18,"") -> 11.5 | E89: =IF(Inputs!F12,Inputs!F65*Shares!F18,"") -> 8 | G89: =IF(Inputs!$J$12,SUMPRODUCT($B$74:$E$74,B89:E89),"") -> 893.75 | H89: =IF(Inputs!$J$12,G89/Inputs!$J$13,"") -> 5.5859375
A90: Crop Consulting: | B90: =IF(Inputs!C12,Inputs!C69*Shares!C19,"") -> 5 | C90: =IF(Inputs!D12,Inputs!D69*Shares!D19,"") -> 5 | D90: =IF(Inputs!E12,Inputs!E69*Shares!E19,"") -> 3.5 | E90: =IF(Inputs!F12,Inputs!F69*Shares!F19,"") -> 3.5 | G90: =IF(Inputs!$J$12,SUMPRODUCT($B$74:$E$74,B90:E90),"") -> 755 | H90: =IF(Inputs!$J$12,G90/Inputs!$J$13,"") -> 4.71875
A91: Machinery/Field Operations: | B91: =IF(Inputs!C12,Inputs!C86*Shares!C20,"") -> 130.9 | C91: =IF(Inputs!D12,Inputs!D86*Shares!D20,"") -> 103.78 | D91: =IF(Inputs!E12,Inputs!E86*Shares!E20,"") -> 38.58 | E91: =IF(Inputs!F12,Inputs!F86*Shares!F20,"") -> 34.72 | G91: =IF(Inputs!$J$12,SUMPRODUCT($B$74:$E$74,B91:E91),"") -> 16353.7 | H91: =IF(Inputs!$J$12,G91/Inputs!$J$13,"") -> 102.210625
A92: Custom Operations: | B92: =IF(Inputs!C12,Inputs!C93*Shares!C21,"") -> 48.85 | C92: =IF(Inputs!D12,Inputs!D93*Shares!D21,"") -> 12.05 | D92: =IF(Inputs!E12,Inputs!E93*Shares!E21,"") -> 27.1 | E92: =IF(Inputs!F12,Inputs!F93*Shares!F21,"") -> 6.13 | G92: =IF(Inputs!$J$12,SUMPRODUCT($B$74:$E$74,B92:E92),"") -> 4456.95 | H92: =IF(Inputs!$J$12,G92/Inputs!$J$13,"") -> 27.8559375
A93: Irrigation: | B93: =IF(Inputs!C12,Inputs!C98*Shares!C22,"") -> 33.75 | C93: =IF(Inputs!D12,Inputs!D98*Shares!D22,"") -> 22.5 | D93: =IF(Inputs!E12,Inputs!E98*Shares!E22,"") -> 0 | E93: =IF(Inputs!F12,Inputs!F98*Shares!F22,"") -> 0 | G93: =IF(Inputs!$J$12,SUMPRODUCT($B$74:$E$74,B93:E93),"") -> 3656.25 | H93: =IF(Inputs!$J$12,G93/Inputs!$J$13,"") -> 22.8515625
A94: Labor/Management: | B94: =IF(Inputs!C12,Inputs!C105*Shares!C23,"") -> 28.33 | C94: =IF(Inputs!D12,Inputs!D105*Shares!D23,"") -> 25.55333333 | D94: =IF(Inputs!E12,Inputs!E105*Shares!E23,"") -> 20 | E94: =IF(Inputs!F12,Inputs!F105*Shares!F23,"") -> 20 | G94: =IF(Inputs!$J$12,SUMPRODUCT($B$74:$E$74,B94:E94),"") -> 4102.416667 | H94: =IF(Inputs!$J$12,G94/Inputs!$J$13,"") -> 25.64010417
A95: Drying, Storage, Transportation: | B95: =IF(Inputs!C12,Inputs!C112*Shares!C24,"") -> 17.4375 | C95: =IF(Inputs!D12,Inputs!D112*Shares!D24,"") -> 3.575 | D95: =IF(Inputs!E12,Inputs!E112*Shares!E24,"") -> 9.6875 | E95: =IF(Inputs!F12,Inputs!F112*Shares!F24,"") -> 2.365 | G95: =IF(Inputs!$J$12,SUMPRODUCT($B$74:$E$74,B95:E95),"") -> 1546.6 | H95: =IF(Inputs!$J$12,G95/Inputs!$J$13,"") -> 9.66625
A96: Rent: | B96: =IF(Inputs!C12,Inputs!C120,"") -> 0 | C96: =IF(Inputs!D12,Inputs!D120,"") -> 0 | D96: =IF(Inputs!E12,Inputs!E120,"") -> 0 | E96: =IF(Inputs!F12,Inputs!F120,"") -> 0 | G96: =IF(Inputs!$J$12,SUMPRODUCT($B$74:$E$74,B96:E96),"") -> 0 | H96: =IF(Inputs!$J$12,G96/Inputs!$J$13,"") -> 0
A97: Interest on Variable Expenses: | B97: =IF(Inputs!C12,B229,"") -> 12.5078195 | C97: =IF(Inputs!D12,C229,"") -> 6.590832083 | D97: =IF(Inputs!E12,D229,"") -> 5.9214445 | E97: =IF(Inputs!F12,E229,"") -> 3.78728 | G97: =IF(Inputs!$J$12,SUMPRODUCT($B$74:$E$74,B97:E97),"") -> 1387.04322 | H97: =IF(Inputs!$J$12,G97/Inputs!$J$13,"") -> 8.669020128
A98: Total Variable Expenses: | B98: =IF(Inputs!C12,SUM(B85:B97),"") -> 512.8205995 | C98: =IF(Inputs!D12,SUM(C85:C97),"") -> 270.2241154 | D98: =IF(Inputs!E12,SUM(D85:D97),"") -> 242.7792245 | E98: =IF(Inputs!F12,SUM(E85:E97),"") -> 155.27848 | G98: =IF(Inputs!$J$12,SUMPRODUCT($B$74:$E$74,B98:E98),"") -> 56868.77204 | H98: =IF(Inputs!$J$12,G98/Inputs!$J$13,"") -> 355.4298252
A100: Tenant Share Lease Fixed Expenses: | B100: =IF(Inputs!$C$12,Inputs!$C$11,"") -> Irr Corn | C100: =IF(Inputs!$D$12,Inputs!$D$11,"") -> Irr Soybeans | D100: =IF(Inputs!$E$12,Inputs!$E$11,"") -> Dry Corn | E100: =IF(Inputs!$F$12,Inputs!$F$11,"") -> Dry Soybeans | G100: Total | H100: Per Acre
A101: Lime: | B101: =IF(Inputs!C12,Inputs!C130*Shares!C27,"") -> 0 | C101: =IF(Inputs!D12,Inputs!D130*Shares!D27,"") -> 0 | D101: =IF(Inputs!E12,Inputs!E130*Shares!E27,"") -> 0 | E101: =IF(Inputs!F12,Inputs!F130*Shares!F27,"") -> 0 | G101: =IF(Inputs!$J$12,SUMPRODUCT($B$74:$E$74,B101:E101),"") -> 0 | H101: =IF(Inputs!$J$12,G101/Inputs!$J$13,"") -> 0
A102: Machinery/Field Operations: | B102: =IF(Inputs!C12,Inputs!C147*Shares!C28,"") -> 40.445 | C102: =IF(Inputs!D12,Inputs!D147*Shares!D28,"") -> 21.45 | D102: =IF(Inputs!E12,Inputs!E147*Shares!E28,"") -> 28.375 | E102: =IF(Inputs!F12,Inputs!F147*Shares!F28,"") -> 20.28 | G102: =IF(Inputs!$J$12,SUMPRODUCT($B$74:$E$74,B102:E102),"") -> 4753 | H102: =IF(Inputs!$J$12,G102/Inputs!$J$13,"") -> 29.70625
A103: Irrigation: | B103: =IF(Inputs!C12,Inputs!C264,"") -> 0 | C103: =IF(Inputs!D12,Inputs!D264,"") -> 0 | D103: =IF(Inputs!E12,Inputs!E264,"") -> 0 | E103: =IF(Inputs!F12,Inputs!F264,"") -> 0 | G103: =IF(Inputs!$J$12,SUMPRODUCT($B$74:$E$74,B103:E103),"") -> 0 | H103: =IF(Inputs!$J$12,G103/Inputs!$J$13,"") -> 0
A104: Total Fixed Expenses: | B104: =IF(Inputs!C12,SUM(B101:B103),"") -> 40.445 | C104: =IF(Inputs!D12,SUM(C101:C103),"") -> 21.45 | D104: =IF(Inputs!E12,SUM(D101:D103),"") -> 28.375 | E104: =IF(Inputs!F12,SUM(E101:E103),"") -> 20.28 | G104: =IF(Inputs!$J$12,SUMPRODUCT($B$74:$E$74,B104:E104),"") -> 4753 | H104: =IF(Inputs!$J$12,G104/Inputs!$J$13,"") -> 29.70625
A106: Tenant Share Lease Totals: | B106: =IF(Inputs!$C$12,Inputs!$C$11,"") -> Irr Corn | C106: =IF(Inputs!$D$12,Inputs!$D$11,"") -> Irr Soybeans | D106: =IF(Inputs!$E$12,Inputs!$E$11,"") -> Dry Corn | E106: =IF(Inputs!$F$12,Inputs!$F$11,"") -> Dry Soybeans | G106: Total | H106: Per Acre
A107: Total Expenses: | B107: =IF(Inputs!C12,B98+B104,"") -> 553.2655995 | C107: =IF(Inputs!D12,C98+C104,"") -> 291.6741154 | D107: =IF(Inputs!E12,D98+D104,"") -> 271.1542245 | E107: =IF(Inputs!F12,E98+E104,"") -> 175.55848 | G107: =IF(Inputs!J12,G98+G104,"") -> 61621.77204 | H107: =IF(Inputs!$J$12,G107/Inputs!$J$13,"") -> 385.1360752
A108: Revenue Less Variable Expenses: | B108: =IF(Inputs!C12,B82-B98,"") -> -102.1955995 | C108: =IF(Inputs!D12,C82-C98,"") -> 22.27588458 | D108: =IF(Inputs!E12,D82-D98,"") -> -14.6542245 | E108: =IF(Inputs!F12,E82-E98,"") -> 38.22152 | G108: =IF(Inputs!J12,G82-G98,"") -> -4841.272037 | H108: =IF(Inputs!$J$12,G108/Inputs!$J$13,"") -> -30.25795023
A109: Revenue Less Total Expenses: | B109: =IF(Inputs!C12,B82-B98-B104,"") -> -142.6405995 | C109: =IF(Inputs!D12,C82-C98-C104,"") -> 0.8258845833 | D109: =IF(Inputs!E12,D82-D98-D104,"") -> -43.0292245 | E109: =IF(Inputs!F12,E82-E98-E104,"") -> 17.94152 | G109: =IF(Inputs!J12,G82-G98-G104,"") -> -9594.272037 | H109: =IF(Inputs!$J$12,G109/Inputs!$J$13,"") -> -59.96420023
A111: Tenant Share Lease Relative Contributions: | B111: =IF(Inputs!$C$12,Inputs!$C$11,"") -> Irr Corn | C111: =IF(Inputs!$D$12,Inputs!$D$11,"") -> Irr Soybeans | D111: =IF(Inputs!$E$12,Inputs!$E$11,"") -> Dry Corn | E111: =IF(Inputs!$F$12,Inputs!$F$11,"") -> Dry Soybeans | G111: Total | H111: Per Acre
A112: Variable Expenses: | B112: =IF(Inputs!C12,'Share Summary'!B98,"") -> 512.8205995 | C112: =IF(Inputs!D12,'Share Summary'!C98,"") -> 270.2241154 | D112: =IF(Inputs!E12,'Share Summary'!D98,"") -> 242.7792245 | E112: =IF(Inputs!F12,'Share Summary'!E98,"") -> 155.27848 | G112: =IF(Inputs!J12,SUMPRODUCT($B$74:$E$74,B112:E112),"") -> 56868.77204 | H112: =IF(Inputs!$J$12,G112/Inputs!$J$13,"") -> 355.4298252
A113: Fixed Expenses: | B113: =IF(Inputs!C12,'Share Summary'!B104,"") -> 40.445 | C113: =IF(Inputs!D12,'Share Summary'!C104,"") -> 21.45 | D113: =IF(Inputs!E12,'Share Summary'!D104,"") -> 28.375 | E113: =IF(Inputs!F12,'Share Summary'!E104,"") -> 20.28 | G113: =IF(Inputs!J12,SUMPRODUCT($B$74:$E$74,B113:E113),"") -> 4753 | H113: =IF(Inputs!$J$12,G113/Inputs!$J$13,"") -> 29.70625
A114: Total Contribution: | B114: =IF(Inputs!C12,B112+B113,"") -> 553.2655995 | C114: =IF(Inputs!D12,C112+C113,"") -> 291.6741154 | D114: =IF(Inputs!E12,D112+D113,"") -> 271.1542245 | E114: =IF(Inputs!F12,E112+E113,"") -> 175.55848 | G114: =IF(Inputs!J12,G112+G113,"") -> 61621.77204 | H114: =IF(Inputs!$J$12,G114/Inputs!$J$13,"") -> 385.1360752
A115: Net Contribution Percentage: | B115: =IF(Inputs!C12,B114/('Share Summary'!B49+B114),"") -> 0.5733633283 | C115: =IF(Inputs!D12,C114/('Share Summary'!C49+C114),"") -> 0.4852903764 | D115: =IF(Inputs!E12,D114/('Share Summary'!D49+D114),"") -> 0.5208908382 | E115: =IF(Inputs!F12,E114/('Share Summary'!E49+E114),"") -> 0.4706255259 | G115: =IF(Inputs!J12,G114/(G49+G114),"") -> 0.5349464341 | H115: =IF(Inputs!J12,H114/(H49+H114),"") -> 0.5349464341
A117: Tenant Share Lease Comparison: | B117: =IF(Inputs!$C$12,Inputs!$C$11,"") -> Irr Corn | C117: =IF(Inputs!$D$12,Inputs!$D$11,"") -> Irr Soybeans | D117: =IF(Inputs!$E$12,Inputs!$E$11,"") -> Dry Corn | E117: =IF(Inputs!$F$12,Inputs!$F$11,"") -> Dry Soybeans | G117: Total | H117: Per Acre
A118: Equivalent Cash Rent: | B118: =IF(Inputs!C12,'Share Summary'!B255,"") -> 265.136213 | C118: =IF(Inputs!D12,'Share Summary'!C255,"") -> 249.3373013 | D118: =IF(Inputs!E12,'Share Summary'!D255,"") -> 160.920588 | E118: =IF(Inputs!F12,'Share Summary'!E255,"") -> 178.22627 | G118: =IF(Inputs!J12,'Share Summary'!G255,"") -> 38527.9813 | H118: =IF(Inputs!$J$12,G118/Inputs!$J$13,"") -> 240.7998831
A120: Tenant Share Lease Breakevens: | B120: =IF(Inputs!$C$12,Inputs!$C$11,"") -> Irr Corn | C120: =IF(Inputs!$D$12,Inputs!$D$11,"") -> Irr Soybeans | D120: =IF(Inputs!$E$12,Inputs!$E$11,"") -> Dry Corn | E120: =IF(Inputs!$F$12,Inputs!$F$11,"") -> Dry Soybeans
A121: Breakeven Yield to Cover Variable Costs: | B121: =IF(Inputs!C12,('Share Summary'!B98-SUM('Share Summary'!B80:B81))/'Share Summary'!B78,"") -> 140.4987944 | C121: =IF(Inputs!D12,('Share Summary'!C98-SUM('Share Summary'!C80:C81))/'Share Summary'!C78,"") -> 30.02490171 | D121: =IF(Inputs!E12,('Share Summary'!D98-SUM('Share Summary'!D80:D81))/'Share Summary'!D78,"") -> 66.51485603 | E121: =IF(Inputs!F12,('Share Summary'!E98-SUM('Share Summary'!E80:E81))/'Share Summary'!E78,"") -> 17.25316444 | G121: ----- | H121: -----
A122: Breakeven Yield to Cover Total Costs: | B122: =IF(Inputs!C12,('Share Summary'!B107-SUM('Share Summary'!B80:B81))/'Share Summary'!B78,"") -> 151.5796163 | C122: =IF(Inputs!D12,('Share Summary'!C107-SUM('Share Summary'!C80:C81))/'Share Summary'!C78,"") -> 32.40823505 | D122: =IF(Inputs!E12,('Share Summary'!D107-SUM('Share Summary'!D80:D81))/'Share Summary'!D78,"") -> 74.28882863 | E122: =IF(Inputs!F12,('Share Summary'!E107-SUM('Share Summary'!E80:E81))/'Share Summary'!E78,"") -> 19.50649778 | G122: ----- | H122: -----
A124: Breakeven Price to Cover Variable Costs: | B124: =IF(Inputs!C12,('Share Summary'!B98-SUM('Share Summary'!B80:B81))/'Share Summary'!B77,"") -> 4.558405329 | C124: =IF(Inputs!D12,('Share Summary'!C98-SUM('Share Summary'!C80:C81))/'Share Summary'!C77,"") -> 8.314588167 | D124: =IF(Inputs!E12,('Share Summary'!D98-SUM('Share Summary'!D80:D81))/'Share Summary'!D77,"") -> 3.884467592 | E124: =IF(Inputs!F12,('Share Summary'!E98-SUM('Share Summary'!E80:E81))/'Share Summary'!E77,"") -> 7.222254884 | G124: ----- | H124: -----
A125: Breakeven Price to Cover Total Costs: | B125: =IF(Inputs!C12,('Share Summary'!B107-SUM('Share Summary'!B80:B81))/'Share Summary'!B77,"") -> 4.91791644 | C125: =IF(Inputs!D12,('Share Summary'!C107-SUM('Share Summary'!C80:C81))/'Share Summary'!C77,"") -> 8.974588167 | D125: =IF(Inputs!E12,('Share Summary'!D107-SUM('Share Summary'!D80:D81))/'Share Summary'!D77,"") -> 4.338467592 | E125: =IF(Inputs!F12,('Share Summary'!E107-SUM('Share Summary'!E80:E81))/'Share Summary'!E77,"") -> 8.165510698 | G125: ----- | H125: -----
A223: This information is used in calculations:
A225: Tenant:
A227: Interest Expense: | B227: =Inputs!$C$11 -> Irr Corn | C227: =Inputs!$D$11 -> Irr Soybeans | D227: =Inputs!$E$11 -> Dry Corn | E227: =Inputs!$F$11 -> Dry Soybeans | G227: Total
A228: Principle | B228: =SUM(B85:B95)+(B96*Inputs!$C$171) -> 500.31278 | C228: =SUM(C85:C95)+(C96*Inputs!$C$171) -> 263.6332833 | D228: =SUM(D85:D95)+(D96*Inputs!$C$171) -> 236.85778 | E228: =SUM(E85:E95)+(E96*Inputs!$C$171) -> 151.4912 | G228: =SUMPRODUCT(Inputs!$B$68:$E$68,B228:E228) -> 6065.349033
A229: Interest on Variable Expenses: | B229: =B228*Inputs!$C$175*(Inputs!$C$176/12) -> 12.5078195 | C229: =C228*Inputs!$C$175*(Inputs!$C$176/12) -> 6.590832083 | D229: =D228*Inputs!$C$175*(Inputs!$C$176/12) -> 5.9214445 | E229: =E228*Inputs!$C$175*(Inputs!$C$176/12) -> 3.78728 | G229: =SUMPRODUCT(Inputs!$B$68:$E$68,B229:E229) -> 151.6337258
A231: Landowner:
A233: Interest Expense: | B233: =Inputs!$C$11 -> Irr Corn | C233: =Inputs!$D$11 -> Irr Soybeans | D233: =Inputs!$E$11 -> Dry Corn | E233: =Inputs!$F$11 -> Dry Soybeans | G233: Total
A234: Principle | B234: =SUM(B19:B29) -> 141.94028 | C234: =SUM(C19:C29) -> 42.10995 | D234: =SUM(D19:D29) -> 65.56528 | E234: =SUM(E19:E29) -> 14.9012 | G234: =SUMPRODUCT(Inputs!$B$12:$E$12,B234:E234) -> 7222.40795
A235: Interest on Variable Expenses: | B235: =B234*Inputs!$C$175*(Inputs!$C$176/12) -> 3.548507 | C235: =C234*Inputs!$C$175*(Inputs!$C$176/12) -> 1.05274875 | D235: =D234*Inputs!$C$175*(Inputs!$C$176/12) -> 1.639132 | E235: =E234*Inputs!$C$175*(Inputs!$C$176/12) -> 0.37253 | G235: =SUMPRODUCT(Inputs!$B$12:$E$12,B235:E235) -> 180.5601988
A238: This information is used in calculations:
A240: Cash Rent Equivalent
A241: Landowner | B241: =Inputs!C11 -> Irr Corn | C241: =Inputs!D11 -> Irr Soybeans | D241: =Inputs!E11 -> Dry Corn | E241: =Inputs!F11 -> Dry Soybeans | G241: Total
A242: Income | B242: ='Share Summary'!B43 -> 141.1429438 | C242: ='Share Summary'!C43 -> 125.344032 | D242: ='Share Summary'!D43 -> 120.920588 | E242: ='Share Summary'!E43 -> 138.22627 | G242: ='Share Summary'!G43 -> 21208.8563
A243: Fixed Expenses | B243: ='Cash Summary'!B17 -> 123.9932692 | C243: ='Cash Summary'!C17 -> 123.9932692 | D243: ='Cash Summary'!D17 -> 40 | E243: ='Cash Summary'!E17 -> 40 | G243: ='Cash Summary'!G17 -> 17319.125
A244: Equivalent | B244: =(B243+B242)/Inputs!C13 -> 265.136213 | C244: =(C243+C242)/Inputs!D13 -> 249.3373012 | D244: =(D243+D242)/Inputs!E13 -> 160.920588 | E244: =(E243+E242)/Inputs!F13 -> 178.22627 | G244: =G243+G242 -> 38527.9813
A245: (per Acre for Total) | G245: =G244/Inputs!J13 -> 240.7998831
A247: Cash Rent Equivalent
A248: Tenant | B248: =Inputs!C11 -> Irr Corn | C248: =Inputs!D11 -> Irr Soybeans | D248: =Inputs!E11 -> Dry Corn | E248: =Inputs!F11 -> Dry Soybeans | G248: Total
A249: Income | B249: ='Cash Summary'!B44 -> 821.25 | C249: ='Cash Summary'!C44 -> 585 | D249: ='Cash Summary'!D44 -> 456.25 | E249: ='Cash Summary'!E44 -> 387 | G249: ='Cash Summary'!G44 -> 104055
A250: Variable Expenses | B250: =SUM('Cash Summary'!B47:B57) -> 642.25306 | C250: =SUM('Cash Summary'!C47:C57) -> 305.7432333 | D250: =SUM('Cash Summary'!D47:D57) -> 302.42306 | E250: =SUM('Cash Summary'!E47:E57) -> 166.3924 | G250: =SUM('Cash Summary'!G47:G57) -> 68651.99097
A251: Interest - Rent Expense | B251: =B250*(Inputs!$C$175)*(Inputs!$C$176/12) -> 16.0563265 | C251: =C250*(Inputs!$C$175)*(Inputs!$C$176/12) -> 7.643580833 | D251: =D250*(Inputs!$C$175)*(Inputs!$C$176/12) -> 7.5605765 | E251: =E250*(Inputs!$C$175)*(Inputs!$C$176/12) -> 4.15981 | G251: =G250*(Inputs!$C$175)*(Inputs!$C$176/12) -> 1716.299774
A252: Fixed Expenses | B252: ='Cash Summary'!B65 -> 40.445 | C252: ='Cash Summary'!C65 -> 21.45 | D252: ='Cash Summary'!D65 -> 28.375 | E252: ='Cash Summary'!E65 -> 20.28 | G252: ='Cash Summary'!G65 -> 4753
A253: Difference | B253: =B249-B250-B251-B252 -> 122.4956135 | C253: =C249-C250-C251-C252 -> 250.1631858 | D253: =D249-D250-D251-D252 -> 117.8913635 | E253: =E249-E250-E251-E252 -> 196.16779 | G253: =G249-G250-G251-G252 -> 28933.70926
A254: Cash Profit under Share | B254: ='Share Summary'!B109 -> -142.6405995 | C254: ='Share Summary'!C109 -> 0.8258845833 | D254: ='Share Summary'!D109 -> -43.0292245 | E254: ='Share Summary'!E109 -> 17.94152 | G254: ='Share Summary'!G109 -> -9594.272037
A255: Equivalent | B255: =(B253-B254)/Inputs!C13 -> 265.136213 | C255: =(C253-C254)/Inputs!D13 -> 249.3373013 | D255: =(D253-D254)/Inputs!E13 -> 160.920588 | E255: =(E253-E254)/Inputs!F13 -> 178.22627 | G255: =G253-G254 -> 38527.9813
A256: (per Acre for Total) | G256: =G255/Inputs!J13 -> 240.7998831

Sheet Share Sensitivity
A1: LANDOWNER SHARE LEASE SENSITIVITY MATRIX
A3: =Inputs!B4 -> Average Joe Landowner
A4: =Inputs!B9 -> Pivot Irrigated Quarter Section with Dryland Corners
A6: Landowner Revenue Less Variable Costs (per Acre)
A7: on a Share Lease under Various Yields and Prices
D9: Yields | E9: Below | G9: Average | H9: Above
E10: 0.25 | F10: 0.1 | H10: 0.1 | I10: 0.25
D11: =IF(Inputs!$C$12,Inputs!$C$11,"") -> Irr Corn | E11: =IF(Inputs!$C$12,'Share Summary'!$B$10*0.75,"") -> 84.375 | F11: =IF(Inputs!$C$12,'Share Summary'!$B$10*0.9,"") -> 101.25 | G11: =IF(Inputs!$C$12,'Share Summary'!$B$10,"") -> 112.5 | H11: =IF(Inputs!$C$12,'Share Summary'!$B$10*1.1,"") -> 123.75 | I11: =IF(Inputs!$C$12,'Share Summary'!$B$10*1.25,"") -> 140.625
D12: =IF(Inputs!$D$12,Inputs!$D$11,"") -> Irr Soybeans | E12: =IF(Inputs!$D$12,'Share Summary'!$C$10*0.75,"") -> 24.375 | F12: =IF(Inputs!$D$12,'Share Summary'!$C$10*0.9,"") -> 29.25 | G12: =IF(Inputs!$D$12,'Share Summary'!$C$10,"") -> 32.5 | H12: =IF(Inputs!$D$12,'Share Summary'!$C$10*1.1,"") -> 35.75 | I12: =IF(Inputs!$D$12,'Share Summary'!$C$10*1.25,"") -> 40.625
D13: =IF(Inputs!$E$12,Inputs!$E$11,"") -> Dry Corn | E13: =IF(Inputs!$E$12,'Share Summary'!$D$10*0.75,"") -> 46.875 | F13: =IF(Inputs!$E$12,'Share Summary'!$D$10*0.9,"") -> 56.25 | G13: =IF(Inputs!$E$12,'Share Summary'!$D$10,"") -> 62.5 | H13: =IF(Inputs!$E$12,'Share Summary'!$D$10*1.1,"") -> 68.75 | I13: =IF(Inputs!$E$12,'Share Summary'!$D$10*1.25,"") -> 78.125
B14: Prices | D14: =IF(Inputs!$F$12,Inputs!$F$11,"") -> Dry Soybeans | E14: =IF(Inputs!$F$12,'Share Summary'!$E$10*0.75,"") -> 16.125 | F14: =IF(Inputs!$F$12,'Share Summary'!$E$10*0.9,"") -> 19.35 | G14: =IF(Inputs!$F$12,'Share Summary'!$E$10,"") -> 21.5 | H14: =IF(Inputs!$F$12,'Share Summary'!$E$10*1.1,"") -> 23.65 | I14: =IF(Inputs!$F$12,'Share Summary'!$E$10*1.25,"") -> 26.875
C15: =IF(Inputs!$C$12,Inputs!$C$11,"") -> Irr Corn | D15: =IF(Inputs!$C$12,Inputs!$C$18*0.75,"") -> 2.7375 | E15: =IF(Inputs!$J$12,(SUMPRODUCT(D15:D18,$E$11:$E$14,$F$349:$F$352)+SUM('Share Summary'!$G$13:$G$15)-'Share Summary'!$G$31+($E$10*'Share Summary'!$G$29)+('Share Sensitivity'!$E$10*'Share Summary'!$G$29*(Inputs!$C$175*(Inputs!$C$176/12))))/Inputs!J13,"") -> 101.0141644 | F15: =IF(Inputs!$J$12,(SUMPRODUCT(D15:D18,$F$11:$F$14,$F$349:$F$352)+SUM('Share Summary'!$G$13:$G$15)-'Share Summary'!$G$31+($F$10*'Share Summary'!$G$29)+('Share Sensitivity'!$F$10*'Share Summary'!$G$29*(Inputs!$C$175*(Inputs!$C$176/12))))/Inputs!J13,"") -> 136.1098144 | G15: =IF(Inputs!$J$12,(SUMPRODUCT(D15:D18,$G$11:$G$14,$F$349:$F$352)+SUM('Share Summary'!$G$13:$G$15)-'Share Summary'!$G$31)/Inputs!J13,"") -> 159.5069144 | H15: =IF(Inputs!$J$12,(SUMPRODUCT(D15:D18,$H$11:$H$14,$F$349:$F$352)+SUM('Share Summary'!$G$13:$G$15)-'Share Summary'!$G$31-($H$10*'Share Summary'!$G$29)-('Share Sensitivity'!$H$10*'Share Summary'!$G$29*(Inputs!$C$175*(Inputs!$C$176/12))))/Inputs!J13,"") -> 182.9040144 | I15: =IF(Inputs!$J$12,(SUMPRODUCT(D15:D18,$I$11:$I$14,$F$349:$F$352)+SUM('Share Summary'!$G$13:$G$15)-'Share Summary'!$G$31-($I$10*'Share Summary'!$G$29)-('Share Sensitivity'!$I$10*'Share Summary'!$G$29*(Inputs!$C$175*(Inputs!$C$176/12))))/Inputs!J13,"") -> 217.9996644
B16: 0.25 | C16: =IF(Inputs!$D$12,Inputs!$D$11,"") -> Irr Soybeans | D16: =IF(Inputs!$D$12,Inputs!$D$18*0.75,"") -> 6.75
B17: Below | C17: =IF(Inputs!$E$12,Inputs!$E$11,"") -> Dry Corn | D17: =IF(Inputs!$E$12,Inputs!$E$18*0.75,"") -> 2.7375
C18: =IF(Inputs!$F$12,Inputs!$F$11,"") -> Dry Soybeans | D18: =IF(Inputs!$F$12,Inputs!$F$18*0.75,"") -> 6.75
C19: =IF(Inputs!$C$12,Inputs!$C$11,"") -> Irr Corn | D19: =IF(Inputs!$C$12,Inputs!$C$18*0.9,"") -> 3.285 | E19: =IF(Inputs!$J$12,(SUMPRODUCT(D19:D22,$E$11:$E$14,$F$349:$F$352)+SUM('Share Summary'!$G$13:$G$15)-'Share Summary'!$G$31+($E$10*'Share Summary'!$G$29)+('Share Sensitivity'!$E$10*'Share Summary'!$G$29*(Inputs!$C$175*(Inputs!$C$176/12))))/Inputs!J13,"") -> 137.5960003 | F19: =IF(Inputs!$J$12,(SUMPRODUCT(D19:D22,$F$11:$F$14,$F$349:$F$352)+SUM('Share Summary'!$G$13:$G$15)-'Share Summary'!$G$31+($F$10*'Share Summary'!$G$29)+('Share Sensitivity'!$F$10*'Share Summary'!$G$29*(Inputs!$C$175*(Inputs!$C$176/12))))/Inputs!J13,"") -> 180.0080175 | G19: =IF(Inputs!$J$12,(SUMPRODUCT(D19:D22,$G$11:$G$14,$F$349:$F$352)+SUM('Share Summary'!$G$13:$G$15)-'Share Summary'!$G$31)/Inputs!J13,"") -> 208.2826956 | H19: =IF(Inputs!$J$12,(SUMPRODUCT(D19:D22,$H$11:$H$14,$F$349:$F$352)+SUM('Share Summary'!$G$13:$G$15)-'Share Summary'!$G$31-($H$10*'Share Summary'!$G$29)-('Share Sensitivity'!$H$10*'Share Summary'!$G$29*(Inputs!$C$175*(Inputs!$C$176/12))))/Inputs!J13,"") -> 236.5573737 | I19: =IF(Inputs!$J$12,(SUMPRODUCT(D19:D22,$I$11:$I$14,$F$349:$F$352)+SUM('Share Summary'!$G$13:$G$15)-'Share Summary'!$G$31-($I$10*'Share Summary'!$G$29)-('Share Sensitivity'!$I$10*'Share Summary'!$G$29*(Inputs!$C$175*(Inputs!$C$176/12))))/Inputs!J13,"") -> 278.9693909
B20: 0.1 | C20: =IF(Inputs!$D$12,Inputs!$D$11,"") -> Irr Soybeans | D20: =IF(Inputs!$D$12,Inputs!$D$18*0.9,"") -> 8.1
B21: Below | C21: =IF(Inputs!$E$12,Inputs!$E$11,"") -> Dry Corn | D21: =IF(Inputs!$E$12,Inputs!$E$18*0.9,"") -> 3.285
C22: =IF(Inputs!$F$12,Inputs!$F$11,"") -> Dry Soybeans | D22: =IF(Inputs!$F$12,Inputs!$F$18*0.9,"") -> 8.1
C23: =IF(Inputs!$C$12,Inputs!$C$11,"") -> Irr Corn | D23: =IF(Inputs!$C$12,Inputs!$C$18,"") -> 3.65 | E23: =IF(Inputs!$J$12,(SUMPRODUCT(D23:D26,$E$11:$E$14,$F$349:$F$352)+SUM('Share Summary'!$G$13:$G$15)-'Share Summary'!$G$31+($E$10*'Share Summary'!$G$29)+('Share Sensitivity'!$E$10*'Share Summary'!$G$29*(Inputs!$C$175*(Inputs!$C$176/12))))/Inputs!J13,"") -> 161.9838909 | F23: =IF(Inputs!$J$12,(SUMPRODUCT(D23:D26,$F$11:$F$14,$F$349:$F$352)+SUM('Share Summary'!$G$13:$G$15)-'Share Summary'!$G$31+($F$10*'Share Summary'!$G$29)+('Share Sensitivity'!$F$10*'Share Summary'!$G$29*(Inputs!$C$175*(Inputs!$C$176/12))))/Inputs!J13,"") -> 209.2734862 | G23: =IF(Inputs!$J$12,(SUMPRODUCT(D23:D26,$G$11:$G$14,$F$349:$F$352)+SUM('Share Summary'!$G$13:$G$15)-'Share Summary'!$G$31)/Inputs!J13,"") -> 240.7998831 | H23: =IF(Inputs!$J$12,(SUMPRODUCT(D23:D26,$H$11:$H$14,$F$349:$F$352)+SUM('Share Summary'!$G$13:$G$15)-'Share Summary'!$G$31-($H$10*'Share Summary'!$G$29)-('Share Sensitivity'!$H$10*'Share Summary'!$G$29*(Inputs!$C$175*(Inputs!$C$176/12))))/Inputs!J13,"") -> 272.32628 | I23: =IF(Inputs!$J$12,(SUMPRODUCT(D23:D26,$I$11:$I$14,$F$349:$F$352)+SUM('Share Summary'!$G$13:$G$15)-'Share Summary'!$G$31-($I$10*'Share Summary'!$G$29)-('Share Sensitivity'!$I$10*'Share Summary'!$G$29*(Inputs!$C$175*(Inputs!$C$176/12))))/Inputs!J13,"") -> 319.6158753
B24: Average | C24: =IF(Inputs!$D$12,Inputs!$D$11,"") -> Irr Soybeans | D24: =IF(Inputs!$D$12,Inputs!$D$18,"") -> 9
C25: =IF(Inputs!$E$12,Inputs!$E$11,"") -> Dry Corn | D25: =IF(Inputs!$E$12,Inputs!$E$18,"") -> 3.65
C26: =IF(Inputs!$F$12,Inputs!$F$11,"") -> Dry Soybeans | D26: =IF(Inputs!$F$12,Inputs!$F$18,"") -> 9
C27: =IF(Inputs!$C$12,Inputs!$C$11,"") -> Irr Corn | D27: =IF(Inputs!$C$12,Inputs!$C$18*1.1,"") -> 4.015 | E27: =IF(Inputs!$J$12,(SUMPRODUCT(D27:D30,$E$11:$E$14,$F$349:$F$352)+SUM('Share Summary'!$G$13:$G$15)-'Share Summary'!$G$31+($E$10*'Share Summary'!$G$29)+('Share Sensitivity'!$E$10*'Share Summary'!$G$29*(Inputs!$C$175*(Inputs!$C$176/12))))/Inputs!J13,"") -> 186.3717815 | F27: =IF(Inputs!$J$12,(SUMPRODUCT(D27:D30,$F$11:$F$14,$F$349:$F$352)+SUM('Share Summary'!$G$13:$G$15)-'Share Summary'!$G$31+($F$10*'Share Summary'!$G$29)+('Share Sensitivity'!$F$10*'Share Summary'!$G$29*(Inputs!$C$175*(Inputs!$C$176/12))))/Inputs!J13,"") -> 238.538955 | G27: =IF(Inputs!$J$12,(SUMPRODUCT(D27:D30,$G$11:$G$14,$F$349:$F$352)+SUM('Share Summary'!$G$13:$G$15)-'Share Summary'!$G$31)/Inputs!J13,"") -> 273.3170706 | H27: =IF(Inputs!$J$12,(SUMPRODUCT(D27:D30,$H$11:$H$14,$F$349:$F$352)+SUM('Share Summary'!$G$13:$G$15)-'Share Summary'!$G$31-($H$10*'Share Summary'!$G$29)-('Share Sensitivity'!$H$10*'Share Summary'!$G$29*(Inputs!$C$175*(Inputs!$C$176/12))))/Inputs!J13,"") -> 308.0951862 | I27: =IF(Inputs!$J$12,(SUMPRODUCT(D27:D30,$I$11:$I$14,$F$349:$F$352)+SUM('Share Summary'!$G$13:$G$15)-'Share Summary'!$G$31-($I$10*'Share Summary'!$G$29)-('Share Sensitivity'!$I$10*'Share Summary'!$G$29*(Inputs!$C$175*(Inputs!$C$176/12))))/Inputs!J13,"") -> 360.2623597
B28: 0.1 | C28: =IF(Inputs!$D$12,Inputs!$D$11,"") -> Irr Soybeans | D28: =IF(Inputs!$D$12,Inputs!$D$18*1.1,"") -> 9.9
B29: Above | C29: =IF(Inputs!$E$12,Inputs!$E$11,"") -> Dry Corn | D29: =IF(Inputs!$E$12,Inputs!$E$18*1.1,"") -> 4.015
C30: =IF(Inputs!$F$12,Inputs!$F$11,"") -> Dry Soybeans | D30: =IF(Inputs!$F$12,Inputs!$F$18*1.1,"") -> 9.9
C31: =IF(Inputs!$C$12,Inputs!$C$11,"") -> Irr Corn | D31: =IF(Inputs!$C$12,Inputs!$C$18*1.25,"") -> 4.5625 | E31: =IF(Inputs!$J$12,(SUMPRODUCT(D31:D34,$E$11:$E$14,$F$349:$F$352)+SUM('Share Summary'!$G$13:$G$15)-'Share Summary'!$G$31+($E$10*'Share Summary'!$G$29)+('Share Sensitivity'!$E$10*'Share Summary'!$G$29*(Inputs!$C$175*(Inputs!$C$176/12))))/Inputs!J13,"") -> 222.9536175 | F31: =IF(Inputs!$J$12,(SUMPRODUCT(D31:D34,$F$11:$F$14,$F$349:$F$352)+SUM('Share Summary'!$G$13:$G$15)-'Share Summary'!$G$31+($F$10*'Share Summary'!$G$29)+('Share Sensitivity'!$F$10*'Share Summary'!$G$29*(Inputs!$C$175*(Inputs!$C$176/12))))/Inputs!J13,"") -> 282.4371581 | G31: =IF(Inputs!$J$12,(SUMPRODUCT(D31:D34,$G$11:$G$14,$F$349:$F$352)+SUM('Share Summary'!$G$13:$G$15)-'Share Summary'!$G$31)/Inputs!J13,"") -> 322.0928519 | H31: =IF(Inputs!$J$12,(SUMPRODUCT(D31:D34,$H$11:$H$14,$F$349:$F$352)+SUM('Share Summary'!$G$13:$G$15)-'Share Summary'!$G$31-($H$10*'Share Summary'!$G$29)-('Share Sensitivity'!$H$10*'Share Summary'!$G$29*(Inputs!$C$175*(Inputs!$C$176/12))))/Inputs!J13,"") -> 361.7485456 | I31: =IF(Inputs!$J$12,(SUMPRODUCT(D31:D34,$I$11:$I$14,$F$349:$F$352)+SUM('Share Summary'!$G$13:$G$15)-'Share Summary'!$G$31-($I$10*'Share Summary'!$G$29)-('Share Sensitivity'!$I$10*'Share Summary'!$G$29*(Inputs!$C$175*(Inputs!$C$176/12))))/Inputs!J13,"") -> 421.2320862
B32: 0.25 | C32: =IF(Inputs!$D$12,Inputs!$D$11,"") -> Irr Soybeans | D32: =IF(Inputs!$D$12,Inputs!$D$18*1.25,"") -> 11.25
B33: Above | C33: =IF(Inputs!$E$12,Inputs!$E$11,"") -> Dry Corn | D33: =IF(Inputs!$E$12,Inputs!$E$18*1.25,"") -> 4.5625
C34: =IF(Inputs!$F$12,Inputs!$F$11,"") -> Dry Soybeans | D34: =IF(Inputs!$F$12,Inputs!$F$18*1.25,"") -> 11.25
A36: Landowner Revenue Less Total Costs (per Acre)
A37: on a Share Lease under Various Yields and Prices
D39: Yields | E39: Below | G39: Average | H39: Above
E40: 0.25 | F40: 0.1 | H40: 0.1 | I40: 0.25
D41: =IF(Inputs!$C$12,Inputs!$C$11,"") -> Irr Corn | E41: =IF(Inputs!$C$12,'Share Summary'!$B$10*0.75,"") -> 84.375 | F41: =IF(Inputs!$C$12,'Share Summary'!$B$10*0.9,"") -> 101.25 | G41: =IF(Inputs!$C$12,'Share Summary'!$B$10,"") -> 112.5 | H41: =IF(Inputs!$C$12,'Share Summary'!$B$10*1.1,"") -> 123.75 | I41: =IF(Inputs!$C$12,'Share Summary'!$B$10*1.25,"") -> 140.625
D42: =IF(Inputs!$D$12,Inputs!$D$11,"") -> Irr Soybeans | E42: =IF(Inputs!$D$12,'Share Summary'!$C$10*0.75,"") -> 24.375 | F42: =IF(Inputs!$D$12,'Share Summary'!$C$10*0.9,"") -> 29.25 | G42: =IF(Inputs!$D$12,'Share Summary'!$C$10,"") -> 32.5 | H42: =IF(Inputs!$D$12,'Share Summary'!$C$10*1.1,"") -> 35.75 | I42: =IF(Inputs!$D$12,'Share Summary'!$C$10*1.25,"") -> 40.625
D43: =IF(Inputs!$E$12,Inputs!$E$11,"") -> Dry Corn | E43: =IF(Inputs!$E$12,'Share Summary'!$D$10*0.75,"") -> 46.875 | F43: =IF(Inputs!$E$12,'Share Summary'!$D$10*0.9,"") -> 56.25 | G43: =IF(Inputs!$E$12,'Share Summary'!$D$10,"") -> 62.5 | H43: =IF(Inputs!$E$12,'Share Summary'!$D$10*1.1,"") -> 68.75 | I43: =IF(Inputs!$E$12,'Share Summary'!$D$10*1.25,"") -> 78.125
B44: Prices | D44: =IF(Inputs!$F$12,Inputs!$F$11,"") -> Dry Soybeans | E44: =IF(Inputs!$F$12,'Share Summary'!$E$10*0.75,"") -> 16.125 | F44: =IF(Inputs!$F$12,'Share Summary'!$E$10*0.9,"") -> 19.35 | G44: =IF(Inputs!$F$12,'Share Summary'!$E$10,"") -> 21.5 | H44: =IF(Inputs!$F$12,'Share Summary'!$E$10*1.1,"") -> 23.65 | I44: =IF(Inputs!$F$12,'Share Summary'!$E$10*1.25,"") -> 26.875
C45: =IF(Inputs!$C$12,Inputs!$C$11,"") -> Irr Corn | D45: =IF(Inputs!$C$12,Inputs!$C$18*0.75,"") -> 2.7375 | E45: =IF(Inputs!$J$12,(SUMPRODUCT(D45:D48,$E$41:$E$44,$F$349:$F$352)+SUM('Share Summary'!$G$13:$G$15)-'Share Summary'!$G$41+($E$40*'Share Summary'!$G$29)+('Share Sensitivity'!$E$40*'Share Summary'!$G$29*(Inputs!$C$175*(Inputs!$C$176/12))))/Inputs!J13,"") -> -7.230366898 | F45: =IF(Inputs!$J$12,(SUMPRODUCT(D45:D48,$F$41:$F$44,$F$349:$F$352)+SUM('Share Summary'!$G$13:$G$15)-'Share Summary'!$G$41+($F$40*'Share Summary'!$G$29)+('Share Sensitivity'!$F$40*'Share Summary'!$G$29*(Inputs!$C$175*(Inputs!$C$176/12))))/Inputs!J13,"") -> 27.8652831 | G45: =IF(Inputs!$J$12,(SUMPRODUCT(D45:D48,$G$41:$G$44,$F$349:$F$352)+SUM('Share Summary'!$G$13:$G$15)-'Share Summary'!$G$41)/Inputs!J13,"") -> 51.2623831 | H45: =IF(Inputs!$J$12,(SUMPRODUCT(D45:D48,$H$41:$H$44,$F$349:$F$352)+SUM('Share Summary'!$G$13:$G$15)-'Share Summary'!$G$41-($H$40*'Share Summary'!$G$29)-('Share Sensitivity'!$H$40*'Share Summary'!$G$29*(Inputs!$C$175*(Inputs!$C$176/12))))/Inputs!J13,"") -> 74.6594831 | I45: =IF(Inputs!$J$12,(SUMPRODUCT(D45:D48,$I$41:$I$44,$F$349:$F$352)+SUM('Share Summary'!$G$13:$G$15)-'Share Summary'!$G$41-($I$40*'Share Summary'!$G$29)-('Share Sensitivity'!$I$40*'Share Summary'!$G$29*(Inputs!$C$175*(Inputs!$C$176/12))))/Inputs!J13,"") -> 109.7551331
B46: 0.25 | C46: =IF(Inputs!$D$12,Inputs!$D$11,"") -> Irr Soybeans | D46: =IF(Inputs!$D$12,Inputs!$D$18*0.75,"") -> 6.75
B47: Below | C47: =IF(Inputs!$E$12,Inputs!$E$11,"") -> Dry Corn | D47: =IF(Inputs!$E$12,Inputs!$E$18*0.75,"") -> 2.7375
C48: =IF(Inputs!$F$12,Inputs!$F$11,"") -> Dry Soybeans | D48: =IF(Inputs!$F$12,Inputs!$F$18*0.75,"") -> 6.75
C49: =IF(Inputs!$C$12,Inputs!$C$11,"") -> Irr Corn | D49: =IF(Inputs!$C$12,Inputs!$C$18*0.9,"") -> 3.285 | E49: =IF(Inputs!$J$12,(SUMPRODUCT(D49:D52,$E$41:$E$44,$F$349:$F$352)+SUM('Share Summary'!$G$13:$G$15)-'Share Summary'!$G$41+($E$40*'Share Summary'!$G$29)+('Share Sensitivity'!$E$40*'Share Summary'!$G$29*(Inputs!$C$175*(Inputs!$C$176/12))))/Inputs!J13,"") -> 29.35146904 | F49: =IF(Inputs!$J$12,(SUMPRODUCT(D49:D52,$F$41:$F$44,$F$349:$F$352)+SUM('Share Summary'!$G$13:$G$15)-'Share Summary'!$G$41+($F$40*'Share Summary'!$G$29)+('Share Sensitivity'!$F$40*'Share Summary'!$G$29*(Inputs!$C$175*(Inputs!$C$176/12))))/Inputs!J13,"") -> 71.76348623 | G49: =IF(Inputs!$J$12,(SUMPRODUCT(D49:D52,$G$41:$G$44,$F$349:$F$352)+SUM('Share Summary'!$G$13:$G$15)-'Share Summary'!$G$41)/Inputs!J13,"") -> 100.0381644 | H49: =IF(Inputs!$J$12,(SUMPRODUCT(D49:D52,$H$41:$H$44,$F$349:$F$352)+SUM('Share Summary'!$G$13:$G$15)-'Share Summary'!$G$41-($H$40*'Share Summary'!$G$29)-('Share Sensitivity'!$H$40*'Share Summary'!$G$29*(Inputs!$C$175*(Inputs!$C$176/12))))/Inputs!J13,"") -> 128.3128425 | I49: =IF(Inputs!$J$12,(SUMPRODUCT(D49:D52,$I$41:$I$44,$F$349:$F$352)+SUM('Share Summary'!$G$13:$G$15)-'Share Summary'!$G$41-($I$40*'Share Summary'!$G$29)-('Share Sensitivity'!$I$40*'Share Summary'!$G$29*(Inputs!$C$175*(Inputs!$C$176/12))))/Inputs!J13,"") -> 170.7248597
B50: 0.1 | C50: =IF(Inputs!$D$12,Inputs!$D$11,"") -> Irr Soybeans | D50: =IF(Inputs!$D$12,Inputs!$D$18*0.9,"") -> 8.1
B51: Below | C51: =IF(Inputs!$E$12,Inputs!$E$11,"") -> Dry Corn | D51: =IF(Inputs!$E$12,Inputs!$E$18*0.9,"") -> 3.285
C52: =IF(Inputs!$F$12,Inputs!$F$11,"") -> Dry Soybeans | D52: =IF(Inputs!$F$12,Inputs!$F$18*0.9,"") -> 8.1
C53: =IF(Inputs!$C$12,Inputs!$C$11,"") -> Irr Corn | D53: =IF(Inputs!$C$12,Inputs!$C$18,"") -> 3.65 | E53: =IF(Inputs!$J$12,(SUMPRODUCT(D53:D56,$E$41:$E$44,$F$349:$F$352)+SUM('Share Summary'!$G$13:$G$15)-'Share Summary'!$G$41+($E$40*'Share Summary'!$G$29)+('Share Sensitivity'!$E$40*'Share Summary'!$G$29*(Inputs!$C$175*(Inputs!$C$176/12))))/Inputs!J13,"") -> 53.73935966 | F53: =IF(Inputs!$J$12,(SUMPRODUCT(D53:D56,$F$41:$F$44,$F$349:$F$352)+SUM('Share Summary'!$G$13:$G$15)-'Share Summary'!$G$41+($F$40*'Share Summary'!$G$29)+('Share Sensitivity'!$F$40*'Share Summary'!$G$29*(Inputs!$C$175*(Inputs!$C$176/12))))/Inputs!J13,"") -> 101.028955 | G53: =IF(Inputs!$J$12,(SUMPRODUCT(D53:D56,$G$41:$G$44,$F$349:$F$352)+SUM('Share Summary'!$G$13:$G$15)-'Share Summary'!$G$41)/Inputs!J13,"") -> 132.5553519 | H53: =IF(Inputs!$J$12,(SUMPRODUCT(D53:D56,$H$41:$H$44,$F$349:$F$352)+SUM('Share Summary'!$G$13:$G$15)-'Share Summary'!$G$41-($H$40*'Share Summary'!$G$29)-('Share Sensitivity'!$H$40*'Share Summary'!$G$29*(Inputs!$C$175*(Inputs!$C$176/12))))/Inputs!J13,"") -> 164.0817487 | I53: =IF(Inputs!$J$12,(SUMPRODUCT(D53:D56,$I$41:$I$44,$F$349:$F$352)+SUM('Share Summary'!$G$13:$G$15)-'Share Summary'!$G$41-($I$40*'Share Summary'!$G$29)-('Share Sensitivity'!$I$40*'Share Summary'!$G$29*(Inputs!$C$175*(Inputs!$C$176/12))))/Inputs!J13,"") -> 211.371344
B54: Average | C54: =IF(Inputs!$D$12,Inputs!$D$11,"") -> Irr Soybeans | D54: =IF(Inputs!$D$12,Inputs!$D$18,"") -> 9
C55: =IF(Inputs!$E$12,Inputs!$E$11,"") -> Dry Corn | D55: =IF(Inputs!$E$12,Inputs!$E$18,"") -> 3.65
C56: =IF(Inputs!$F$12,Inputs!$F$11,"") -> Dry Soybeans | D56: =IF(Inputs!$F$12,Inputs!$F$18,"") -> 9
C57: =IF(Inputs!$C$12,Inputs!$C$11,"") -> Irr Corn | D57: =IF(Inputs!$C$12,Inputs!$C$18*1.1,"") -> 4.015 | E57: =IF(Inputs!$J$12,(SUMPRODUCT(D57:D60,$E$41:$E$44,$F$349:$F$352)+SUM('Share Summary'!$G$13:$G$15)-'Share Summary'!$G$41+($E$40*'Share Summary'!$G$29)+('Share Sensitivity'!$E$40*'Share Summary'!$G$29*(Inputs!$C$175*(Inputs!$C$176/12))))/Inputs!J13,"") -> 78.12725029 | F57: =IF(Inputs!$J$12,(SUMPRODUCT(D57:D60,$F$41:$F$44,$F$349:$F$352)+SUM('Share Summary'!$G$13:$G$15)-'Share Summary'!$G$41+($F$40*'Share Summary'!$G$29)+('Share Sensitivity'!$F$40*'Share Summary'!$G$29*(Inputs!$C$175*(Inputs!$C$176/12))))/Inputs!J13,"") -> 130.2944237 | G57: =IF(Inputs!$J$12,(SUMPRODUCT(D57:D60,$G$41:$G$44,$F$349:$F$352)+SUM('Share Summary'!$G$13:$G$15)-'Share Summary'!$G$41)/Inputs!J13,"") -> 165.0725394 | H57: =IF(Inputs!$J$12,(SUMPRODUCT(D57:D60,$H$41:$H$44,$F$349:$F$352)+SUM('Share Summary'!$G$13:$G$15)-'Share Summary'!$G$41-($H$40*'Share Summary'!$G$29)-('Share Sensitivity'!$H$40*'Share Summary'!$G$29*(Inputs!$C$175*(Inputs!$C$176/12))))/Inputs!J13,"") -> 199.850655 | I57: =IF(Inputs!$J$12,(SUMPRODUCT(D57:D60,$I$41:$I$44,$F$349:$F$352)+SUM('Share Summary'!$G$13:$G$15)-'Share Summary'!$G$41-($I$40*'Share Summary'!$G$29)-('Share Sensitivity'!$I$40*'Share Summary'!$G$29*(Inputs!$C$175*(Inputs!$C$176/12))))/Inputs!J13,"") -> 252.0178284
B58: 0.1 | C58: =IF(Inputs!$D$12,Inputs!$D$11,"") -> Irr Soybeans | D58: =IF(Inputs!$D$12,Inputs!$D$18*1.1,"") -> 9.9
B59: Above | C59: =IF(Inputs!$E$12,Inputs!$E$11,"") -> Dry Corn | D59: =IF(Inputs!$E$12,Inputs!$E$18*1.1,"") -> 4.015
C60: =IF(Inputs!$F$12,Inputs!$F$11,"") -> Dry Soybeans | D60: =IF(Inputs!$F$12,Inputs!$F$18*1.1,"") -> 9.9
C61: =IF(Inputs!$C$12,Inputs!$C$11,"") -> Irr Corn | D61: =IF(Inputs!$C$12,Inputs!$C$18*1.25,"") -> 4.5625 | E61: =IF(Inputs!$J$12,(SUMPRODUCT(D61:D64,$E$41:$E$44,$F$349:$F$352)+SUM('Share Summary'!$G$13:$G$15)-'Share Summary'!$G$41+($E$40*'Share Summary'!$G$29)+('Share Sensitivity'!$E$40*'Share Summary'!$G$29*(Inputs!$C$175*(Inputs!$C$176/12))))/Inputs!J13,"") -> 114.7090862 | F61: =IF(Inputs!$J$12,(SUMPRODUCT(D61:D64,$F$41:$F$44,$F$349:$F$352)+SUM('Share Summary'!$G$13:$G$15)-'Share Summary'!$G$41+($F$40*'Share Summary'!$G$29)+('Share Sensitivity'!$F$40*'Share Summary'!$G$29*(Inputs!$C$175*(Inputs!$C$176/12))))/Inputs!J13,"") -> 174.1926269 | G61: =IF(Inputs!$J$12,(SUMPRODUCT(D61:D64,$G$41:$G$44,$F$349:$F$352)+SUM('Share Summary'!$G$13:$G$15)-'Share Summary'!$G$41)/Inputs!J13,"") -> 213.8483206 | H61: =IF(Inputs!$J$12,(SUMPRODUCT(D61:D64,$H$41:$H$44,$F$349:$F$352)+SUM('Share Summary'!$G$13:$G$15)-'Share Summary'!$G$41-($H$40*'Share Summary'!$G$29)-('Share Sensitivity'!$H$40*'Share Summary'!$G$29*(Inputs!$C$175*(Inputs!$C$176/12))))/Inputs!J13,"") -> 253.5040144 | I61: =IF(Inputs!$J$12,(SUMPRODUCT(D61:D64,$I$41:$I$44,$F$349:$F$352)+SUM('Share Summary'!$G$13:$G$15)-'Share Summary'!$G$41-($I$40*'Share Summary'!$G$29)-('Share Sensitivity'!$I$40*'Share Summary'!$G$29*(Inputs!$C$175*(Inputs!$C$176/12))))/Inputs!J13,"") -> 312.987555
B62: 0.25 | C62: =IF(Inputs!$D$12,Inputs!$D$11,"") -> Irr Soybeans | D62: =IF(Inputs!$D$12,Inputs!$D$18*1.25,"") -> 11.25
B63: Above | C63: =IF(Inputs!$E$12,Inputs!$E$11,"") -> Dry Corn | D63: =IF(Inputs!$E$12,Inputs!$E$18*1.25,"") -> 4.5625
C64: =IF(Inputs!$F$12,Inputs!$F$11,"") -> Dry Soybeans | D64: =IF(Inputs!$F$12,Inputs!$F$18*1.25,"") -> 11.25
A66: Share Lease Equivalent (per Acre) Cash Rent
D68: Yields | E68: Below | G68: Average | H68: Above
E69: 0.25 | F69: 0.1 | H69: 0.1 | I69: 0.25
D70: =IF(Inputs!$C$12,Inputs!$C$11,"") -> Irr Corn | E70: =IF(Inputs!$C$12,'Share Summary'!$B$10*0.75,"") -> 84.375 | F70: =IF(Inputs!$C$12,'Share Summary'!$B$10*0.9,"") -> 101.25 | G70: =IF(Inputs!$C$12,'Share Summary'!$B$10,"") -> 112.5 | H70: =IF(Inputs!$C$12,'Share Summary'!$B$10*1.1,"") -> 123.75 | I70: =IF(Inputs!$C$12,'Share Summary'!$B$10*1.25,"") -> 140.625
D71: =IF(Inputs!$D$12,Inputs!$D$11,"") -> Irr Soybeans | E71: =IF(Inputs!$D$12,'Share Summary'!$C$10*0.75,"") -> 24.375 | F71: =IF(Inputs!$D$12,'Share Summary'!$C$10*0.9,"") -> 29.25 | G71: =IF(Inputs!$D$12,'Share Summary'!$C$10,"") -> 32.5 | H71: =IF(Inputs!$D$12,'Share Summary'!$C$10*1.1,"") -> 35.75 | I71: =IF(Inputs!$D$12,'Share Summary'!$C$10*1.25,"") -> 40.625
D72: =IF(Inputs!$E$12,Inputs!$E$11,"") -> Dry Corn | E72: =IF(Inputs!$E$12,'Share Summary'!$D$10*0.75,"") -> 46.875 | F72: =IF(Inputs!$E$12,'Share Summary'!$D$10*0.9,"") -> 56.25 | G72: =IF(Inputs!$E$12,'Share Summary'!$D$10,"") -> 62.5 | H72: =IF(Inputs!$E$12,'Share Summary'!$D$10*1.1,"") -> 68.75 | I72: =IF(Inputs!$E$12,'Share Summary'!$D$10*1.25,"") -> 78.125
B73: Prices | D73: =IF(Inputs!$F$12,Inputs!$F$11,"") -> Dry Soybeans | E73: =IF(Inputs!$F$12,'Share Summary'!$E$10*0.75,"") -> 16.125 | F73: =IF(Inputs!$F$12,'Share Summary'!$E$10*0.9,"") -> 19.35 | G73: =IF(Inputs!$F$12,'Share Summary'!$E$10,"") -> 21.5 | H73: =IF(Inputs!$F$12,'Share Summary'!$E$10*1.1,"") -> 23.65 | I73: =IF(Inputs!$F$12,'Share Summary'!$E$10*1.25,"") -> 26.875
C74: =IF(Inputs!$C$12,Inputs!$C$11,"") -> Irr Corn | D74: =IF(Inputs!$C$12,Inputs!$C$18*0.75,"") -> 2.7375 | E74: =IF(Inputs!$J$12,(SUMPRODUCT(D74:D77,$E$70:$E$73,$F$349:$F$352)+SUM('Share Summary'!$G$13:$G$15)-'Share Summary'!$G$41+'Cash Summary'!$G$17+($E$69*'Share Summary'!$G$29)+('Share Sensitivity'!$E$69*'Share Summary'!$G$29*(Inputs!$C$175*(Inputs!$C$176/12))))/Inputs!J13,"") -> 101.0141644 | F74: =IF(Inputs!$J$12,(SUMPRODUCT(D74:D77,$F$70:$F$73,$F$349:$F$352)+SUM('Share Summary'!$G$13:$G$15)-'Share Summary'!$G$41+'Cash Summary'!$G$17+($F$69*'Share Summary'!$G$29)+('Share Sensitivity'!$F$69*'Share Summary'!$G$29*(Inputs!$C$175*(Inputs!$C$176/12))))/Inputs!J13,"") -> 136.1098144 | G74: =IF(Inputs!$J$12,(SUMPRODUCT(D74:D77,$G$70:$G$73,$F$349:$F$352)+SUM('Share Summary'!$G$13:$G$15)-'Share Summary'!$G$41+'Cash Summary'!$G$17)/Inputs!J13,"") -> 159.5069144 | H74: =IF(Inputs!$J$12,(SUMPRODUCT(D74:D77,$H$70:$H$73,$F$349:$F$352)+SUM('Share Summary'!$G$13:$G$15)-'Share Summary'!$G$41+'Cash Summary'!$G$17-($H$69*'Share Summary'!$G$29)-('Share Sensitivity'!$H$69*'Share Summary'!$G$29*(Inputs!$C$175*(Inputs!$C$176/12))))/Inputs!J13,"") -> 182.9040144 | I74: =IF(Inputs!$J$12,(SUMPRODUCT(D74:D77,$I$70:$I$73,$F$349:$F$352)+SUM('Share Summary'!$G$13:$G$15)-'Share Summary'!$G$41+'Cash Summary'!$G$17-($I$69*'Share Summary'!$G$29)-('Share Sensitivity'!$I$69*'Share Summary'!$G$29*(Inputs!$C$175*(Inputs!$C$176/12))))/Inputs!J13,"") -> 217.9996644
B75: 0.25 | C75: =IF(Inputs!$D$12,Inputs!$D$11,"") -> Irr Soybeans | D75: =IF(Inputs!$D$12,Inputs!$D$18*0.75,"") -> 6.75
B76: Below | C76: =IF(Inputs!$E$12,Inputs!$E$11,"") -> Dry Corn | D76: =IF(Inputs!$E$12,Inputs!$E$18*0.75,"") -> 2.7375
C77: =IF(Inputs!$F$12,Inputs!$F$11,"") -> Dry Soybeans | D77: =IF(Inputs!$F$12,Inputs!$F$18*0.75,"") -> 6.75
C78: =IF(Inputs!$C$12,Inputs!$C$11,"") -> Irr Corn | D78: =IF(Inputs!$C$12,Inputs!$C$18*0.9,"") -> 3.285 | E78: =IF(Inputs!$J$12,(SUMPRODUCT(D78:D81,$E$70:$E$73,$F$349:$F$352)+SUM('Share Summary'!$G$13:$G$15)-'Share Summary'!$G$41+'Cash Summary'!$G$17+($E$69*'Share Summary'!$G$29)+('Share Sensitivity'!$E$69*'Share Summary'!$G$29*(Inputs!$C$175*(Inputs!$C$176/12))))/Inputs!J13,"") -> 137.5960003 | F78: =IF(Inputs!$J$12,(SUMPRODUCT(D78:D81,$F$70:$F$73,$F$349:$F$352)+SUM('Share Summary'!$G$13:$G$15)-'Share Summary'!$G$41+'Cash Summary'!$G$17+($F$69*'Share Summary'!$G$29)+('Share Sensitivity'!$F$69*'Share Summary'!$G$29*(Inputs!$C$175*(Inputs!$C$176/12))))/Inputs!J13,"") -> 180.0080175 | G78: =IF(Inputs!$J$12,(SUMPRODUCT(D78:D81,$G$70:$G$73,$F$349:$F$352)+SUM('Share Summary'!$G$13:$G$15)-'Share Summary'!$G$41+'Cash Summary'!$G$17)/Inputs!J13,"") -> 208.2826956 | H78: =IF(Inputs!$J$12,(SUMPRODUCT(D78:D81,$H$70:$H$73,$F$349:$F$352)+SUM('Share Summary'!$G$13:$G$15)-'Share Summary'!$G$41+'Cash Summary'!$G$17-($H$69*'Share Summary'!$G$29)-('Share Sensitivity'!$H$69*'Share Summary'!$G$29*(Inputs!$C$175*(Inputs!$C$176/12))))/Inputs!J13,"") -> 236.5573737 | I78: =IF(Inputs!$J$12,(SUMPRODUCT(D78:D81,$I$70:$I$73,$F$349:$F$352)+SUM('Share Summary'!$G$13:$G$15)-'Share Summary'!$G$41+'Cash Summary'!$G$17-($I$69*'Share Summary'!$G$29)-('Share Sensitivity'!$I$69*'Share Summary'!$G$29*(Inputs!$C$175*(Inputs!$C$176/12))))/Inputs!J13,"") -> 278.9693909
B79: 0.1 | C79: =IF(Inputs!$D$12,Inputs!$D$11,"") -> Irr Soybeans | D79: =IF(Inputs!$D$12,Inputs!$D$18*0.9,"") -> 8.1
B80: Below | C80: =IF(Inputs!$E$12,Inputs!$E$11,"") -> Dry Corn | D80: =IF(Inputs!$E$12,Inputs!$E$18*0.9,"") -> 3.285
C81: =IF(Inputs!$F$12,Inputs!$F$11,"") -> Dry Soybeans | D81: =IF(Inputs!$F$12,Inputs!$F$18*0.9,"") -> 8.1
C82: =IF(Inputs!$C$12,Inputs!$C$11,"") -> Irr Corn | D82: =IF(Inputs!$C$12,Inputs!$C$18,"") -> 3.65 | E82: =IF(Inputs!$J$12,(SUMPRODUCT(D82:D85,$E$70:$E$73,$F$349:$F$352)+SUM('Share Summary'!$G$13:$G$15)-'Share Summary'!$G$41+'Cash Summary'!$G$17+($E$69*'Share Summary'!$G$29)+('Share Sensitivity'!$E$69*'Share Summary'!$G$29*(Inputs!$C$175*(Inputs!$C$176/12))))/Inputs!J13,"") -> 161.9838909 | F82: =IF(Inputs!$J$12,(SUMPRODUCT(D82:D85,$F$70:$F$73,$F$349:$F$352)+SUM('Share Summary'!$G$13:$G$15)-'Share Summary'!$G$41+'Cash Summary'!$G$17+($F$69*'Share Summary'!$G$29)+('Share Sensitivity'!$F$69*'Share Summary'!$G$29*(Inputs!$C$175*(Inputs!$C$176/12))))/Inputs!J13,"") -> 209.2734862 | G82: =IF(Inputs!$J$12,(SUMPRODUCT(D82:D85,$G$70:$G$73,$F$349:$F$352)+SUM('Share Summary'!$G$13:$G$15)-'Share Summary'!$G$41+'Cash Summary'!$G$17)/Inputs!J13,"") -> 240.7998831 | H82: =IF(Inputs!$J$12,(SUMPRODUCT(D82:D85,$H$70:$H$73,$F$349:$F$352)+SUM('Share Summary'!$G$13:$G$15)-'Share Summary'!$G$41+'Cash Summary'!$G$17-($H$69*'Share Summary'!$G$29)-('Share Sensitivity'!$H$69*'Share Summary'!$G$29*(Inputs!$C$175*(Inputs!$C$176/12))))/Inputs!J13,"") -> 272.32628 | I82: =IF(Inputs!$J$12,(SUMPRODUCT(D82:D85,$I$70:$I$73,$F$349:$F$352)+SUM('Share Summary'!$G$13:$G$15)-'Share Summary'!$G$41+'Cash Summary'!$G$17-($I$69*'Share Summary'!$G$29)-('Share Sensitivity'!$I$69*'Share Summary'!$G$29*(Inputs!$C$175*(Inputs!$C$176/12))))/Inputs!J13,"") -> 319.6158753
B83: Average | C83: =IF(Inputs!$D$12,Inputs!$D$11,"") -> Irr Soybeans | D83: =IF(Inputs!$D$12,Inputs!$D$18,"") -> 9
C84: =IF(Inputs!$E$12,Inputs!$E$11,"") -> Dry Corn | D84: =IF(Inputs!$E$12,Inputs!$E$18,"") -> 3.65
C85: =IF(Inputs!$F$12,Inputs!$F$11,"") -> Dry Soybeans | D85: =IF(Inputs!$F$12,Inputs!$F$18,"") -> 9
C86: =IF(Inputs!$C$12,Inputs!$C$11,"") -> Irr Corn | D86: =IF(Inputs!$C$12,Inputs!$C$18*1.1,"") -> 4.015 | E86: =IF(Inputs!$J$12,(SUMPRODUCT(D86:D89,$E$70:$E$73,$F$349:$F$352)+SUM('Share Summary'!$G$13:$G$15)-'Share Summary'!$G$41+'Cash Summary'!$G$17+($E$69*'Share Summary'!$G$29)+('Share Sensitivity'!$E$69*'Share Summary'!$G$29*(Inputs!$C$175*(Inputs!$C$176/12))))/Inputs!J13,"") -> 186.3717815 | F86: =IF(Inputs!$J$12,(SUMPRODUCT(D86:D89,$F$70:$F$73,$F$349:$F$352)+SUM('Share Summary'!$G$13:$G$15)-'Share Summary'!$G$41+'Cash Summary'!$G$17+($F$69*'Share Summary'!$G$29)+('Share Sensitivity'!$F$69*'Share Summary'!$G$29*(Inputs!$C$175*(Inputs!$C$176/12))))/Inputs!J13,"") -> 238.538955 | G86: =IF(Inputs!$J$12,(SUMPRODUCT(D86:D89,$G$70:$G$73,$F$349:$F$352)+SUM('Share Summary'!$G$13:$G$15)-'Share Summary'!$G$41+'Cash Summary'!$G$17)/Inputs!J13,"") -> 273.3170706 | H86: =IF(Inputs!$J$12,(SUMPRODUCT(D86:D89,$H$70:$H$73,$F$349:$F$352)+SUM('Share Summary'!$G$13:$G$15)-'Share Summary'!$G$41+'Cash Summary'!$G$17-($H$69*'Share Summary'!$G$29)-('Share Sensitivity'!$H$69*'Share Summary'!$G$29*(Inputs!$C$175*(Inputs!$C$176/12))))/Inputs!J13,"") -> 308.0951862 | I86: =IF(Inputs!$J$12,(SUMPRODUCT(D86:D89,$I$70:$I$73,$F$349:$F$352)+SUM('Share Summary'!$G$13:$G$15)-'Share Summary'!$G$41+'Cash Summary'!$G$17-($I$69*'Share Summary'!$G$29)-('Share Sensitivity'!$I$69*'Share Summary'!$G$29*(Inputs!$C$175*(Inputs!$C$176/12))))/Inputs!J13,"") -> 360.2623597
B87: 0.1 | C87: =IF(Inputs!$D$12,Inputs!$D$11,"") -> Irr Soybeans | D87: =IF(Inputs!$D$12,Inputs!$D$18*1.1,"") -> 9.9
B88: Above | C88: =IF(Inputs!$E$12,Inputs!$E$11,"") -> Dry Corn | D88: =IF(Inputs!$E$12,Inputs!$E$18*1.1,"") -> 4.015
C89: =IF(Inputs!$F$12,Inputs!$F$11,"") -> Dry Soybeans | D89: =IF(Inputs!$F$12,Inputs!$F$18*1.1,"") -> 9.9
C90: =IF(Inputs!$C$12,Inputs!$C$11,"") -> Irr Corn | D90: =IF(Inputs!$C$12,Inputs!$C$18*1.25,"") -> 4.5625 | E90: =IF(Inputs!$J$12,(SUMPRODUCT(D90:D93,$E$70:$E$73,$F$349:$F$352)+SUM('Share Summary'!$G$13:$G$15)-'Share Summary'!$G$41+'Cash Summary'!$G$17+($E$69*'Share Summary'!$G$29)+('Share Sensitivity'!$E$69*'Share Summary'!$G$29*(Inputs!$C$175*(Inputs!$C$176/12))))/Inputs!J13,"") -> 222.9536175 | F90: =IF(Inputs!$J$12,(SUMPRODUCT(D90:D93,$F$70:$F$73,$F$349:$F$352)+SUM('Share Summary'!$G$13:$G$15)-'Share Summary'!$G$41+'Cash Summary'!$G$17+($F$69*'Share Summary'!$G$29)+('Share Sensitivity'!$F$69*'Share Summary'!$G$29*(Inputs!$C$175*(Inputs!$C$176/12))))/Inputs!J13,"") -> 282.4371581 | G90: =IF(Inputs!$J$12,(SUMPRODUCT(D90:D93,$G$70:$G$73,$F$349:$F$352)+SUM('Share Summary'!$G$13:$G$15)-'Share Summary'!$G$41+'Cash Summary'!$G$17)/Inputs!J13,"") -> 322.0928519 | H90: =IF(Inputs!$J$12,(SUMPRODUCT(D90:D93,$H$70:$H$73,$F$349:$F$352)+SUM('Share Summary'!$G$13:$G$15)-'Share Summary'!$G$41+'Cash Summary'!$G$17-($H$69*'Share Summary'!$G$29)-('Share Sensitivity'!$H$69*'Share Summary'!$G$29*(Inputs!$C$175*(Inputs!$C$176/12))))/Inputs!J13,"") -> 361.7485456 | I90: =IF(Inputs!$J$12,(SUMPRODUCT(D90:D93,$I$70:$I$73,$F$349:$F$352)+SUM('Share Summary'!$G$13:$G$15)-'Share Summary'!$G$41+'Cash Summary'!$G$17-($I$69*'Share Summary'!$G$29)-('Share Sensitivity'!$I$69*'Share Summary'!$G$29*(Inputs!$C$175*(Inputs!$C$176/12))))/Inputs!J13,"") -> 421.2320862
B91: 0.25 | C91: =IF(Inputs!$D$12,Inputs!$D$11,"") -> Irr Soybeans | D91: =IF(Inputs!$D$12,Inputs!$D$18*1.25,"") -> 11.25
B92: Above | C92: =IF(Inputs!$E$12,Inputs!$E$11,"") -> Dry Corn | D92: =IF(Inputs!$E$12,Inputs!$E$18*1.25,"") -> 4.5625
C93: =IF(Inputs!$F$12,Inputs!$F$11,"") -> Dry Soybeans | D93: =IF(Inputs!$F$12,Inputs!$F$18*1.25,"") -> 11.25
A101: TENANT SHARE LEASE SENSITIVITY MATRIX
A103: =Inputs!H4 -> Average Joe Tenant
A104: =Inputs!B9 -> Pivot Irrigated Quarter Section with Dryland Corners
A106: Tenant Revenue Less Variable Costs (per Acre)
A107: on a Share Lease under Various Yields and Prices
D109: Yields | E109: Below | G109: Average | H109: Above
E110: 0.25 | F110: 0.1 | H110: 0.1 | I110: 0.25
D111: =IF(Inputs!$C$12,Inputs!$C$11,"") -> Irr Corn | E111: =IF(Inputs!$C$12,'Share Summary'!$B$77*0.75,"") -> 84.375 | F111: =IF(Inputs!$C$12,'Share Summary'!$B$77*0.9,"") -> 101.25 | G111: =IF(Inputs!$C$12,'Share Summary'!$B$77,"") -> 112.5 | H111: =IF(Inputs!$C$12,'Share Summary'!$B$77*1.1,"") -> 123.75 | I111: =IF(Inputs!$C$12,'Share Summary'!$B$77*1.25,"") -> 140.625
D112: =IF(Inputs!$D$12,Inputs!$D$11,"") -> Irr Soybeans | E112: =IF(Inputs!$D$12,'Share Summary'!$C$77*0.75,"") -> 24.375 | F112: =IF(Inputs!$D$12,'Share Summary'!$C$77*0.9,"") -> 29.25 | G112: =IF(Inputs!$D$12,'Share Summary'!$C$77,"") -> 32.5 | H112: =IF(Inputs!$D$12,'Share Summary'!$C$77*1.1,"") -> 35.75 | I112: =IF(Inputs!$D$12,'Share Summary'!$C$77*1.25,"") -> 40.625
D113: =IF(Inputs!$E$12,Inputs!$E$11,"") -> Dry Corn | E113: =IF(Inputs!$E$12,'Share Summary'!$D$77*0.75,"") -> 46.875 | F113: =IF(Inputs!$E$12,'Share Summary'!$D$77*0.9,"") -> 56.25 | G113: =IF(Inputs!$E$12,'Share Summary'!$D$77,"") -> 62.5 | H113: =IF(Inputs!$E$12,'Share Summary'!$D$77*1.1,"") -> 68.75 | I113: =IF(Inputs!$E$12,'Share Summary'!$D$77*1.25,"") -> 78.125
B114: Prices | D114: =IF(Inputs!$F$12,Inputs!$F$11,"") -> Dry Soybeans | E114: =IF(Inputs!$F$12,'Share Summary'!$E$77*0.75,"") -> 16.125 | F114: =IF(Inputs!$F$12,'Share Summary'!$E$77*0.9,"") -> 19.35 | G114: =IF(Inputs!$F$12,'Share Summary'!$E$77,"") -> 21.5 | H114: =IF(Inputs!$F$12,'Share Summary'!$E$77*1.1,"") -> 23.65 | I114: =IF(Inputs!$F$12,'Share Summary'!$E$77*1.25,"") -> 26.875
C115: =IF(Inputs!$C$12,Inputs!$C$11,"") -> Irr Corn | D115: =IF(Inputs!$C$12,Inputs!$C$18*0.75,"") -> 2.7375 | E115: =IF(Inputs!$J$12,(SUMPRODUCT(D115:D118,$E$111:$E$114,$F$349:$F$352)+SUM('Share Summary'!$G$80:$G$81)-'Share Summary'!$G$98+($E$110*'Share Summary'!$G$95)+('Share Sensitivity'!$E$110*'Share Summary'!$G$95*(Inputs!$C$175*(Inputs!$C$176/12))))/Inputs!J13,"") -> -170.043669 | F115: =IF(Inputs!$J$12,(SUMPRODUCT(D115:D118,$F$111:$F$114,$F$349:$F$352)+SUM('Share Summary'!$G$80:$G$81)-'Share Summary'!$G$98+($F$110*'Share Summary'!$G$95)+('Share Sensitivity'!$F$110*'Share Summary'!$G$95*(Inputs!$C$175*(Inputs!$C$176/12))))/Inputs!J13,"") -> -134.948019 | G115: =IF(Inputs!$J$12,(SUMPRODUCT(D115:D118,$G$111:$G$114,$F$349:$F$352)+SUM('Share Summary'!$G$80:$G$81)-'Share Summary'!$G$98)/Inputs!J13,"") -> -111.550919 | H115: =IF(Inputs!$J$12,(SUMPRODUCT(D115:D118,$H$111:$H$114,$F$349:$F$352)+SUM('Share Summary'!$G$80:$G$81)-'Share Summary'!$G$98-($H$110*'Share Summary'!$G$95)-('Share Sensitivity'!$H$110*'Share Summary'!$G$95*(Inputs!$C$175*(Inputs!$C$176/12))))/Inputs!J13,"") -> -88.15381898 | I115: =IF(Inputs!$J$12,(SUMPRODUCT(D115:D118,$I$111:$I$114,$F$349:$F$352)+SUM('Share Summary'!$G$80:$G$81)-'Share Summary'!$G$98-($I$110*'Share Summary'!$G$95)-('Share Sensitivity'!$I$110*'Share Summary'!$G$95*(Inputs!$C$175*(Inputs!$C$176/12))))/Inputs!J13,"") -> -53.05816898
B116: 0.25 | C116: =IF(Inputs!$D$12,Inputs!$D$11,"") -> Irr Soybeans | D116: =IF(Inputs!$D$12,Inputs!$D$18*0.75,"") -> 6.75
B117: Below | C117: =IF(Inputs!$E$12,Inputs!$E$11,"") -> Dry Corn | D117: =IF(Inputs!$E$12,Inputs!$E$18*0.75,"") -> 2.7375
C118: =IF(Inputs!$F$12,Inputs!$F$11,"") -> Dry Soybeans | D118: =IF(Inputs!$F$12,Inputs!$F$18*0.75,"") -> 6.75
C119: =IF(Inputs!$C$12,Inputs!$C$11,"") -> Irr Corn | D119: =IF(Inputs!$C$12,Inputs!$C$18*0.9,"") -> 3.285 | E119: =IF(Inputs!$J$12,(SUMPRODUCT(D119:D122,$E$111:$E$114,$F$349:$F$352)+SUM('Share Summary'!$G$80:$G$81)-'Share Summary'!$G$98+($E$110*'Share Summary'!$G$95)+('Share Sensitivity'!$E$110*'Share Summary'!$G$95*(Inputs!$C$175*(Inputs!$C$176/12))))/Inputs!J13,"") -> -133.461833 | F119: =IF(Inputs!$J$12,(SUMPRODUCT(D119:D122,$F$111:$F$114,$F$349:$F$352)+SUM('Share Summary'!$G$80:$G$81)-'Share Summary'!$G$98+($F$110*'Share Summary'!$G$95)+('Share Sensitivity'!$F$110*'Share Summary'!$G$95*(Inputs!$C$175*(Inputs!$C$176/12))))/Inputs!J13,"") -> -91.04981586 | G119: =IF(Inputs!$J$12,(SUMPRODUCT(D119:D122,$G$111:$G$114,$F$349:$F$352)+SUM('Share Summary'!$G$80:$G$81)-'Share Summary'!$G$98)/Inputs!J13,"") -> -62.77513773 | H119: =IF(Inputs!$J$12,(SUMPRODUCT(D119:D122,$H$111:$H$114,$F$349:$F$352)+SUM('Share Summary'!$G$80:$G$81)-'Share Summary'!$G$98-($H$110*'Share Summary'!$G$95)-('Share Sensitivity'!$H$110*'Share Summary'!$G$95*(Inputs!$C$175*(Inputs!$C$176/12))))/Inputs!J13,"") -> -34.50045961 | I119: =IF(Inputs!$J$12,(SUMPRODUCT(D119:D122,$I$111:$I$114,$F$349:$F$352)+SUM('Share Summary'!$G$80:$G$81)-'Share Summary'!$G$98-($I$110*'Share Summary'!$G$95)-('Share Sensitivity'!$I$110*'Share Summary'!$G$95*(Inputs!$C$175*(Inputs!$C$176/12))))/Inputs!J13,"") -> 7.911557581
B120: 0.1 | C120: =IF(Inputs!$D$12,Inputs!$D$11,"") -> Irr Soybeans | D120: =IF(Inputs!$D$12,Inputs!$D$18*0.9,"") -> 8.1
B121: Below | C121: =IF(Inputs!$E$12,Inputs!$E$11,"") -> Dry Corn | D121: =IF(Inputs!$E$12,Inputs!$E$18*0.9,"") -> 3.285
C122: =IF(Inputs!$F$12,Inputs!$F$11,"") -> Dry Soybeans | D122: =IF(Inputs!$F$12,Inputs!$F$18*0.9,"") -> 8.1
C123: =IF(Inputs!$C$12,Inputs!$C$11,"") -> Irr Corn | D123: =IF(Inputs!$C$12,Inputs!$C$18,"") -> 3.65 | E123: =IF(Inputs!$J$12,(SUMPRODUCT(D123:D126,$E$111:$E$114,$F$349:$F$352)+SUM('Share Summary'!$G$80:$G$81)-'Share Summary'!$G$98+($E$110*'Share Summary'!$G$95)+('Share Sensitivity'!$E$110*'Share Summary'!$G$95*(Inputs!$C$175*(Inputs!$C$176/12))))/Inputs!J13,"") -> -109.0739424 | F123: =IF(Inputs!$J$12,(SUMPRODUCT(D123:D126,$F$111:$F$114,$F$349:$F$352)+SUM('Share Summary'!$G$80:$G$81)-'Share Summary'!$G$98+($F$110*'Share Summary'!$G$95)+('Share Sensitivity'!$F$110*'Share Summary'!$G$95*(Inputs!$C$175*(Inputs!$C$176/12))))/Inputs!J13,"") -> -61.78434711 | G123: =IF(Inputs!$J$12,(SUMPRODUCT(D123:D126,$G$111:$G$114,$F$349:$F$352)+SUM('Share Summary'!$G$80:$G$81)-'Share Summary'!$G$98)/Inputs!J13,"") -> -30.25795023 | H123: =IF(Inputs!$J$12,(SUMPRODUCT(D123:D126,$H$111:$H$114,$F$349:$F$352)+SUM('Share Summary'!$G$80:$G$81)-'Share Summary'!$G$98-($H$110*'Share Summary'!$G$95)-('Share Sensitivity'!$H$110*'Share Summary'!$G$95*(Inputs!$C$175*(Inputs!$C$176/12))))/Inputs!J13,"") -> 1.268446643 | I123: =IF(Inputs!$J$12,(SUMPRODUCT(D123:D126,$I$111:$I$114,$F$349:$F$352)+SUM('Share Summary'!$G$80:$G$81)-'Share Summary'!$G$98-($I$110*'Share Summary'!$G$95)-('Share Sensitivity'!$I$110*'Share Summary'!$G$95*(Inputs!$C$175*(Inputs!$C$176/12))))/Inputs!J13,"") -> 48.55804196
B124: Average | C124: =IF(Inputs!$D$12,Inputs!$D$11,"") -> Irr Soybeans | D124: =IF(Inputs!$D$12,Inputs!$D$18,"") -> 9
C125: =IF(Inputs!$E$12,Inputs!$E$11,"") -> Dry Corn | D125: =IF(Inputs!$E$12,Inputs!$E$18,"") -> 3.65
C126: =IF(Inputs!$F$12,Inputs!$F$11,"") -> Dry Soybeans | D126: =IF(Inputs!$F$12,Inputs!$F$18,"") -> 9
C127: =IF(Inputs!$C$12,Inputs!$C$11,"") -> Irr Corn | D127: =IF(Inputs!$C$12,Inputs!$C$18*1.1,"") -> 4.015 | E127: =IF(Inputs!$J$12,(SUMPRODUCT(D127:D130,$E$111:$E$114,$F$349:$F$352)+SUM('Share Summary'!$G$80:$G$81)-'Share Summary'!$G$98+($E$110*'Share Summary'!$G$95)+('Share Sensitivity'!$E$110*'Share Summary'!$G$95*(Inputs!$C$175*(Inputs!$C$176/12))))/Inputs!J13,"") -> -84.68605179 | F127: =IF(Inputs!$J$12,(SUMPRODUCT(D127:D130,$F$111:$F$114,$F$349:$F$352)+SUM('Share Summary'!$G$80:$G$81)-'Share Summary'!$G$98+($F$110*'Share Summary'!$G$95)+('Share Sensitivity'!$F$110*'Share Summary'!$G$95*(Inputs!$C$175*(Inputs!$C$176/12))))/Inputs!J13,"") -> -32.51887836 | G127: =IF(Inputs!$J$12,(SUMPRODUCT(D127:D130,$G$111:$G$114,$F$349:$F$352)+SUM('Share Summary'!$G$80:$G$81)-'Share Summary'!$G$98)/Inputs!J13,"") -> 2.259237268 | H127: =IF(Inputs!$J$12,(SUMPRODUCT(D127:D130,$H$111:$H$114,$F$349:$F$352)+SUM('Share Summary'!$G$80:$G$81)-'Share Summary'!$G$98-($H$110*'Share Summary'!$G$95)-('Share Sensitivity'!$H$110*'Share Summary'!$G$95*(Inputs!$C$175*(Inputs!$C$176/12))))/Inputs!J13,"") -> 37.03735289 | I127: =IF(Inputs!$J$12,(SUMPRODUCT(D127:D130,$I$111:$I$114,$F$349:$F$352)+SUM('Share Summary'!$G$80:$G$81)-'Share Summary'!$G$98-($I$110*'Share Summary'!$G$95)-('Share Sensitivity'!$I$110*'Share Summary'!$G$95*(Inputs!$C$175*(Inputs!$C$176/12))))/Inputs!J13,"") -> 89.20452633
B128: 0.1 | C128: =IF(Inputs!$D$12,Inputs!$D$11,"") -> Irr Soybeans | D128: =IF(Inputs!$D$12,Inputs!$D$18*1.1,"") -> 9.9
B129: Above | C129: =IF(Inputs!$E$12,Inputs!$E$11,"") -> Dry Corn | D129: =IF(Inputs!$E$12,Inputs!$E$18*1.1,"") -> 4.015
C130: =IF(Inputs!$F$12,Inputs!$F$11,"") -> Dry Soybeans | D130: =IF(Inputs!$F$12,Inputs!$F$18*1.1,"") -> 9.9
C131: =IF(Inputs!$C$12,Inputs!$C$11,"") -> Irr Corn | D131: =IF(Inputs!$C$12,Inputs!$C$18*1.25,"") -> 4.5625 | E131: =IF(Inputs!$J$12,(SUMPRODUCT(D131:D134,$E$111:$E$114,$F$349:$F$352)+SUM('Share Summary'!$G$80:$G$81)-'Share Summary'!$G$98+($E$110*'Share Summary'!$G$95)+('Share Sensitivity'!$E$110*'Share Summary'!$G$95*(Inputs!$C$175*(Inputs!$C$176/12))))/Inputs!J13,"") -> -48.10421586 | F131: =IF(Inputs!$J$12,(SUMPRODUCT(D131:D134,$F$111:$F$114,$F$349:$F$352)+SUM('Share Summary'!$G$80:$G$81)-'Share Summary'!$G$98+($F$110*'Share Summary'!$G$95)+('Share Sensitivity'!$F$110*'Share Summary'!$G$95*(Inputs!$C$175*(Inputs!$C$176/12))))/Inputs!J13,"") -> 11.37932477 | G131: =IF(Inputs!$J$12,(SUMPRODUCT(D131:D134,$G$111:$G$114,$F$349:$F$352)+SUM('Share Summary'!$G$80:$G$81)-'Share Summary'!$G$98)/Inputs!J13,"") -> 51.03501852 | H131: =IF(Inputs!$J$12,(SUMPRODUCT(D131:D134,$H$111:$H$114,$F$349:$F$352)+SUM('Share Summary'!$G$80:$G$81)-'Share Summary'!$G$98-($H$110*'Share Summary'!$G$95)-('Share Sensitivity'!$H$110*'Share Summary'!$G$95*(Inputs!$C$175*(Inputs!$C$176/12))))/Inputs!J13,"") -> 90.69071227 | I131: =IF(Inputs!$J$12,(SUMPRODUCT(D131:D134,$I$111:$I$114,$F$349:$F$352)+SUM('Share Summary'!$G$80:$G$81)-'Share Summary'!$G$98-($I$110*'Share Summary'!$G$95)-('Share Sensitivity'!$I$110*'Share Summary'!$G$95*(Inputs!$C$175*(Inputs!$C$176/12))))/Inputs!J13,"") -> 150.1742529
B132: 0.25 | C132: =IF(Inputs!$D$12,Inputs!$D$11,"") -> Irr Soybeans | D132: =IF(Inputs!$D$12,Inputs!$D$18*1.25,"") -> 11.25
B133: Above | C133: =IF(Inputs!$E$12,Inputs!$E$11,"") -> Dry Corn | D133: =IF(Inputs!$E$12,Inputs!$E$18*1.25,"") -> 4.5625
C134: =IF(Inputs!$F$12,Inputs!$F$11,"") -> Dry Soybeans | D134: =IF(Inputs!$F$12,Inputs!$F$18*1.25,"") -> 11.25
A136: Tenant Revenue Less Total Costs (per Acre)
A137: on a Share Lease under Various Yields and Prices
D139: Yields | E139: Below | G139: Average | H139: Above
E140: 0.25 | F140: 0.1 | H140: 0.1 | I140: 0.25
D141: =IF(Inputs!$C$12,Inputs!$C$11,"") -> Irr Corn | E141: =IF(Inputs!$C$12,'Share Summary'!$B$77*0.75,"") -> 84.375 | F141: =IF(Inputs!$C$12,'Share Summary'!$B$77*0.9,"") -> 101.25 | G141: =IF(Inputs!$C$12,'Share Summary'!$B$77,"") -> 112.5 | H141: =IF(Inputs!$C$12,'Share Summary'!$B$77*1.1,"") -> 123.75 | I141: =IF(Inputs!$C$12,'Share Summary'!$B$77*1.25,"") -> 140.625
D142: =IF(Inputs!$D$12,Inputs!$D$11,"") -> Irr Soybeans | E142: =IF(Inputs!$D$12,'Share Summary'!$C$77*0.75,"") -> 24.375 | F142: =IF(Inputs!$D$12,'Share Summary'!$C$77*0.9,"") -> 29.25 | G142: =IF(Inputs!$D$12,'Share Summary'!$C$77,"") -> 32.5 | H142: =IF(Inputs!$D$12,'Share Summary'!$C$77*1.1,"") -> 35.75 | I142: =IF(Inputs!$D$12,'Share Summary'!$C$77*1.25,"") -> 40.625
D143: =IF(Inputs!$E$12,Inputs!$E$11,"") -> Dry Corn | E143: =IF(Inputs!$E$12,'Share Summary'!$D$77*0.75,"") -> 46.875 | F143: =IF(Inputs!$E$12,'Share Summary'!$D$77*0.9,"") -> 56.25 | G143: =IF(Inputs!$E$12,'Share Summary'!$D$77,"") -> 62.5 | H143: =IF(Inputs!$E$12,'Share Summary'!$D$77*1.1,"") -> 68.75 | I143: =IF(Inputs!$E$12,'Share Summary'!$D$77*1.25,"") -> 78.125
B144: Prices | D144: =IF(Inputs!$F$12,Inputs!$F$11,"") -> Dry Soybeans | E144: =IF(Inputs!$F$12,'Share Summary'!$E$77*0.75,"") -> 16.125 | F144: =IF(Inputs!$F$12,'Share Summary'!$E$77*0.9,"") -> 19.35 | G144: =IF(Inputs!$F$12,'Share Summary'!$E$77,"") -> 21.5 | H144: =IF(Inputs!$F$12,'Share Summary'!$E$77*1.1,"") -> 23.65 | I144: =IF(Inputs!$F$12,'Share Summary'!$E$77*1.25,"") -> 26.875
C145: =IF(Inputs!$C$12,Inputs!$C$11,"") -> Irr Corn | D145: =IF(Inputs!$C$12,'Cash Summary'!$B$40*0.75,"") -> 2.7375 | E145: =IF(Inputs!$J$12,(SUMPRODUCT(D145:D148,$E$141:$E$144,$F$349:$F$352)+SUM('Share Summary'!$G$80:$G$81)-'Share Summary'!$G$107+($E$140*'Share Summary'!$G$95)+('Share Sensitivity'!$E$140*'Share Summary'!$G$95*(Inputs!$C$175*(Inputs!$C$176/12))))/Inputs!J13,"") -> -199.749919 | F145: =IF(Inputs!$J$12,(SUMPRODUCT(D145:D148,$F$141:$F$144,$F$349:$F$352)+SUM('Share Summary'!$G$80:$G$81)-'Share Summary'!$G$107+($F$140*'Share Summary'!$G$95)+('Share Sensitivity'!$F$140*'Share Summary'!$G$95*(Inputs!$C$175*(Inputs!$C$176/12))))/Inputs!J13,"") -> -164.654269 | G145: =IF(Inputs!$J$12,(SUMPRODUCT(D145:D148,$G$141:$G$144,$F$349:$F$352)+SUM('Share Summary'!$G$80:$G$81)-'Share Summary'!$G$107)/Inputs!J13,"") -> -141.257169 | H145: =IF(Inputs!$J$12,(SUMPRODUCT(D145:D148,$H$141:$H$144,$F$349:$F$352)+SUM('Share Summary'!$G$80:$G$81)-'Share Summary'!$G$107-($H$140*'Share Summary'!$G$95)-('Share Sensitivity'!$H$140*'Share Summary'!$G$95*(Inputs!$C$175*(Inputs!$C$176/12))))/Inputs!J13,"") -> -117.860069 | I145: =IF(Inputs!$J$12,(SUMPRODUCT(D145:D148,$I$141:$I$144,$F$349:$F$352)+SUM('Share Summary'!$G$80:$G$81)-'Share Summary'!$G$107-($I$140*'Share Summary'!$G$95)-('Share Sensitivity'!$I$140*'Share Summary'!$G$95*(Inputs!$C$175*(Inputs!$C$176/12))))/Inputs!J13,"") -> -82.76441898
B146: 0.25 | C146: =IF(Inputs!$D$12,Inputs!$D$11,"") -> Irr Soybeans | D146: =IF(Inputs!$D$12,'Cash Summary'!$C$40*0.75,"") -> 6.75
B147: Below | C147: =IF(Inputs!$E$12,Inputs!$E$11,"") -> Dry Corn | D147: =IF(Inputs!$E$12,'Cash Summary'!$D$40*0.75,"") -> 2.7375
C148: =IF(Inputs!$F$12,Inputs!$F$11,"") -> Dry Soybeans | D148: =IF(Inputs!$F$12,'Cash Summary'!$E$40*0.75,"") -> 6.75
C149: =IF(Inputs!$C$12,Inputs!$C$11,"") -> Irr Corn | D149: =IF(Inputs!$C$12,'Cash Summary'!$B$40*0.9,"") -> 3.285 | E149: =IF(Inputs!$J$12,(SUMPRODUCT(D149:D152,$E$141:$E$144,$F$349:$F$352)+SUM('Share Summary'!$G$80:$G$81)-'Share Summary'!$G$107+($E$140*'Share Summary'!$G$95)+('Share Sensitivity'!$E$140*'Share Summary'!$G$95*(Inputs!$C$175*(Inputs!$C$176/12))))/Inputs!J13,"") -> -163.168083 | F149: =IF(Inputs!$J$12,(SUMPRODUCT(D149:D152,$F$141:$F$144,$F$349:$F$352)+SUM('Share Summary'!$G$80:$G$81)-'Share Summary'!$G$107+($F$140*'Share Summary'!$G$95)+('Share Sensitivity'!$F$140*'Share Summary'!$G$95*(Inputs!$C$175*(Inputs!$C$176/12))))/Inputs!J13,"") -> -120.7560659 | G149: =IF(Inputs!$J$12,(SUMPRODUCT(D149:D152,$G$141:$G$144,$F$349:$F$352)+SUM('Share Summary'!$G$80:$G$81)-'Share Summary'!$G$107)/Inputs!J13,"") -> -92.48138773 | H149: =IF(Inputs!$J$12,(SUMPRODUCT(D149:D152,$H$141:$H$144,$F$349:$F$352)+SUM('Share Summary'!$G$80:$G$81)-'Share Summary'!$G$107-($H$140*'Share Summary'!$G$95)-('Share Sensitivity'!$H$140*'Share Summary'!$G$95*(Inputs!$C$175*(Inputs!$C$176/12))))/Inputs!J13,"") -> -64.20670961 | I149: =IF(Inputs!$J$12,(SUMPRODUCT(D149:D152,$I$141:$I$144,$F$349:$F$352)+SUM('Share Summary'!$G$80:$G$81)-'Share Summary'!$G$107-($I$140*'Share Summary'!$G$95)-('Share Sensitivity'!$I$140*'Share Summary'!$G$95*(Inputs!$C$175*(Inputs!$C$176/12))))/Inputs!J13,"") -> -21.79469242
B150: 0.1 | C150: =IF(Inputs!$D$12,Inputs!$D$11,"") -> Irr Soybeans | D150: =IF(Inputs!$D$12,'Cash Summary'!$C$40*0.9,"") -> 8.1
B151: Below | C151: =IF(Inputs!$E$12,Inputs!$E$11,"") -> Dry Corn | D151: =IF(Inputs!$E$12,'Cash Summary'!$D$40*0.9,"") -> 3.285
C152: =IF(Inputs!$F$12,Inputs!$F$11,"") -> Dry Soybeans | D152: =IF(Inputs!$F$12,'Cash Summary'!$E$40*0.9,"") -> 8.1
C153: =IF(Inputs!$C$12,Inputs!$C$11,"") -> Irr Corn | D153: =IF(Inputs!$C$12,'Cash Summary'!$B$40,"") -> 3.65 | E153: =IF(Inputs!$J$12,(SUMPRODUCT(D153:D156,$E$141:$E$144,$F$349:$F$352)+SUM('Share Summary'!$G$80:$G$81)-'Share Summary'!$G$107+($E$140*'Share Summary'!$G$95)+('Share Sensitivity'!$E$140*'Share Summary'!$G$95*(Inputs!$C$175*(Inputs!$C$176/12))))/Inputs!J13,"") -> -138.7801924 | F153: =IF(Inputs!$J$12,(SUMPRODUCT(D153:D156,$F$141:$F$144,$F$349:$F$352)+SUM('Share Summary'!$G$80:$G$81)-'Share Summary'!$G$107+($F$140*'Share Summary'!$G$95)+('Share Sensitivity'!$F$140*'Share Summary'!$G$95*(Inputs!$C$175*(Inputs!$C$176/12))))/Inputs!J13,"") -> -91.49059711 | G153: =IF(Inputs!$J$12,(SUMPRODUCT(D153:D156,$G$141:$G$144,$F$349:$F$352)+SUM('Share Summary'!$G$80:$G$81)-'Share Summary'!$G$107)/Inputs!J13,"") -> -59.96420023 | H153: =IF(Inputs!$J$12,(SUMPRODUCT(D153:D156,$H$141:$H$144,$F$349:$F$352)+SUM('Share Summary'!$G$80:$G$81)-'Share Summary'!$G$107-($H$140*'Share Summary'!$G$95)-('Share Sensitivity'!$H$140*'Share Summary'!$G$95*(Inputs!$C$175*(Inputs!$C$176/12))))/Inputs!J13,"") -> -28.43780336 | I153: =IF(Inputs!$J$12,(SUMPRODUCT(D153:D156,$I$141:$I$144,$F$349:$F$352)+SUM('Share Summary'!$G$80:$G$81)-'Share Summary'!$G$107-($I$140*'Share Summary'!$G$95)-('Share Sensitivity'!$I$140*'Share Summary'!$G$95*(Inputs!$C$175*(Inputs!$C$176/12))))/Inputs!J13,"") -> 18.85179196
B154: Average | C154: =IF(Inputs!$D$12,Inputs!$D$11,"") -> Irr Soybeans | D154: =IF(Inputs!$D$12,'Cash Summary'!$C$40,"") -> 9
C155: =IF(Inputs!$E$12,Inputs!$E$11,"") -> Dry Corn | D155: =IF(Inputs!$E$12,'Cash Summary'!$D$40,"") -> 3.65
C156: =IF(Inputs!$F$12,Inputs!$F$11,"") -> Dry Soybeans | D156: =IF(Inputs!$F$12,'Cash Summary'!$E$40,"") -> 9
C157: =IF(Inputs!$C$12,Inputs!$C$11,"") -> Irr Corn | D157: =IF(Inputs!$C$12,'Cash Summary'!$B$40*1.1,"") -> 4.015 | E157: =IF(Inputs!$J$12,(SUMPRODUCT(D157:D160,$E$141:$E$144,$F$349:$F$352)+SUM('Share Summary'!$G$80:$G$81)-'Share Summary'!$G$107+($E$140*'Share Summary'!$G$95)+('Share Sensitivity'!$E$140*'Share Summary'!$G$95*(Inputs!$C$175*(Inputs!$C$176/12))))/Inputs!J13,"") -> -114.3923018 | F157: =IF(Inputs!$J$12,(SUMPRODUCT(D157:D160,$F$141:$F$144,$F$349:$F$352)+SUM('Share Summary'!$G$80:$G$81)-'Share Summary'!$G$107+($F$140*'Share Summary'!$G$95)+('Share Sensitivity'!$F$140*'Share Summary'!$G$95*(Inputs!$C$175*(Inputs!$C$176/12))))/Inputs!J13,"") -> -62.22512836 | G157: =IF(Inputs!$J$12,(SUMPRODUCT(D157:D160,$G$141:$G$144,$F$349:$F$352)+SUM('Share Summary'!$G$80:$G$81)-'Share Summary'!$G$107)/Inputs!J13,"") -> -27.44701273 | H157: =IF(Inputs!$J$12,(SUMPRODUCT(D157:D160,$H$141:$H$144,$F$349:$F$352)+SUM('Share Summary'!$G$80:$G$81)-'Share Summary'!$G$107-($H$140*'Share Summary'!$G$95)-('Share Sensitivity'!$H$140*'Share Summary'!$G$95*(Inputs!$C$175*(Inputs!$C$176/12))))/Inputs!J13,"") -> 7.331102893 | I157: =IF(Inputs!$J$12,(SUMPRODUCT(D157:D160,$I$141:$I$144,$F$349:$F$352)+SUM('Share Summary'!$G$80:$G$81)-'Share Summary'!$G$107-($I$140*'Share Summary'!$G$95)-('Share Sensitivity'!$I$140*'Share Summary'!$G$95*(Inputs!$C$175*(Inputs!$C$176/12))))/Inputs!J13,"") -> 59.49827633
B158: 0.1 | C158: =IF(Inputs!$D$12,Inputs!$D$11,"") -> Irr Soybeans | D158: =IF(Inputs!$D$12,'Cash Summary'!$C$40*1.1,"") -> 9.9
B159: Above | C159: =IF(Inputs!$E$12,Inputs!$E$11,"") -> Dry Corn | D159: =IF(Inputs!$E$12,'Cash Summary'!$D$40*1.1,"") -> 4.015
C160: =IF(Inputs!$F$12,Inputs!$F$11,"") -> Dry Soybeans | D160: =IF(Inputs!$F$12,'Cash Summary'!$E$40*1.1,"") -> 9.9
C161: =IF(Inputs!$C$12,Inputs!$C$11,"") -> Irr Corn | D161: =IF(Inputs!$C$12,'Cash Summary'!$B$40*1.25,"") -> 4.5625 | E161: =IF(Inputs!$J$12,(SUMPRODUCT(D161:D164,$E$141:$E$144,$F$349:$F$352)+SUM('Share Summary'!$G$80:$G$81)-'Share Summary'!$G$107+($E$140*'Share Summary'!$G$95)+('Share Sensitivity'!$E$140*'Share Summary'!$G$95*(Inputs!$C$175*(Inputs!$C$176/12))))/Inputs!J13,"") -> -77.81046586 | F161: =IF(Inputs!$J$12,(SUMPRODUCT(D161:D164,$F$141:$F$144,$F$349:$F$352)+SUM('Share Summary'!$G$80:$G$81)-'Share Summary'!$G$107+($F$140*'Share Summary'!$G$95)+('Share Sensitivity'!$F$140*'Share Summary'!$G$95*(Inputs!$C$175*(Inputs!$C$176/12))))/Inputs!J13,"") -> -18.32692523 | G161: =IF(Inputs!$J$12,(SUMPRODUCT(D161:D164,$G$141:$G$144,$F$349:$F$352)+SUM('Share Summary'!$G$80:$G$81)-'Share Summary'!$G$107)/Inputs!J13,"") -> 21.32876852 | H161: =IF(Inputs!$J$12,(SUMPRODUCT(D161:D164,$H$141:$H$144,$F$349:$F$352)+SUM('Share Summary'!$G$80:$G$81)-'Share Summary'!$G$107-($H$140*'Share Summary'!$G$95)-('Share Sensitivity'!$H$140*'Share Summary'!$G$95*(Inputs!$C$175*(Inputs!$C$176/12))))/Inputs!J13,"") -> 60.98446227 | I161: =IF(Inputs!$J$12,(SUMPRODUCT(D161:D164,$I$141:$I$144,$F$349:$F$352)+SUM('Share Summary'!$G$80:$G$81)-'Share Summary'!$G$107-($I$140*'Share Summary'!$G$95)-('Share Sensitivity'!$I$140*'Share Summary'!$G$95*(Inputs!$C$175*(Inputs!$C$176/12))))/Inputs!J13,"") -> 120.4680029
B162: 0.25 | C162: =IF(Inputs!$D$12,Inputs!$D$11,"") -> Irr Soybeans | D162: =IF(Inputs!$D$12,'Cash Summary'!$C$40*1.25,"") -> 11.25
B163: Above | C163: =IF(Inputs!$E$12,Inputs!$E$11,"") -> Dry Corn | D163: =IF(Inputs!$E$12,'Cash Summary'!$D$40*1.25,"") -> 4.5625
C164: =IF(Inputs!$F$12,Inputs!$F$11,"") -> Dry Soybeans | D164: =IF(Inputs!$F$12,'Cash Summary'!$E$40*1.25,"") -> 11.25
A166: Share Lease Equivalent (per Acre) Cash Rent
D168: Yields | E168: Below | G168: Average | H168: Above
E169: 0.25 | F169: 0.1 | H169: 0.1 | I169: 0.25
D170: =IF(Inputs!$C$12,Inputs!$C$11,"") -> Irr Corn | E170: =IF(Inputs!$C$12,'Share Summary'!$B$77*0.75,"") -> 84.375 | F170: =IF(Inputs!$C$12,'Share Summary'!$B$77*0.9,"") -> 101.25 | G170: =IF(Inputs!$C$12,'Share Summary'!$B$77,"") -> 112.5 | H170: =IF(Inputs!$C$12,'Share Summary'!$B$77*1.1,"") -> 123.75 | I170: =IF(Inputs!$C$12,'Share Summary'!$B$77*1.25,"") -> 140.625
D171: =IF(Inputs!$D$12,Inputs!$D$11,"") -> Irr Soybeans | E171: =IF(Inputs!$D$12,'Share Summary'!$C$77*0.75,"") -> 24.375 | F171: =IF(Inputs!$D$12,'Share Summary'!$C$77*0.9,"") -> 29.25 | G171: =IF(Inputs!$D$12,'Share Summary'!$C$77,"") -> 32.5 | H171: =IF(Inputs!$D$12,'Share Summary'!$C$77*1.1,"") -> 35.75 | I171: =IF(Inputs!$D$12,'Share Summary'!$C$77*1.25,"") -> 40.625
D172: =IF(Inputs!$E$12,Inputs!$E$11,"") -> Dry Corn | E172: =IF(Inputs!$E$12,'Share Summary'!$D$77*0.75,"") -> 46.875 | F172: =IF(Inputs!$E$12,'Share Summary'!$D$77*0.9,"") -> 56.25 | G172: =IF(Inputs!$E$12,'Share Summary'!$D$77,"") -> 62.5 | H172: =IF(Inputs!$E$12,'Share Summary'!$D$77*1.1,"") -> 68.75 | I172: =IF(Inputs!$E$12,'Share Summary'!$D$77*1.25,"") -> 78.125
B173: Prices | D173: =IF(Inputs!$F$12,Inputs!$F$11,"") -> Dry Soybeans | E173: =IF(Inputs!$F$12,'Share Summary'!$E$77*0.75,"") -> 16.125 | F173: =IF(Inputs!$F$12,'Share Summary'!$E$77*0.9,"") -> 19.35 | G173: =IF(Inputs!$F$12,'Share Summary'!$E$77,"") -> 21.5 | H173: =IF(Inputs!$F$12,'Share Summary'!$E$77*1.1,"") -> 23.65 | I173: =IF(Inputs!$F$12,'Share Summary'!$E$77*1.25,"") -> 26.875
C174: =IF(Inputs!$C$12,Inputs!$C$11,"") -> Irr Corn | D174: =IF(Inputs!$C$12,Inputs!$C$18*0.75,"") -> 2.7375 | E174: =IF(Inputs!$J$12,(((SUMPRODUCT($D$174:$D$177,E355:E358,$F$349:$F$352)+SUM('Cash Summary'!$G$42:$G$43))+(E169*'Share Summary'!$G$95)+('Share Sensitivity'!E169*'Share Summary'!$G$95*(Inputs!$C$175*(Inputs!$C$176/12)))-SUM('Share Summary'!$G$250:$G$252))/Inputs!$J$13)-E145,"") -> 98.53718779 | F174: =IF(Inputs!$J$12,(((SUMPRODUCT($D$174:$D$177,F355:F358,$F$349:$F$352)+SUM('Cash Summary'!$G$42:$G$43))+(F169*'Share Summary'!$G$95)+('Share Sensitivity'!F169*'Share Summary'!$G$95*(Inputs!$C$175*(Inputs!$C$176/12)))-SUM('Share Summary'!$G$250:$G$252))/Inputs!$J$13)-F145,"") -> 135.1190237 | G174: =IF(Inputs!$J$12,(((SUMPRODUCT($D$174:$D$177,G355:G358,$F$349:$F$352)+SUM('Cash Summary'!$G$42:$G$43))+(G169*'Share Summary'!$G$95)+('Share Sensitivity'!G169*'Share Summary'!$G$95*(Inputs!$C$175*(Inputs!$C$176/12)))-SUM('Share Summary'!$G$250:$G$252))/Inputs!$J$13)-G145,"") -> 159.5069144 | H174: =IF(Inputs!$J$12,(((SUMPRODUCT($D$174:$D$177,H355:H358,$F$349:$F$352)+SUM('Cash Summary'!$G$42:$G$43))-(H169*'Share Summary'!$G$95)-('Share Sensitivity'!H169*'Share Summary'!$G$95*(Inputs!$C$175*(Inputs!$C$176/12)))-SUM('Share Summary'!$G$250:$G$252))/Inputs!$J$13)-H145,"") -> 183.894805 | I174: =IF(Inputs!$J$12,(((SUMPRODUCT($D$174:$D$177,I355:I358,$F$349:$F$352)+SUM('Cash Summary'!$G$42:$G$43))-(I169*'Share Summary'!$G$95)-('Share Sensitivity'!I169*'Share Summary'!$G$95*(Inputs!$C$175*(Inputs!$C$176/12)))-SUM('Share Summary'!$G$250:$G$252))/Inputs!$J$13)-I145,"") -> 220.4766409
B175: 0.25 | C175: =IF(Inputs!$D$12,Inputs!$D$11,"") -> Irr Soybeans | D175: =IF(Inputs!$D$12,Inputs!$D$18*0.75,"") -> 6.75
B176: Below | C176: =IF(Inputs!$E$12,Inputs!$E$11,"") -> Dry Corn | D176: =IF(Inputs!$E$12,Inputs!$E$18*0.75,"") -> 2.7375
C177: =IF(Inputs!$F$12,Inputs!$F$11,"") -> Dry Soybeans | D177: =IF(Inputs!$F$12,Inputs!$F$18*0.75,"") -> 6.75
C178: =IF(Inputs!$C$12,Inputs!$C$11,"") -> Irr Corn | D178: =IF(Inputs!$C$12,Inputs!$C$18*0.9,"") -> 3.285 | E178: =IF(Inputs!$J$12,(((SUMPRODUCT($D$178:$D$181,E355:E358,$F$349:$F$352)+SUM('Cash Summary'!$G$42:$G$43))+(E169*'Share Summary'!$G$95)+('Share Sensitivity'!E169*'Share Summary'!$G$95*(Inputs!$C$175*(Inputs!$C$176/12)))-SUM('Share Summary'!$G$250:$G$252))/Inputs!$J$13)-E149,"") -> 135.1190237 | F178: =IF(Inputs!$J$12,(((SUMPRODUCT($D$178:$D$181,F355:F358,$F$349:$F$352)+SUM('Cash Summary'!$G$42:$G$43))+(F169*'Share Summary'!$G$95)+('Share Sensitivity'!F169*'Share Summary'!$G$95*(Inputs!$C$175*(Inputs!$C$176/12)))-SUM('Share Summary'!$G$250:$G$252))/Inputs!$J$13)-F149,"") -> 179.0172269 | G178: =IF(Inputs!$J$12,(((SUMPRODUCT($D$178:$D$181,G355:G358,$F$349:$F$352)+SUM('Cash Summary'!$G$42:$G$43))+(G169*'Share Summary'!$G$95)+('Share Sensitivity'!G169*'Share Summary'!$G$95*(Inputs!$C$175*(Inputs!$C$176/12)))-SUM('Share Summary'!$G$250:$G$252))/Inputs!$J$13)-G149,"") -> 208.2826956 | H178: =IF(Inputs!$J$12,(((SUMPRODUCT($D$178:$D$181,H355:H358,$F$349:$F$352)+SUM('Cash Summary'!$G$42:$G$43))-(H169*'Share Summary'!$G$95)-('Share Sensitivity'!H169*'Share Summary'!$G$95*(Inputs!$C$175*(Inputs!$C$176/12)))-SUM('Share Summary'!$G$250:$G$252))/Inputs!$J$13)-H149,"") -> 237.5481644 | I178: =IF(Inputs!$J$12,(((SUMPRODUCT($D$178:$D$181,I355:I358,$F$349:$F$352)+SUM('Cash Summary'!$G$42:$G$43))-(I169*'Share Summary'!$G$95)-('Share Sensitivity'!I169*'Share Summary'!$G$95*(Inputs!$C$175*(Inputs!$C$176/12)))-SUM('Share Summary'!$G$250:$G$252))/Inputs!$J$13)-I149,"") -> 281.4463675
B179: 0.1 | C179: =IF(Inputs!$D$12,Inputs!$D$11,"") -> Irr Soybeans | D179: =IF(Inputs!$D$12,Inputs!$D$18*0.9,"") -> 8.1
B180: Below | C180: =IF(Inputs!$E$12,Inputs!$E$11,"") -> Dry Corn | D180: =IF(Inputs!$E$12,Inputs!$E$18*0.9,"") -> 3.285
C181: =IF(Inputs!$F$12,Inputs!$F$11,"") -> Dry Soybeans | D181: =IF(Inputs!$F$12,Inputs!$F$18*0.9,"") -> 8.1
C182: =IF(Inputs!$C$12,Inputs!$C$11,"") -> Irr Corn | D182: =IF(Inputs!$C$12,Inputs!$C$18,"") -> 3.65 | E182: =IF(Inputs!$J$12,(((SUMPRODUCT($D$182:$D$185,E355:E358,$F$349:$F$352)+SUM('Cash Summary'!$G$42:$G$43))+($E$169*'Share Summary'!$G$95)+('Share Sensitivity'!$E$169*'Share Summary'!$G$95*(Inputs!$C$175*(Inputs!$C$176/12)))-SUM('Share Summary'!$G$250:$G$252))/Inputs!$J$13)-E153,"") -> 159.5069144 | F182: =IF(Inputs!$J$12,(((SUMPRODUCT($D$182:$D$185,F355:F358,$F$349:$F$352)+SUM('Cash Summary'!$G$42:$G$43))+(F169*'Share Summary'!$G$95)+('Share Sensitivity'!F169*'Share Summary'!$G$95*(Inputs!$C$175*(Inputs!$C$176/12)))-SUM('Share Summary'!$G$250:$G$252))/Inputs!$J$13)-F153,"") -> 208.2826956 | G182: =IF(Inputs!$J$12,(((SUMPRODUCT($D$182:$D$185,G355:G358,$F$349:$F$352)+SUM('Cash Summary'!$G$42:$G$43))+(G169*'Share Summary'!$G$95)+('Share Sensitivity'!G169*'Share Summary'!$G$95*(Inputs!$C$175*(Inputs!$C$176/12)))-SUM('Share Summary'!$G$250:$G$252))/Inputs!$J$13)-G153,"") -> 240.7998831 | H182: =IF(Inputs!$J$12,(((SUMPRODUCT($D$182:$D$185,H355:H358,$F$349:$F$352)+SUM('Cash Summary'!$G$42:$G$43))-(H169*'Share Summary'!$G$95)-('Share Sensitivity'!H169*'Share Summary'!$G$95*(Inputs!$C$175*(Inputs!$C$176/12)))-SUM('Share Summary'!$G$250:$G$252))/Inputs!$J$13)-H153,"") -> 273.3170706 | I182: =IF(Inputs!$J$12,(((SUMPRODUCT($D$182:$D$185,I355:I358,$F$349:$F$352)+SUM('Cash Summary'!$G$42:$G$43))-(I169*'Share Summary'!$G$95)-('Share Sensitivity'!I169*'Share Summary'!$G$95*(Inputs!$C$175*(Inputs!$C$176/12)))-SUM('Share Summary'!$G$250:$G$252))/Inputs!$J$13)-I153,"") -> 322.0928519
B183: Average | C183: =IF(Inputs!$D$12,Inputs!$D$11,"") -> Irr Soybeans | D183: =IF(Inputs!$D$12,Inputs!$D$18,"") -> 9
C184: =IF(Inputs!$E$12,Inputs!$E$11,"") -> Dry Corn | D184: =IF(Inputs!$E$12,Inputs!$E$18,"") -> 3.65
C185: =IF(Inputs!$F$12,Inputs!$F$11,"") -> Dry Soybeans | D185: =IF(Inputs!$F$12,Inputs!$F$18,"") -> 9
C186: =IF(Inputs!$C$12,Inputs!$C$11,"") -> Irr Corn | D186: =IF(Inputs!$C$12,Inputs!$C$18*1.1,"") -> 4.015 | E186: =IF(Inputs!$J$12,(((SUMPRODUCT($D$186:$D$189,E355:E358,$F$349:$F$352)+SUM('Cash Summary'!$G$42:$G$43))+(E169*'Share Summary'!$G$95)+('Share Sensitivity'!E169*'Share Summary'!$G$95*(Inputs!$C$175*(Inputs!$C$176/12)))-SUM('Share Summary'!$G$250:$G$252))/Inputs!$J$13)-E157,"") -> 183.894805 | F186: =IF(Inputs!$J$12,(((SUMPRODUCT($D$186:$D$189,F355:F358,$F$349:$F$352)+SUM('Cash Summary'!$G$42:$G$43))+(F169*'Share Summary'!$G$95)+('Share Sensitivity'!F169*'Share Summary'!$G$95*(Inputs!$C$175*(Inputs!$C$176/12)))-SUM('Share Summary'!$G$250:$G$252))/Inputs!$J$13)-F157,"") -> 237.5481644 | G186: =IF(Inputs!$J$12,(((SUMPRODUCT($D$186:$D$189,G355:G358,$F$349:$F$352)+SUM('Cash Summary'!$G$42:$G$43))+(G169*'Share Summary'!$G$95)+('Share Sensitivity'!G169*'Share Summary'!$G$95*(Inputs!$C$175*(Inputs!$C$176/12)))-SUM('Share Summary'!$G$250:$G$252))/Inputs!$J$13)-G157,"") -> 273.3170706 | H186: =IF(Inputs!$J$12,(((SUMPRODUCT($D$186:$D$189,H355:H358,$F$349:$F$352)+SUM('Cash Summary'!$G$42:$G$43))-(H169*'Share Summary'!$G$95)-('Share Sensitivity'!H169*'Share Summary'!$G$95*(Inputs!$C$175*(Inputs!$C$176/12)))-SUM('Share Summary'!$G$250:$G$252))/Inputs!$J$13)-H157,"") -> 309.0859769 | I186: =IF(Inputs!$J$12,(((SUMPRODUCT($D$186:$D$189,I355:I358,$F$349:$F$352)+SUM('Cash Summary'!$G$42:$G$43))-(I169*'Share Summary'!$G$95)-('Share Sensitivity'!I169*'Share Summary'!$G$95*(Inputs!$C$175*(Inputs!$C$176/12)))-SUM('Share Summary'!$G$250:$G$252))/Inputs!$J$13)-I157,"") -> 362.7393362
B187: 0.1 | C187: =IF(Inputs!$D$12,Inputs!$D$11,"") -> Irr Soybeans | D187: =IF(Inputs!$D$12,Inputs!$D$18*1.1,"") -> 9.9
B188: Above | C188: =IF(Inputs!$E$12,Inputs!$E$11,"") -> Dry Corn | D188: =IF(Inputs!$E$12,Inputs!$E$18*1.1,"") -> 4.015
C189: =IF(Inputs!$F$12,Inputs!$F$11,"") -> Dry Soybeans | D189: =IF(Inputs!$F$12,Inputs!$F$18*1.1,"") -> 9.9
C190: =IF(Inputs!$C$12,Inputs!$C$11,"") -> Irr Corn | D190: =IF(Inputs!$C$12,Inputs!$C$18*1.25,"") -> 4.5625 | E190: =IF(Inputs!$J$12,(((SUMPRODUCT($D$190:$D$193,E355:E358,$F$349:$F$352)+SUM('Cash Summary'!$G$42:$G$43))+(E169*'Share Summary'!$G$95)+('Share Sensitivity'!E169*'Share Summary'!$G$95*(Inputs!$C$175*(Inputs!$C$176/12)))-SUM('Share Summary'!$G$250:$G$252))/Inputs!$J$13)-E161,"") -> 220.4766409 | F190: =IF(Inputs!$J$12,(((SUMPRODUCT($D$190:$D$193,F355:F358,$F$349:$F$352)+SUM('Cash Summary'!$G$42:$G$43))+(F169*'Share Summary'!$G$95)+('Share Sensitivity'!F169*'Share Summary'!$G$95*(Inputs!$C$175*(Inputs!$C$176/12)))-SUM('Share Summary'!$G$250:$G$252))/Inputs!$J$13)-F161,"") -> 281.4463675 | G190: =IF(Inputs!$J$12,(((SUMPRODUCT($D$190:$D$193,G355:G358,$F$349:$F$352)+SUM('Cash Summary'!$G$42:$G$43))+(G169*'Share Summary'!$G$95)+('Share Sensitivity'!G169*'Share Summary'!$G$95*(Inputs!$C$175*(Inputs!$C$176/12)))-SUM('Share Summary'!$G$250:$G$252))/Inputs!$J$13)-G161,"") -> 322.0928519 | H190: =IF(Inputs!$J$12,(((SUMPRODUCT($D$190:$D$193,H355:H358,$F$349:$F$352)+SUM('Cash Summary'!$G$42:$G$43))-(H169*'Share Summary'!$G$95)-('Share Sensitivity'!H169*'Share Summary'!$G$95*(Inputs!$C$175*(Inputs!$C$176/12)))-SUM('Share Summary'!$G$250:$G$252))/Inputs!$J$13)-H161,"") -> 362.7393362 | I190: =IF(Inputs!$J$12,(((SUMPRODUCT($D$190:$D$193,I355:I358,$F$349:$F$352)+SUM('Cash Summary'!$G$42:$G$43))-(I169*'Share Summary'!$G$95)-('Share Sensitivity'!I169*'Share Summary'!$G$95*(Inputs!$C$175*(Inputs!$C$176/12)))-SUM('Share Summary'!$G$250:$G$252))/Inputs!$J$13)-I161,"") -> 423.7090628
B191: 0.25 | C191: =IF(Inputs!$D$12,Inputs!$D$11,"") -> Irr Soybeans | D191: =IF(Inputs!$D$12,Inputs!$D$18*1.25,"") -> 11.25
B192: Above | C192: =IF(Inputs!$E$12,Inputs!$E$11,"") -> Dry Corn | D192: =IF(Inputs!$E$12,Inputs!$E$18*1.25,"") -> 4.5625
C193: =IF(Inputs!$F$12,Inputs!$F$11,"") -> Dry Soybeans | D193: =IF(Inputs!$F$12,Inputs!$F$18*1.25,"") -> 11.25
E348: Crop | F348: Acres
E349: =Inputs!C11 -> Irr Corn | F349: =Inputs!C12 -> 65
E350: =Inputs!D11 -> Irr Soybeans | F350: =Inputs!D12 -> 65
E351: =Inputs!E11 -> Dry Corn | F351: =Inputs!E12 -> 15
E352: =Inputs!F11 -> Dry Soybeans | F352: =Inputs!F12 -> 15
G353: Cash Yields
E354: -25% | F354: -10% | G354: ave | H354: +10% | I354: +25%
E355: =G355*0.75 -> 168.75 | F355: =G355*0.9 -> 202.5 | G355: =Inputs!C17 -> 225 | H355: =G355*1.1 -> 247.5 | I355: =G355*1.25 -> 281.25
E356: =G356*0.75 -> 48.75 | F356: =G356*0.9 -> 58.5 | G356: =Inputs!D17 -> 65 | H356: =G356*1.1 -> 71.5 | I356: =G356*1.25 -> 81.25
E357: =G357*0.75 -> 93.75 | F357: =G357*0.9 -> 112.5 | G357: =Inputs!E17 -> 125 | H357: =G357*1.1 -> 137.5 | I357: =G357*1.25 -> 156.25
E358: =G358*0.75 -> 32.25 | F358: =G358*0.9 -> 38.7 | G358: =Inputs!F17 -> 43 | H358: =G358*1.1 -> 47.3 | I358: =G358*1.25 -> 53.75

Sheet Data Sources
D1: Farm Lease Calculator
A6: Information and Examples:
A8: Table 1. 2015 Reported Cash Rental Rates Per Acre of Various Types of Nebraska Farmland by
A9: Agricultural Statistics District a
B10: Northwest | C10: North | D10: Northeast | E10: Central | F10: East | G10: Southwest | H10: South | I10: Southeast
A11: Dryland Cropland
A12: Average | B12: 35 | C12: 65 | D12: 240 | E12: 115 | F12: 190 | G12: 45 | H12: 85 | I12: 155
A13: High Grade | B13: 60 | C13: 95 | D13: 310 | E13: 135 | F13: 235 | G13: 55 | H13: 125 | I13: 195
A14: Low Grade | B14: 20 | C14: 45 | D14: 190 | E14: 70 | F14: 150 | G14: 30 | H14: 55 | I14: 120
A15: Gravity Irrigated Cropland
A16: Average | B16: 135 | C16: 190 | D16: 285 | E16: 230 | F16: 285 | G16: 185 | H16: 210 | I16: 250
A17: High Grade | B17: 180 | C17: 250 | D17: 350 | E17: 270 | F17: 320 | G17: 215 | H17: 265 | I17: 305
A18: Low Grade | B18: 75 | C18: 175 | D18: 250 | E18: 190 | F18: 250 | G18: 140 | H18: 170 | I18: 215
A19: Center Pivot Irrigated Cropland
A20: Average | B20: 175 | C20: 235 | D20: 375 | E20: 240 | F20: 305 | G20: 250 | H20: 255 | I20: 300
A21: High Grade | B21: 295 | C21: 275 | D21: 440 | E21: 290 | F21: 350 | G21: 320 | H21: 330 | I21: 360
A22: Low Grade | B22: 150 | C22: 190 | D22: 300 | E22: 210 | F22: 260 | G22: 220 | H22: 240 | I22: 265
A23: Pasture
A24: Average | B24: 11 | C24: 26 | D24: 85 | E24: 40 | F24: 59 | G24: 27 | H24: 38 | I24: 55
A25: High Grade | B25: 18 | C25: 37 | D25: 97 | E25: 51 | F25: 72 | G25: 34 | H25: 44 | I25: 67
A26: Low Grade | B26: 5 | C26: 22 | D26: 55 | E26: 31 | F26: 48 | G26: 22 | H26: 35 | I26: 38
A28: Table 2. 2015 Average Reported Value Per Acre of Nebraska Farmland by Agricultural Statistics District a
B29: Northwest | C29: North | D29: Northeast | E29: Central | F29: East | G29: Southwest | H29: South | I29: Southeast
A30: Dryland Cropland (No Irrigation Potential)
A31: Average | B31: 700 | C31: 1155 | D31: 5995 | E31: 2625 | F31: 6730 | G31: 1530 | H31: 3240 | I31: 4925
A32: High Grade | B32: 850 | C32: 1570 | D32: 7330 | E32: 3450 | F32: 7965 | G32: 2025 | H32: 4400 | I32: 6350
A33: Low Grade | B33: 450 | C33: 870 | D33: 4740 | E33: 2050 | F33: 5465 | G33: 1125 | H33: 2400 | I33: 3585
A34: Dryland Cropland (Irrigation Potential)
A35: Average | B35: 730 | C35: 1920 | D35: 7050 | E35: 3945 | F35: 7400 | G35: 1655 | H35: 4175 | I35: 6590
A36: High Grade | B36: 875 | C36: 2200 | D36: 8445 | E36: 4500 | F36: 8350 | G36: 2300 | H36: 4300 | I36: 7945
A37: Low Grade | B37: 540 | C37: 1300 | D37: 5695 | E37: 2715 | F37: 6175 | G37: 1600 | H37: 3925 | I37: 5135
A38: Grazing Land (Tillable)
A39: Average | B39: 425 | C39: 1050 | D39: 3575 | E39: 2075 | F39: 3390 | G39: 665 | H39: 2075 | I39: 3195
A40: High Grade | B40: 500 | C40: 1250 | D40: 4500 | E40: 2335 | F40: 4090 | G40: 900 | H40: 2500 | I40: 3340
A41: Low Grade | B41: 400 | C41: 900 | D41: 3045 | E41: 1525 | F41: 2990 | G41: 625 | H41: 1825 | I41: 2325
A42: Grazing Land (Nontillable)
A43: Average | B43: 370 | C43: 500 | D43: 1850 | E43: 1300 | F43: 2225 | G43: 570 | H43: 1375 | I43: 1875
A44: High Grade | B44: 455 | C44: 600 | D44: 2525 | E44: 1750 | F44: 2720 | G44: 745 | H44: 1950 | I44: 2200
A45: Low Grade | B45: 300 | C45: 350 | D45: 1620 | E45: 1075 | F45: 1975 | G45: 475 | H45: 965 | I45: 1250
A46: Hayland
A47: Average | B47: 780 | C47: 1150 | D47: 2625 | E47: 1850 | F47: 3325 | G47: 1160 | H47: 1800 | I47: 2065
A48: High Grade | B48: 900 | C48: 1400 | D48: 2795 | E48: 1975 | F48: 3855 | G48: 1600 | H48: 2250 | I48: 2400
A49: Low Grade | B49: 575 | C49: 900 | D49: 2150 | E49: 1245 | F49: 2650 | G49: 940 | H49: 1300 | I49: 1600
A50: Gravity Irrigated Cropland
A51: Average | B51: 2875 | C51: 3100 | D51: 7850 | E51: 6900 | F51: 8750 | G51: 3850 | H51: 7060 | I51: 7715
A52: High Grade | B52: 3700 | C52: 3400 | D52: 9950 | E52: 7900 | F52: 9850 | G52: 5750 | H52: 9300 | I52: 9000
A53: Low Grade | B53: 2015 | C53: 2250 | D53: 7500 | E53: 5440 | F53: 7710 | G53: 3025 | H53: 5925 | I53: 6850
A54: Center Pivot Irrigated Cropland
A55: Average | B55: 3115 | C55: 5225 | D55: 8715 | E55: 8120 | F55: 10025 | G55: 5200 | H55: 8350 | I55: 9400
A56: High Grade | B56: 4000 | C56: 6900 | D56: 10600 | E56: 9150 | F56: 11500 | G56: 6800 | H56: 11025 | I56: 11300
A57: Low Grade | B57: 2700 | C57: 3500 | D57: 7585 | E57: 5900 | F57: 8640 | G57: 4375 | H57: 6400 | I57: 7600
A59: Table 3. 2013 Reported Net Rate of Return for Nebraska Farmland by Agricultural Statistics District ac
B60: Northwest | C60: North | D60: Northeast | E60: Central | F60: East | G60: Southwest | H60: South | I60: Southeast
A61: Irrigated | B61: 4.4 | C61: 3.5 | D61: 3.8 | E61: 3.1 | F61: 3.3 | G61: 3.7 | H61: 2.8 | I61: 3
A62: Dryland | B62: 3.5 | C62: 2.9 | D62: 3.3 | E62: 2.8 | F62: 2.8 | G62: 3 | H62: 1.9 | I62: 2.7
A63: Grazing | B63: 1.9 | C63: 2.3 | D63: 2.4 | E63: 1.6 | F63: 2 | G63: 1.8 | H63: 1.7 | I63: 1.7
A66: a Source: 2013 UNL Nebraska Farm Real Estate Market Developments Survey
A67: b Insufficient number of reports
A68: c Reporter estimates of annual net returns as percentage rates of current land values. Real estate appraisers refer to this percentage as the market-derived capitalization rate.
A70: Figure 1. Nebraska Agricultural Statistics Districts
A90: The following is a list of information relevant to this program and other farm management topics:
A91: For complete Nebraska Farm Real Estate Market Development Surveys visit:
B92: http://agecon.unl.edu/realestate/
A93: For complete 2014 Nebraska Farm Budgets visit:
B94: http://cropwatch.unl.edu/economics/budgets
A95: For 2012 Custom Rates visit:
B96: http://www.ianrpubs.unl.edu/epublic/live/ec823/build/ec823.pdf
B97: http://www.ianrpubs.unl.edu/epublic/live/ec826/build/ec826.pdf
A98: For a complete list of resources visit:
B99: http://agecon.unl.edu/resource.html
A101: Department of Agricultural Economics
A102: University of Nebraska-Lincoln
A103: H.C. Filley Hall
A104: Lincoln, NE 68583
A105: 402.472.3401
A106: http://agecon.unl.edu/
A108: Contact:
A109: Roger Wilson
A110: 402-472-1771
A111: rwilson6@unl.edu
